Workbook

Sheet TOC
C1: Planning a Research Study, Tips with Excel, and Select Statistical Tests*
B2: borzia | C2: This workbook assumes prior experience with Excel.
C3: Data - Planning, Editing, and Formatting, with Excel | G3: Data - Plotting and Analysis with Excel
C4: By Kathleen Kromer Baker, PhD, MS, Research Statistician Office of Health Status Monitoring, Hawaii Department of Health Contact Phone: 586 4732 Contact Email: kathlee.baker@doh.hawaii.gov
C5: Introduction, Excel Tips, Planning the Study, Datafile for Analysis | G5: Excel Statistical Add-Ins, Plotting, Statistical Analysis of Data
C6: Worksheets | D6: Topic | E6: Hyperlink | G6: Worksheets | H6: Topic | I6: Hyperlink
C7: Getting Started | G7: Excel Add-Ins, Plotting and Statistics, Descriptive Statistics
C8: 1 | D8: Introduction to Workbook | E8: Introduction | G8: 26 | H8: Descriptive Statistics | I8: Descriptive Statistics
C9: 3 | D9: Excel Tips and Shortcuts | E9: Excel Tips | G9: 27 | H9: Input Excel Add-In for Statistical Analysis | I9: Analysis ToolPak, PC
C10: 4 | E10: Group Row or Columns | G10: 28 | I10: Analysis ToolPak MAC
C11: 5 | E11: Excel Shortcuts | G11: 29 | H11: Charts and Tables | I11: Describe and Plot
C12: 6 | D12: Excel Formulas/ Functions | E12: Excel Formulas | G12: 30 | I12: Pivot Table and Chart
C13: 7 | E13: Select Excel Functions | G13: 31 | H13: Statistical Test, Count Data | I13: Odds, Rel. Risk
C14: 8 | E14: Random Duplicates | G14: 32 | H14: Distributions | I14: Distributions
C15: 9 | E15: Random No Duplicates | G15: 33 | H15: Continuous Variables | I15: Normal Curve
C16: 10 | E16: Other Random Formulas | G16: 34 | H16: Copy of FINAL DATA FILE RENAMED | I16: 1
C17: Planning Study | G17: 35 | H17: Charts and Tables | I17: Histogram
C18: 11 | D18: Planning | E18: Research Questions | G18: 36 | I18: One Series Formulas
C19: 12 | E19: =Hypothesis!C3 -> Hypothesis | G19: 37 | I19: Correlation
C20: 13 | E20: Statistical Tests | G20: Plotting and Statistics, Inferential Statistics
C21: 14 | D21: Variables | E21: Variable Type | G21: 39 | H21: Inferential Statistics | I21: Inferential Statistics
C22: 15 | E22: Variable Codebook | G22: 40 | H22: Tests of Study Variables | I22: Chi-Square 2x1
C23: 16 | D23: HIPAA | E23: Copies and HIPAA | G23: 41 | I23: Chi-Square 2X2
C24: Datafile | G24: 38 | I24: Two Series Formulas
C25: 17 | D25: Datafile | E25: Database Structure Flatfile | G25: 42 | I25: Means ToolPak Results
C26: 18 | E26: Steps Editing Flatfile | G26: 43 | I26: ANOVA ToolPak Results
C27: 19 | E27: Excel File to Edit | G27: 44 | I27: Regression Plot
C28: 20 | E28: Edited File | G28: 45 | I28: Regression Results
C29: 21 | D29: Adding Data | E29: Ethnicity File | G29: Select Definitions and Other Resources for Excel
C30: 22 | E30: Steps Combining Worksheets | G30: 46 | H30: Select Definitions | I30: Definitions
C31: 23 | E31: Combined Example 1 | G31: 47 | H31: Online Resources | I31: Resources
C32: 24 | E32: Combined Example 2
C33: 25 | D33: Final Data File | E33: FINAL DATA FILE
C34: *Many worksheets and formulas will not work in earlier versions (2007 and earlier) of Excel
C35: *Select worksheets do not allow changes, Sheets can be copied to use formulas and contents, Be sure and check the cell references after copying

Sheet Introduction
D2: Excel - Introduction to this Workbook | G2: TOC
E3: This workbook is primarily geared toward PC users. Much of the information can be transferred to a MAC. If the tip or formula does not work please consult the Internet for alternate suggestions for MAC users.
E4: To understand the workbook it is best to read the worksheets in order. The first section covers tips, the second formulas and functions, the third planning your study, the fourth editing your datafile, the fifth plotting and analyzing your data.
E6: Have fun! Excel can be learned by pressing keys and clicking on options. You can learn by seeing what the options do. If all else fails use the Excel Help File or go on the Internet!
C7: Getting to Know Excel | E7: The Worksheets on Shortcuts and Excel Tips to using Excel are presented. Many make data editing easier. | G7: Excel Tips
E8: This is a handy feature to use when you want to view columns when they are not adjacent. | G8: Group Rows or Columns
G9: Excel Shortcuts
E10: Excel uses formulas and you start inputting with an = sign in the worksheet cell. You can input your own formula. The Excel Formulas worksheet gives examples. | G10: Excel Formulas
E11: Or you can start with an = sign and look to the left of the = sign to find a list of possible formulas by hitting the fx icon or further to the left hit the down arrow and choose from a list of formulas (hit more functions at the bottom to see a full list). | G11: Select Excel Functions
E12: Random number generators are handy if you are e.g. assigning treatments to a patient or in everyday life like assigning players to a team. Examples include 1. with duplicates 2. without duplicates, and 3. choosing a value at random and assigning a value at random. | G12: Random Duplicates
G13: Random No Duplicates
G14: Other Random Formulas
C15: Example Study on BMI | E15: This workbook presents key ideas in planning a research project, preparing a clean dataset, plotting data, and analyzing data using fictitious data on adult body mass index (BMI) by urban/rural designation. This datafile is used throughout the workbook. | G15: FINAL
E16: Planning your research study - Usually statistical studies start out as an idea, a question to answer, or a hypothesis. The Initial Questions worksheet ask questions of you on your own study. | G16: Research Questions
E17: The next worksheet asks questions to be answered on the BMI study in this workbook. | G17: BMI Study Goals-Hypothesis
E18: This Excel workbook assumes some knowledge of Excel and statistical tests. Questions asked to determine tests used on the BMI study are in Statistical Tests. | G18: Statistical Tests
E19: In determining which statistical test to use the variable type needs to be identified. Examples are on the Variable Type worksheet. | G19: Variable Type
E20: To understand and record variables definitions and properties it is best to create a Variable Codebook. An example is presented for the BMI datafile. | G20: Variable Codebook
E21: Be sure and observe HIPAA privacy rules and safeguard your original datafile. Only work on a copy of the original datafile. Keep all copies in a secure work area. | G21: Copies and HIPAA
C22: Datafiles | E22: The most common file to work with in Excel is the flatfile. An example layout is given and information on how to import data into Excel. | G22: Database Structure Flatfile
E23: It is critical in analysis of any datafile to have an error free and clearly understood datafile. Tips on how to edit a flat datafile are given on Steps Editing Flatfile. | G23: Steps Editing Flatfile
E24: An earlier draft of the BMI Final Datafile is given for you to practice editing datafiles. It contains errors in formatting and in values. The cleaned and edited file is also given on the next worksheet Edited File. | G24: Excel_file_to_edit
G25: EDITED FILE
C26: Adding New Variables | E26: What if you wanted to add data on an additional variable? An example of ethnicity variable's values are given with tips on editing the Ethnicity Data before adding it to the EDITED FILE. | G26: Ethnicity Data
E27: Two methods are given in different worksheets using different formulas to combine the files into the FINAL datafile. There are often several ways of accomplishing the same task in Excel. | G27: Steps Combining Worksheets
E28: Please note that the naming function has been used to 'Name' part of the data worksheet. This makes it easier to refer to the data on another worksheet instead of using the cell references e.g. C1:C200. | G28: Combined Example 1
E29: To name a section of a worksheet highlight the cells you want to name and go to FORMULAS and Define Name under Name Manager. You can input a name and the range of data that it refers to. Now you can use that name other worksheets to refer to that range of data. | G29: Combined Example 2
C30: Final Datafile | E30: NOW WE HAVE OUR FINAL SAMPLE DATAFILE TO USE TO IN OTHER WORKSHEETS IN THIS WORKBOOK. | G30: FINAL
C31: Descriptive Statistics | E31: The first few worksheets have information and examples of descriptive statistics, where you are only interested in describing your sample or population (not inferring from your sample information about a populations). It is a good idea to plot your variables to view their distribution. | G31: Descriptive Statistics
C32: Excel Add-Ins | E32: Excel has add in statistical functions that are very useful. However, it is good to know how to use the many formulas or functions directly in the cell rather than using the Excel Add-Ins to generate final values. Before using these add-ins the following worksheets give examples of making charts/ plots and using formulas to generate statistical values. | G32: Analysis ToolPak, PC
G33: Analysis ToolPak MAC
E34: The first examples are useful formulas to use with character type variables. Brief descriptions of how to generate a graph are given along with statistics.
E35: Plotting and analyzing character variables using the FINAL worksheet datafile. | G35: Describe and Plot
E36: Using the Excel Pivot Table and Chart option is another way of providing descriptive statistics and including a plot of data. | G36: Pivot Table and Chart
E37: With counts of character variables, odds ratios and relative risk can be calculated. First the formulas are given with a space in front of the = sign so you can see the actual formula. Then the formulas are given with the results showing (no = sign in front of the formula). The data analyzed is from the datafile FINAL. Finally there are cells where you can input data and the odds ratio or relative risk are calculated for you. | G37: Odds, Rel. Risk
C38: Continuous Variables | E38: Plotting the values of continuous variables such as a frequency distribution gives an idea of the type of distribution and statistics that are appropriate. | G38: Distributions
E39: One type of frequency distribution is the normal curve (bell shaped). The normal curve is actually an infinite number of curves that are defined by the mean and standard deviation. One normal distribution is the standard normal distribution that has a mean of 0 and a standard deviation of 1. | G39: Normal Curve
E40: The FINAL datafile is used in the examples of the statistical test worksheets. A copy (copy and paste function) is on the worksheet 1. In order to plot a histogram using gender the data has to be sorted on gender. In addition, to use the histogram function groups or bins have to created with a count of variable's values. These bins were created in the 1 worksheet and graphed on the Histogram worksheet. | G40: 1
G41: Histogram
E42: The One Series Formulas has an example of a histogram and gives the functions/ formulas to generate statistics on one variables’ values. | G42: One Series Formulas
E43: In descriptive statistics of continuous variables, you may want to look at the correlation or association of two continuous variables. | G43: Correlation
C44: Inferential Statistics | E44: Inferential statistics are tests on a sample dataset meant to infer or deduce characteristics of the population from which it was drawn. | G44: Inferential Statistics
E45: Chi-Square tests used for counts of character variables allow the test for goodness of fit and the test for independence. One example has a test of equal numbers of males and females (2x1 - one variable two values). The second example tests whether there is an equal distribution of married adults in females and males (2x2 - two variables with four values). | G45: Chi-Square 2x1
G46: Chi-Square 2X2
E47: The Two Series Formulas have all the formulas used in the One Series Formulas Plus tests that compare two variables' means (Students t-test) and variances (F test). | G47: Two Series Formulas
E48: The TookPak add-in with Excel does many statistical tests. One is the test of equality of means for samples. This is the Student's t-test. An F test is done first in order to test for equal variances. | G48: Means ToolPak
E49: The ANOVA took in ToolPak will test the equality of means of more than two variables. A fictitious dataset is used. | G49: ANOVA ToolPak
E50: Linear regression is a linear relationship assumed between two continuous variables. It is always important to plot the values first. | G50: Regression Plot
E51: Using Excel's TookPak the linear association between two variables is tested. | G51: Regression Results
C52: Definitions | E52: Very brief list of definitions. | G52: Definitions
C53: Resources | E53: URL's for further help with Excel and statistics. | G53: Resources

Sheet Excel Tips
C2: Data - Planning, Editing, and Formatting with Excel - Test the Ribbon and Tabs | E2: TOC
C3: Excel Tips
C4: Useful Functions
C5: Before starting with data know your handy Excel functions:
C6: 1 | D6: Additional Icons or Buttons on your Quick Access Toolbar - You may want to include icons that are not part of the standard, formatting, or drawing icons. To see the list of options go to the Down Arrow on the Quick Access Toolbar (top row above the FILE
C7: 2 | D7: It would help if you have some experience using Excel. However, even with minimal experience you can learn Excel by pressing headers, buttons, and icons to see what they do. I would encourage you to right click each header and check the available options and click on them to see what they can do. Or you can press F1 for Excel help.
C8: 3 | D8: This page 'Excel Tips' is a Worksheet. The whole file "Excel File For Database, March 15, 2017 is a Workbook.
C9: 4 | D9: This block of text is in a cell. The reference to this cell is column D, row 9; D9
C10: 5 | D10: fx Formulas - If you do not have the fx tab in view (the formula bar where you can see what you are typing) then go to View and check Formula Bar. While you are at it check Headings, Ruler, and Gridlines also.
C11: 6 | D11: Additional Icons or Buttons on your Quick Access Toolbar - You may want to include icons that are not part of the standard, formatting, or drawing icons. To see the list of options go to the Down Arrow on the Quick Access Toolbar (top row above the FILE tab) and hit More Commands.
C12: 7 | D12: Paint brush - In the upper left corner. You can single left click on the paint brush icon it 'paints' the format of that cell you are on (or range of cells) to the next cell you click on (or range of cells).
D13: if you double click on the paint brush icon it 'paints' the format on any cell you click until you click the paint brush again.
C14: 8 | D14: Freeze panes - this option is very useful if you have a large table and want to see your column and/or row headers as you scroll. To 'freeze' the location of the outer margins of your worksheet you click on the cell where you would like the margins to stay above and to the left of the cell and go to View and Freeze Panes. Now when you scroll your column and row headers will stay in view. To undo click on View and Unfreeze Panes.
C15: 9 | D15: If you're new to the ribbon, the information in this section can help you understand the ribbon's keyboard shortcut model. The ribbon comes with new shortcuts, called Key Tips. To make the Key Tips appear, press ALT and then the number or letter of what you would like to happen.
C17: 10 | D17: Cell reference
C18: column C row 18 | D18: Please note the cell to the left is cell C18, column C, row 18; if we want to copy the contents of cell C18 we can do that by using a formula and 'referencing' cell C18.
C19: formula | D19: =C18
C20: see result remove space | D20: Remove the space before the = sign in the cell above and see what happens, then examine the contents of cell D19 (it is a formula pointing to C18).
C21: copy | D21: After removing the space in cell D19 copy the cell contents of D19 below and see what happens……
D23: The result is not the same and that is because the reference changes depending on the where the cell contents are placed (the formula changes)
D24: if you want to have the cell reference the same regardless of where the formula is placed use a $ in front of the column to 'freeze' the column reference or in front of the row to 'freeze' the row reference or both! Try removing the space in front of the =$C$18 below.
D26: =$C$18
C27: 11 | D27: Cell Range Reference
D28: You can refer to a cell range in formulas.
D29: For example C1:C10 refers to the first ten cells of column C
D30: You can use this reference to do multiple calculations; for example to sum a column of numbers you need an = sign then SUM and what you want to sum. Notice that the text cell (C18) was 'overlooked'.
D31: = SUM(C6:C25)
D32: Remove the space before the = sign and see the result…..
D33: You can also add $ to 'freeze' the reference to cells. This will give the same result when you copy and paste the cell to any location. Remove the space in the formula below and see the result.
D34: = SUM($C$6:$C$25)
C35: 12 | D35: Will my old shortcuts still work?
D36: Keyboard shortcuts that begin with the CTRL tab on your keyboard will still work in Excel 2010 and forward. For example, CTRL+C still copies to the clipboard, and CTRL+V still pastes from the clipboard.
D37: Most of the old ALT+ menu shortcuts still work, too. However, you need to know the full shortcut from memory — there are no screen reminders of what letters to press. For example, try pressing ALT, and then press one of the old menu keys E (Edit), V (View), I (Insert), and so on. A box pops up saying you're using an access key from an earlier version of Microsoft Office. If you know the entire key sequence, go ahead and initiate the command. If you don't know the sequence, press ESC and use Key Tips instead.
C38: 13 | D38: Autofill Cells - You can repeat a calculation throughout a range of cells inserting a formula into one cell and dragging that formula into adjacent cells.
D39: a. Type the formula into a cell
D40: b. Click on the cell and position the cursor on the lower right corner of the cell (it changes to crosshairs with no arrows on the end) and left click on the crosshairs.
D41: c. Drag the cell into as many cells as you want to 'fill' with the formula
D42: d. If you now click on one of the cells (not the initial cell) you will notice the formula has adjusted and is now relative to it's adjacent cells.
D43: e. If you want to drag on cells but not have the formula change you can put a $ sign in front of the column and/or row reference number to 'lock' it on the original formula cell references.
D44: For example:
D45: =C6+C7 | E45: =C6+C7 -> 3
C46: dragged formula from cell D45 to D46 | D46: =C7+C8 | E46: =C7+C8 -> 5 | F46: different value
C48: formula with $sign in front of the cell row reference | D48: =C$6+C$7 | E48: =C$6+C$7 -> 3
C49: formula dragged from cell D48 | D49: =C$6+C$7 | E49: =C$6+C$7 -> 3 | F49: same value
D50: f. Please notice that the formula that is used in E45 appears in D45 with a space in front of the = sign. To use the formula the space has to be removed.
D51: g. To reveal formulas that are in use do CTRL and press the ~ button on your keyboard. To switch back repeat the action.
C52: 14 | D52: To print a table or figure go to PAGE LAYOUT and then Print Area highlight the cells that you want to print and hit Print Area. Then go to VIEW and hit Page Break View and you will see blue lines where the page will break. You can move those lines by placing the left mouse button on the line and 'sliding' it. Some of these worksheets are formatted for Print Area and Page Break.
C54: 15 | D54: Caveat "All previous versions of Microsoft Excel until Excel 2007 have been criticized by statisticians for several reasons, including the accuracy of statistical functions, the properties of the random number generator, the quality of statistical add-ins, the weakness of the Solver for nonlinear regression, and the data graphical representation" ....."given the recent release of Excel 2010 ...... for the purpose of comparison. The conclusion is that the stream of papers, mainly in Computational Statistics and Data Analysis, has started to pay off: Microsoft has partially improved the statistical aspects of Excel, essentially the statistical functions and the random number generator."
D56: Guy Mélard, 2014, On the accuracy of statistical procedures in Microsoft Excel 2010. Computational Statistics. Volume 29:5, pp 1095-1128.

Sheet Group Rows or Columns
A1: IDN | B1: GENDER | C1: AGE | D1: POVERTY_VALUE | E1: MARITAL STATUS | F1: URBAN_RURAL | G1: URBAN_RURAL2 | H1: BMI | I1: ETHNICITY
A2: 1 | B2: Female | C2: 34 | D2: 133 | E2: 2 | F2: 0 | G2: Rural | H2: 39.1 | I2: Other | J2: TOC
A3: 2 | B3: Male | C3: 56 | D3: 486 | E3: 1 | F3: 1 | G3: Urban | H3: 35 | I3: Japanese
A4: 3 | B4: Female | C4: 73 | D4: 75 | E4: 1 | F4: 0 | G4: Rural | H4: 34.8 | I4: Other
A5: 4 | B5: Male | C5: 42 | D5: 738 | E5: 1 | F5: 1 | G5: Urban | H5: 34.5 | I5: Native Hawaiian/Part | J5: Tip For Organizing Data - Highlight rows or columns and go to data and choose group or ungroup. The table is formatted using the Format as Table on the HOME tab.
A6: 5 | B6: Female | C6: 55 | D6: 192 | E6: 2 | F6: 0 | G6: Rural | H6: 38 | I6: White
A7: 6 | B7: Female | C7: 67 | D7: 399 | E7: 2 | F7: 1 | G7: Urban | H7: 34.3 | I7: Other
A8: 7 | B8: Male | C8: 23 | D8: 281 | E8: 2 | F8: 0 | G8: Rural | H8: 40.2 | I8: White
A9: 8 | B9: Male | C9: 85 | D9: 340 | E9: 1 | F9: 1 | G9: Urban | H9: 38.4 | I9: Japanese
A10: 9 | B10: Male | C10: 43 | D10: 174 | E10: 1 | F10: 0 | G10: Rural | H10: 38.8 | I10: Other
A11: 10 | B11: Female | C11: 54 | D11: 997 | E11: 2 | F11: 1 | G11: Urban | H11: 35.5 | I11: Native Hawaiian/Part
A12: 11 | B12: Female | C12: 66 | D12: 738 | E12: 2 | F12: 0 | G12: Rural | H12: 38.6 | I12: Japanese
A13: 12 | B13: Female | C13: 75 | D13: 133 | E13: 2 | F13: 0 | G13: Rural | H13: 39.2 | I13: Native Hawaiian/Part
A14: 13 | B14: Male | C14: 23 | D14: 379 | E14: 1 | F14: 0 | G14: Rural | H14: 36.5 | I14: Japanese
A15: 14 | B15: Male | C15: 44 | D15: 738 | E15: 1 | F15: 1 | G15: Urban | H15: 36.6 | I15: White
A16: 15 | B16: Female | C16: 73 | D16: 498 | E16: 1 | F16: 0 | G16: Rural | H16: 36.8 | I16: White
A17: 16 | B17: Male | C17: 87 | D17: 340 | E17: 1 | F17: 1 | G17: Urban | H17: 41.1 | I17: Japanese
A18: 17 | B18: Male | C18: 64 | D18: 415 | E18: 2 | F18: 1 | G18: Urban | H18: 34.5 | I18: Filipino
A19: 18 | B19: Female | C19: 54 | D19: 202 | E19: 1 | F19: 1 | G19: Urban | H19: 35.2 | I19: White
A20: 19 | B20: Male | C20: 23 | D20: 459 | E20: 2 | F20: 0 | G20: Rural | H20: 37.4 | I20: Other
A21: 20 | B21: Male | C21: 45 | D21: 310 | E21: 1 | F21: 0 | G21: Rural | H21: 38 | I21: White
A22: 21 | B22: Female | C22: 55 | D22: 486 | E22: 1 | F22: 1 | G22: Urban | H22: 36.4 | I22: Native Hawaiian/Part
A23: 22 | B23: Female | C23: 34 | D23: 192 | E23: 1 | F23: 0 | G23: Rural | H23: 38.4 | I23: Other
A24: 23 | B24: Male | C24: 75 | D24: 82 | E24: 2 | F24: 1 | G24: Urban | H24: 44.3 | I24: Other
A25: 24 | B25: Female | C25: 65 | D25: 340 | E25: 2 | F25: 1 | G25: Urban | H25: 36 | I25: White
A26: 25 | B26: Male | C26: 45 | D26: 74 | E26: 1 | F26: 1 | G26: Urban | H26: 49.9 | I26: Japanese
A27: 26 | B27: Female | C27: 44 | D27: 281 | E27: 1 | F27: 0 | G27: Rural | H27: 34.2
A28: 27 | B28: Female | C28: 33 | D28: 94 | E28: 2 | F28: 0 | G28: Rural | H28: 41 | I28: Japanese
A29: 28 | B29: Female | C29: 66 | D29: 459 | E29: 2 | F29: 1 | G29: Urban | H29: 34.1 | I29: Native Hawaiian/Part
A30: 29 | B30: Female | C30: 43 | D30: 340 | E30: 2 | F30: 1 | G30: Urban | H30: 38.8 | I30: Japanese
A31: 30 | B31: Female | C31: 55 | D31: 162 | E31: 1 | F31: 0 | G31: Rural | H31: 36.8 | I31: Other
A32: 31 | B32: Male | C32: 43 | D32: 583 | E32: 1 | F32: 0 | G32: Rural | H32: 40.7 | I32: Japanese
A33: 32 | B33: Female | C33: 56 | D33: 583 | E33: 1 | F33: 0 | G33: Rural | H33: 34.2 | I33: Other
A34: 33 | B34: Female | C34: 34 | D34: 399 | E34: 2 | F34: 0 | G34: Rural | H34: 35.9 | I34: Filipino
A35: 34 | B35: Female | C35: 54 | D35: 538 | E35: 1 | F35: 0 | G35: Rural | H35: 37.8 | I35: Other
A36: 35 | B36: Male | C36: 78 | D36: 586 | E36: 2 | F36: 0 | G36: Rural | H36: 36 | I36: Japanese
A37: 36 | B37: Male | C37: 88 | D37: 225 | E37: 2 | F37: 0 | G37: Rural | H37: 40.7 | I37: Japanese
A38: 37 | B38: Male | C38: 33 | D38: 997 | E38: 2 | F38: 1 | G38: Urban | H38: 40.2 | I38: White
A39: 38 | B39: Female | C39: 22 | D39: 399 | E39: 1 | F39: 1 | G39: Urban | H39: 45.6 | I39: White
A40: 39 | B40: Female | C40: 45 | D40: 141 | E40: 2 | F40: 1 | G40: Urban | H40: 35.8 | I40: Native Hawaiian/Part
A41: 40 | B41: Male | C41: 33 | D41: 125 | E41: 2 | F41: 1 | G41: Urban | H41: 36.9 | I41: Japanese
A42: 41 | B42: Female | C42: 32 | D42: 586 | E42: 1 | F42: 0 | G42: Rural | H42: 35.4 | I42: Filipino
A43: 42 | B43: Female | C43: 54 | D43: 415 | E43: 1 | F43: 0 | G43: Rural | H43: 34.7 | I43: Native Hawaiian/Part
A44: 43 | B44: Female | C44: 43 | D44: 586 | E44: 1 | F44: 1 | G44: Urban | H44: 35 | I44: White
A45: 44 | B45: Female | C45: 55 | D45: 152 | E45: 2 | F45: 1 | G45: Urban | H45: 37.4 | I45: Filipino
A46: 45 | B46: Female | C46: 77 | D46: 586 | E46: 1 | F46: 0 | G46: Rural | H46: 40.4 | I46: Other
A47: 46 | B47: Female | C47: 45 | D47: 379 | E47: 1 | F47: 0 | G47: Rural | H47: 42.9 | I47: Unknown
A48: 47 | B48: Female | C48: 32 | D48: 103 | E48: 2 | F48: 0 | G48: Rural | H48: 61.8 | I48: Japanese
A49: 48 | B49: Female | C49: 23 | D49: 133 | E49: 2 | F49: 1 | G49: Urban | H49: 36.6 | I49: Filipino
A50: 49 | B50: Female | C50: 44 | D50: 315 | E50: 2 | F50: 1 | G50: Urban | H50: 40.4 | I50: White
A51: 50 | B51: Female | C51: 54 | D51: 65 | E51: 2 | F51: 1 | G51: Urban | H51: 35 | I51: Other
A52: 51 | B52: Male | C52: 76 | D52: 997 | E52: 2 | F52: 0 | G52: Rural | H52: 39.2 | I52: Japanese
A53: 52 | B53: Female | C53: 43 | D53: 459 | E53: 1 | F53: 0 | G53: Rural | H53: 34.2 | I53: Other
A54: 53 | B54: Female | C54: 56 | D54: 517 | E54: 1 | F54: 1 | G54: Urban | H54: 35.2 | I54: White
A55: 54 | B55: Female | C55: 77 | D55: 340 | E55: 1 | F55: 1 | G55: Urban | H55: 34 | I55: Japanese
A56: 55 | B56: Female | C56: 44 | D56: 517 | E56: 2 | F56: 1 | G56: Urban | H56: 37.2 | I56: White
A57: 56 | B57: Female | C57: 76 | D57: 165 | E57: 2 | F57: 0 | G57: Rural | H57: 35.4 | I57: Other
A58: 57 | B58: Female | C58: 76 | D58: 586 | E58: 2 | F58: 0 | G58: Rural | H58: 47.2 | I58: White
A59: 58 | B59: Female | C59: 43 | D59: 340 | E59: 2 | F59: 0 | G59: Rural | H59: 34.3 | I59: Other
A60: 59 | B60: Female | C60: 23 | D60: 340 | E60: 2 | F60: 1 | G60: Urban | H60: 34.8 | I60: Native Hawaiian/Part
A61: 60 | B61: Male | C61: 77 | D61: 223 | E61: 1 | F61: 1 | G61: Urban | H61: 35.9 | I61: Other
A62: 61 | B62: Male | C62: 65 | D62: 410 | E62: 1 | F62: 1 | G62: Urban | H62: 34.9 | I62: Native Hawaiian/Part
A63: 62 | B63: Male | C63: 43 | D63: 140 | E63: 1 | F63: 0 | G63: Rural | H63: 35.9 | I63: Native Hawaiian/Part
A64: 63 | B64: Male | C64: 65 | D64: 586 | E64: 1 | F64: 0 | G64: Rural | H64: 36.8 | I64: Japanese
A65: 64 | B65: Female | C65: 34 | D65: 60 | E65: 2 | F65: 0 | G65: Rural | H65: 45.2 | I65: Japanese
A66: 65 | B66: Male | C66: 23 | D66: 886 | E66: 1 | F66: 1 | G66: Urban | H66: 35 | I66: Native Hawaiian/Part
A67: 66 | B67: Male | C67: 54 | D67: 110 | E67: 2 | F67: 1 | G67: Urban | H67: 35.5 | I67: Japanese
A68: 67 | B68: Female | C68: 65 | D68: 199 | E68: 1 | F68: 0 | G68: Rural | H68: 42.1 | I68: Other
A69: 68 | B69: Male | C69: 44 | D69: 91 | E69: 2 | F69: 0 | G69: Rural | H69: 39.1 | I69: Filipino
A70: 69 | B70: Male | C70: 76 | D70: 419 | E70: 2 | F70: 1 | G70: Urban | H70: 62.6 | I70: Japanese
A71: 70 | B71: Male | C71: 64 | D71: 191 | E71: 2 | F71: 1 | G71: Urban | H71: 35.4 | I71: Native Hawaiian/Part
A72: 71 | B72: Female | C72: 77 | D72: 410 | E72: 1 | F72: 0 | G72: Rural | H72: 46.8 | I72: Filipino
A73: 72 | B73: Female | C73: 66 | D73: 152 | E73: 1 | F73: 0 | G73: Rural | H73: 35 | I73: Other
A74: 73 | B74: Female | C74: 43 | D74: 583 | E74: 1 | F74: 0 | G74: Rural | H74: 34.8 | I74: Other
A75: 74 | B75: Female | C75: 40 | D75: 415 | E75: 2 | F75: 1 | G75: Urban | H75: 40.5 | I75: Other
A76: 75 | B76: Female | C76: 20 | D76: 704 | E76: 2 | F76: 1 | G76: Urban | H76: 37.1 | I76: Other
A77: 76 | B77: Female | C77: 33 | D77: 192 | E77: 2 | F77: 1 | G77: Urban | H77: 35.7 | I77: Native Hawaiian/Part
A78: 77 | B78: Female | C78: 42 | D78: 51 | E78: 1 | F78: 0 | G78: Rural | H78: 35.9 | I78: Other
A79: 78 | B79: Female | C79: 66 | D79: 44 | E79: 1 | F79: 0 | G79: Rural | H79: 37.2 | I79: Japanese
A80: 79 | B80: Female | C80: 54 | D80: 44 | E80: 1 | F80: 0 | G80: Rural | H80: 34.8 | I80: Native Hawaiian/Part
A81: 80 | B81: Female | C81: 43 | D81: 517 | E81: 2 | F81: 1 | G81: Urban | H81: 49.4 | I81: Native Hawaiian/Part
A82: 81 | B82: Male | C82: 88 | D82: 219 | E82: 1 | F82: 0 | G82: Rural | H82: 39.9 | I82: Other
A83: 82 | B83: Female | C83: 32 | D83: 310 | E83: 2 | F83: 1 | G83: Urban | H83: 43.9 | I83: White
A84: 83 | B84: Male | C84: 77 | D84: 174 | E84: 1 | F84: 0 | G84: Rural | H84: 71.9 | I84: White
A85: 84 | B85: Female | C85: 43 | D85: 517 | E85: 1 | F85: 1 | G85: Urban | H85: 34.3 | I85: Filipino
A86: 85 | B86: Female | C86: 24 | D86: 410 | E86: 2 | F86: 1 | G86: Urban | H86: 35 | I86: Japanese
A87: 86 | B87: Female | C87: 34 | D87: 997 | E87: 1 | F87: 0 | G87: Rural | H87: 37.2 | I87: White
A88: 87 | B88: Female | C88: 64 | D88: 291 | E88: 2 | F88: 0 | G88: Rural | H88: 46.6 | I88: Native Hawaiian/Part
A89: 88 | B89: Female | C89: 43 | D89: 340 | E89: 2 | F89: 1 | G89: Urban | H89: 46.1 | I89: Japanese
A90: 89 | B90: Male | C90: 77 | D90: 75 | E90: 2 | F90: 0 | G90: Rural | H90: 36.2 | I90: Filipino
A91: 90 | B91: Female | C91: 34 | D91: 222 | E91: 1 | F91: 0 | G91: Rural | H91: 36.6 | I91: Japanese
A92: 91 | B92: Male | C92: 64 | D92: 586 | E92: 1 | F92: 1 | G92: Urban | H92: 41.6 | I92: White
A93: 92 | B93: Male | C93: 48 | D93: 419 | E93: 2 | F93: 1 | G93: Urban | H93: 37.3 | I93: Filipino
A94: 93 | B94: Male | C94: 54 | D94: 200 | E94: 1 | F94: 0 | G94: Rural | H94: 34.7 | I94: Other
A95: 94 | B95: Female | C95: 56 | D95: 738 | E95: 1 | F95: 0 | G95: Rural | H95: 34.9 | I95: White
A96: 95 | B96: Female | C96: 4 | D96: 586 | E96: 1 | F96: 0 | G96: Rural | H96: 37.1 | I96: White
A97: 96 | B97: Female | C97: 36 | D97: 310 | E97: 2 | F97: 0 | G97: Rural | H97: 43.6 | I97: Other
A98: 97 | B98: Female | C98: 40 | D98: 291 | E98: 2 | F98: 1 | G98: Urban | H98: 38.3 | I98: Native Hawaiian/Part
A99: 98 | B99: Female | C99: 42 | D99: 340 | E99: 1 | F99: 1 | G99: Urban | H99: 38.1 | I99: Other
A100: 99 | B100: Male | C100: 56 | D100: 410 | E100: 2 | F100: 1 | G100: Urban | H100: 40 | I100: Japanese
A101: 100 | B101: Female | C101: 23 | D101: 219 | E101: 1 | F101: 1 | G101: Urban | H101: 35.2 | I101: Other

Sheet Excel Shortcuts
B2: EXCEL SHORTCUTS (SOME OF THESE ARE FROM OLDER VERSIONS) | E2: TOC | F2: Bold and red font are ones I use frequently.
B3: FUNCTION | C3: HIT | D3: HIT SECOND | E3: RESULT | F3: WHAT IT DOES
B4: EDITING | C4: ALT | D4: IC | F4: insert a column
B5: EDITING | C5: ALT | D5: IR | F5: insert a row
B6: EDITING | C6: ALT | D6: ES | F6: paste options
B7: EDITING | C7: ALT | D7: EDR | F7: deletes rows
B8: EDITING | C8: ALT | D8: EDC | F8: deletes columns
B9: EDITING | C9: ALT | D9: EDL | F9: shift cells left
B10: EDITING | C10: ALT | D10: EDU | F10: shift cells up
B11: EDITING | C11: CTRL | D11: Z | F11: undo an action, can hit multiple times to undo more actions
B12: EDITING | C12: CTRL | D12: Y | F12: redo an action, can hit multiple times to redo more actions
B13: EDITING | C13: ALT | D13: ENTER | F13: to enter a new line within a single cell
B14: EDITING | C14: CTRL | D14: PGDN | F14: worksheet down
B15: EDITING | C15: CTRL | D15: PGUP | F15: worksheet up
B16: EDITING | C16: CTRL | D16: ALT V | F16: paste options
B17: EDITING | C17: CTRL | D17: A | F17: selects all, group of cells, table, or all depending on where cursor is and how many times you do CTRL A
B18: EDITING | C18: CTRL | D18: RIGHT ARROW | F18: move to right edge of data range
B19: EDITING | C19: CTRL | D19: LEFT ARROW | F19: move to left edge of data range
B20: EDITING | C20: CTRL | D20: UP ARROW | F20: move to top edge of data range
B21: EDITING | C21: CTRL | D21: DOWN ARROW | F21: move to bottom edge of data range
B22: EDITING | C22: CTRL | D22: F | F22: to open find box
B23: EDITING | C23: CTRL | D23: H | F23: to open find and replace box
B24: EDITING | C24: CTRL | D24: SPACE | F24: select column within table or worksheet
B25: EDITING | C25: CTRL | D25: G | F25: brings up go to box, The 'Go To' window lets you to go to a named range or an address that you input. It also has 'Special' button that will let you select cells based on several criteria - blank cells, cells that contain constants, cells with formulas, etc. Note that you can also use F5 on Windows and fn F5 on a Mac to display the Go To window.
B26: EDITING | C26: CTRL | D26: ENTER | F26: enter same value in multiple cells, highlight area, enter value and hit CTRL ENTER
B27: EDITING | C27: CTRL | D27: + | F27: insert
B28: EDITING | C28: CTRL | D28: C | F28: copy cells
B29: EDITING | C29: CTRL | D29: V | F29: paste cells
B30: EDITING | C30: SHIFT | D30: SPACE | F30: select row within table or worksheet
B31: EDITING | C31: = A2 | F31: result of formula will place contents of A1 into the cell, remove the space before the =
B32: EDITING | C32: =$A$2 | F32: result of formula will place contents of A1 into the cell even if formula is copied and pasted elsewhere
B33: FORMATTING | C33: ALT | D33: OCH | F33: hide column(s)
B34: FORMATTING | C34: ALT | D34: OCU | F34: unhide column(s)
B35: FORMATTING | C35: ALT | D35: ORH | F35: hide row(s)
B36: FORMATTING | C36: ALT | D36: ORU | F36: unhide row(s)
B37: FORMATTING | C37: CTRL | D37: 1 | F37: opens format box for cells and charts
B38: FORMATTING | C38: CTRL | D38: B | F38: bold cell contents
B39: FORMATTING | C39: CTRL | D39: I | F39: italicizes cell contents
B40: FORMATTING | C40: CTRL | D40: U | F40: underlines cell contents
B41: FORMATTING | C41: CTRL | D41: SHIFT $ | E41: 1 | F41: format as currency, used 1
B42: FORMATTING | C42: CTRL | D42: SHIFT % | E42: 1 | F42: format as percentage, used 1
B43: FORMATTING | C43: CTRL | D43: SHIFT # | E43: 2000-01-01 | F43: format as date, used 1
B44: FORMATTING | C44: CTRL | D44: SHIFT @ | E44: 00:00:00 | F44: format as time, used 1
B45: FORMATTING | C45: CTRL | D45: SHIFT ! | E45: 1 | F45: format as number, used 1
B46: FORMATTING | C46: CTRL | D46: ‛ | F46: Show all formulas, hit again to show results
B47: FORMATTING | C47: PAINTBRUSH | F47: click once to use to copy formatting once or twice to use to copy formatting multiple times, reclick it to turn off

Sheet Excel Formulas
B2: Data - Planning, Editing, and Formatting with Excel - Excel Formula Examples | D2: TOC
B3: FUNCTION | C3: FORMULA | D3: EXAMPLE | E3: RESULT
B4: COPY ANOTHER CELL | C4: = B7 | E4: =B7 -> LOWER CASE ALL LETTERS
B5: COPY ANOTHER CELL AND RETAIN REFERENCE | C5: =$B$7 | E5: =$B$7 -> LOWER CASE ALL LETTERS
B6: CAPITALIZE ONLY FIRST LETTER | C6: =PROPER(D6) | D6: MY COW ATE GRASS | E6: =PROPER(D6) -> My Cow Ate Grass
B7: LOWER CASE ALL LETTERS | C7: = LOWER(D7) | D7: MY COW ATE GRASS | E7: =LOWER(D7) -> my cow ate grass
B8: UPPER CASE ALL LETTERS | C8: =UPPER(D8) | D8: my cow ate grass | E8: =UPPER(D8) -> MY COW ATE GRASS
B9: COMPARE VALUES OF CELLS | C9: =IF(D5=D6,VALUEIFTRUE, VALUEIFFALSE ) | D9: =IF(D5=D6,TRUE,FALSE) | E9: =IF(D6=D7,TRUE,FALSE) -> TRUE
B10: COMPARE VALUES OF CELLS | C10: =IF(E8=E9,"RIGHT","WRONG") | E10: =IF(E8=E9,"RIGHT","WRONG") -> WRONG
B11: TEST COMPARISON AND RETURN VALUE | C11: =IF(1=1,TRUE,FALSE) | E11: =IF(1=1,TRUE,FALSE) -> TRUE
B12: COUNT #CELLS THAT HAVE #'S | C12: =COUNT(D4:D9) | E12: =COUNT(D4:D9) -> 0
B13: COUNT #CELLS WITH BLANKS | C13: =COUNTBLANK(E4:E9) | E13: =COUNTBLANK(E4:E9) -> 0
B14: COUNT # CELLS NOT BLANK | C14: =COUNTA(E4:E9) | E14: =COUNTA(E4:E9) -> 6
B15: COUNT #CELLS BY A RANGE | C15: =COUNTIF(E9:E14, ">3") | E15: =COUNTIF(E9:E14, ">3") -> 1
B16: COUNT CELLS IF CERTAIN VALUE | C16: =COUNTIF(D4:D11,"MY COW ATE GRASS") | E16: =COUNTIF(D4:D11,"MY COW ATE GRASS") -> 3
B17: COUNT #CELLS BY A RANGE | C17: =COUNTIFS(FINAL!B2:B101, "FEMALE",FINAL!E2:E101,1) | D17: counts females married on the FINAL datasheet (with a ! to refer to that sheet) | E17: =COUNTIFS(FINAL!B2:B101, "FEMALE",FINAL!E2:E101,1) -> 32
B18: AVERAGE CELLS IF CERTAIN VALUE | C18: =AVERAGEIF(E12:E16,">2") | E18: =AVERAGEIF(E12:E16,">2") -> 4.5
B19: NESTED FORMULA (64 POSSIBLE) | C19: = IF(SUM(E12:E16)>8,AVERAGE(E12:E16)) | E19: =IF(SUM(E12:E16)>8,AVERAGE(E12:E16)) -> 2

Sheet Select Excel Functions
B1: SOURCE: MICROSOFT EXCEL FUNCTIONS (SELECTED AND SORTED BY TOPIC) Applies To: Excel 2016 Excel 2013 Excel 2010 Excel 2007 Excel 2016 for Mac Excel for Mac 2011
B2: https://support.office.com/en-nz/article/Excel-s-alphabetical-b3944572-255d-4efb-bb96-c6d90033e188?CorrelationId=d97ef656-44c4-40c6-ac02-8e3942b7c439&ui=en-US&rs=en-NZ&ad=NZ | D2: TOC
B3: Excel Formulas (SORTED BY TYPE)
C4: Any changes to the Worksheet May Break Hyperlinks.
B6: NAME | C6: TYPE AND FUNCTION | D6: HYPERLINK TO SECTIONS
B7: EUROCONVERT | C7: Add-in and Automation: Converts a number to euros, converts a number from euros to a euro member currency, or converts a number from one euro member currency to another by using the euro as an intermediary (triangulation). | D7: Add-In
B8: GETPIVOTDATA | C8: Add-in and Automation: Returns data stored in a PivotTable report | D8: Compatibility
B9: BINOMDIST | C9: Compatibility: Returns the individual term binomial distribution probability | D9: Database
B10: CHIDIST | C10: Compatibility: Returns the one-tailed probability of the chi-squared distribution | D10: Date and Time
B11: CHITEST | C11: Compatibility: Returns the test for independence | D11: Financial
B12: CONFIDENCE | C12: Compatibility: Returns the confidence interval for a population mean | D12: Information
B13: COVAR | C13: Compatibility: Returns covariance, the average of the products of paired deviations | D13: Logical
B14: EXPONDIST | C14: Compatibility: Returns the exponential distribution | D14: Lookup and Reference
B15: FDIST | C15: Compatibility: Returns the F probability distribution | D15: Math and Trigonometry
B16: FLOOR | C16: Compatibility: Rounds a number down, toward zero | D16: Statistical
B17: FTEST | C17: Compatibility: Returns the result of an F-test | D17: Text Web
B18: GAMMADIST | C18: Compatibility: Returns the gamma distribution
B19: LOGINV | C19: Compatibility: Returns the inverse of the lognormal cumulative distribution
B20: LOGNORMDIST | C20: Compatibility: Returns the cumulative lognormal distribution
B21: MODE | C21: Compatibility: Returns the most common value in a data set
B22: NEGBINOMDIST | C22: Compatibility: Returns the negative binomial distribution
B23: NORMDIST | C23: Compatibility: Returns the normal cumulative distribution
B24: NORMSDIST | C24: Compatibility: Returns the standard normal cumulative distribution
B25: PERCENTILE | C25: Compatibility: Returns the k-th percentile of values in a range
B26: PERCENTRANK | C26: Compatibility: Returns the percentage rank of a value in a data set
B27: POISSON | C27: Compatibility: Returns the Poisson distribution
B28: QUARTILE | C28: Compatibility: Returns the quartile of a data set
B29: RANK | C29: Compatibility: Returns the rank of a number in a list of numbers
B30: STDEV | C30: Compatibility: Estimates standard deviation based on a sample
B31: STDEVP | C31: Compatibility: Calculates standard deviation based on the entire population
B32: TDIST | C32: Compatibility: Returns the Student's t-distribution
B33: TTEST | C33: Compatibility: Returns the probability associated with a Student's t-test
B34: VAR | C34: Compatibility: Estimates variance based on a sample
B35: VARP | C35: Compatibility: Calculates variance based on the entire population
B36: WEIBULL | C36: Compatibility: Calculates variance based on the entire population, including numbers, text, and logical values
B37: ZTEST | C37: Compatibility: Returns the one-tailed probability-value of a z-test | D37: TOP
B38: DAVERAGE | C38: Database: Returns the average of selected database entries
B39: DCOUNT | C39: Database: Counts the cells that contain numbers in a database
B40: DCOUNTA | C40: Database: Counts nonblank cells in a database
B41: DGET | C41: Database: Extracts from a database a single record that matches the specified criteria
B42: DMAX | C42: Database: Returns the maximum value from selected database entries
B43: DMIN | C43: Database: Returns the minimum value from selected database entries
B44: DPRODUCT | C44: Database: Multiplies the values in a particular field of records that match the criteria in a database
B45: DSTDEV | C45: Database: Estimates the standard deviation based on a sample of selected database entries
B46: DSTDEVP | C46: Database: Calculates the standard deviation based on the entire population of selected database entries
B47: DSUM | C47: Database: Adds the numbers in the field column of records in the database that match the criteria
B48: DVAR | C48: Database: Estimates variance based on a sample from selected database entries
B49: DVARP | C49: Database: Calculates variance based on the entire population of selected database entries | D49: TOP
B50: DATE | C50: Date and time: Returns the serial number of a particular date
B51: DATEDIF | C51: Date and time: Calculates the number of days, months, or years between two dates. This function is useful in formulas where you need to calculate an age.
B52: DATEVALUE | C52: Date and time: Converts a date in the form of text to a serial number
B53: DAY | C53: Date and time: Converts a serial number to a day of the month
B54: DAYS | C54: Date and time: Returns the number of days between two dates
B55: DAYS360 | C55: Date and time: Calculates the number of days between two dates based on a 360-day year
B56: EDATE | C56: Date and time: Returns the serial number of the date that is the indicated number of months before or after the start date
B57: EOMONTH | C57: Date and time: Returns the serial number of the last day of the month before or after a specified number of months
B58: HOUR | C58: Date and time: Converts a serial number to an hour
B59: MINUTE | C59: Date and time: Converts a serial number to a minute
B60: MONTH | C60: Date and time: Converts a serial number to a month
B61: NETWORKDAYS | C61: Date and time: Returns the number of whole workdays between two dates
B62: NETWORKDAYS.INTL | C62: Date and time: Returns the number of whole workdays between two dates using parameters to indicate which and how many days are weekend days
B63: NOW | C63: Date and time: Returns the serial number of the current date and time
B64: SECOND | C64: Date and time: Converts a serial number to a second
B65: TIME | C65: Date and time: Returns the serial number of a particular time
B66: TIMEVALUE | C66: Date and time: Converts a time in the form of text to a serial number
B67: TODAY | C67: Date and time: Returns the serial number of today's date
B68: WEEKDAY | C68: Date and time: Converts a serial number to a day of the week
B69: WEEKNUM | C69: Date and time: Converts a serial number to a number representing where the week falls numerically with a year
B70: WORKDAY | C70: Date and time: Returns the serial number of the date before or after a specified number of workdays
B71: WORKDAY.INTL | C71: Date and time: Returns the serial number of the date before or after a specified number of workdays using parameters to indicate which and how many days are weekend days
B72: YEAR | C72: Date and time: Converts a serial number to a year
B73: YEARFRAC | C73: Date and time: Returns the year fraction representing the number of whole days between start_date and end_date
B74: ACCRINT | C74: Financial: Returns the accrued interest for a security that pays periodic interest | D74: TOP
B75: ACCRINTM | C75: Financial: Returns the accrued interest for a security that pays interest at maturity
B76: AMORDEGRC | C76: Financial: Returns the depreciation for each accounting period by using a depreciation coefficient
B77: AMORLINC | C77: Financial: Returns the depreciation for each accounting period
B78: COUPDAYBS | C78: Financial: Returns the number of days from the beginning of the coupon period to the settlement date
B79: COUPDAYS | C79: Financial: Returns the number of days in the coupon period that contains the settlement date
B80: COUPDAYSNC | C80: Financial: Returns the number of days from the settlement date to the next coupon date
B81: COUPNCD | C81: Financial: Returns the next coupon date after the settlement date
B82: COUPNUM | C82: Financial: Returns the number of coupons payable between the settlement date and maturity date
B83: COUPPCD | C83: Financial: Returns the previous coupon date before the settlement date
B84: CUMIPMT | C84: Financial: Returns the cumulative interest paid between two periods
B85: CUMPRINC | C85: Financial: Returns the cumulative principal paid on a loan between two periods
B86: DB | C86: Financial: Returns the depreciation of an asset for a specified period by using the fixed-declining balance method
B87: DDB | C87: Financial: Returns the depreciation of an asset for a specified period by using the double-declining balance method or some other method that you specify
B88: DISC | C88: Financial: Returns the discount rate for a security
B89: DOLLARDE | C89: Financial: Converts a dollar price, expressed as a fraction, into a dollar price, expressed as a decimal number
B90: DOLLARFR | C90: Financial: Converts a dollar price, expressed as a decimal number, into a dollar price, expressed as a fraction
B91: DURATION | C91: Financial: Returns the annual duration of a security with periodic interest payments
B92: EFFECT | C92: Financial: Returns the effective annual interest rate
B93: FV | C93: Financial: Returns the future value of an investment
B94: FVSCHEDULE | C94: Financial: Returns the future value of an initial principal after applying a series of compound interest rates
B95: INTRATE | C95: Financial: Returns the interest rate for a fully invested security
B96: IPMT | C96: Financial: Returns the interest payment for an investment for a given period
B97: IRR | C97: Financial: Returns the internal rate of return for a series of cash flows
B98: ISPMT | C98: Financial: Calculates the interest paid during a specific period of an investment
B99: MDURATION | C99: Financial: Returns the Macauley modified duration for a security with an assumed par value of $100
B100: MIRR | C100: Financial: Returns the internal rate of return where positive and negative cash flows are financed at different rates
B101: NOMINAL | C101: Financial: Returns the annual nominal interest rate
B102: NPER | C102: Financial: Returns the number of periods for an investment
B103: NPV | C103: Financial: Returns the net present value of an investment based on a series of periodic cash flows and a discount rate
B104: ODDFPRICE | C104: Financial: Returns the price per $100 face value of a security with an odd first period
B105: ODDFYIELD | C105: Financial: Returns the yield of a security with an odd first period
B106: ODDLPRICE | C106: Financial: Returns the price per $100 face value of a security with an odd last period
B107: ODDLYIELD | C107: Financial: Returns the yield of a security with an odd last period
B108: PDURATION | C108: Financial: Returns the number of periods required by an investment to reach a specified value
B109: PMT | C109: Financial: Returns the periodic payment for an annuity
B110: PPMT | C110: Financial: Returns the payment on the principal for an investment for a given period
B111: PRICE | C111: Financial: Returns the price per $100 face value of a security that pays periodic interest
B112: PRICEDISC | C112: Financial: Returns the price per $100 face value of a discounted security
B113: PRICEMAT | C113: Financial: Returns the price per $100 face value of a security that pays interest at maturity
B114: PV | C114: Financial: Returns the present value of an investment
B115: RATE | C115: Financial: Returns the interest rate per period of an annuity
B116: RECEIVED | C116: Financial: Returns the amount received at maturity for a fully invested security
B117: RRI | C117: Financial: Returns an equivalent interest rate for the growth of an investment
B118: SLN | C118: Financial: Returns the straight-line depreciation of an asset for one period
B119: SYD | C119: Financial: Returns the sum-of-years' digits depreciation of an asset for a specified period
B120: TBILLEQ | C120: Financial: Returns the bond-equivalent yield for a Treasury bill
B121: TBILLPRICE | C121: Financial: Returns the price per $100 face value for a Treasury bill
B122: TBILLYIELD | C122: Financial: Returns the yield for a Treasury bill
B123: VDB | C123: Financial: Returns the depreciation of an asset for a specified or partial period by using a declining balance method
B124: XIRR | C124: Financial: Returns the internal rate of return for a schedule of cash flows that is not necessarily periodic
B125: XNPV | C125: Financial: Returns the net present value for a schedule of cash flows that is not necessarily periodic
B126: YIELD | C126: Financial: Returns the yield on a security that pays periodic interest
B127: YIELDDISC | C127: Financial: Returns the annual yield for a discounted security; for example, a Treasury bill
B128: YIELDMAT | C128: Financial: Returns the annual yield of a security that pays interest at maturity
B129: CELL | C129: Information: Returns information about the formatting, location, or contents of a cell | D129: TOP
B130: ERROR.TYPE | C130: Information: Returns a number corresponding to an error type
B131: INFO | C131: Information: Returns information about the current operating environment
B132: ISBLANK | C132: Information: Returns TRUE if the value is blank
B133: ISERR | C133: Information: Returns TRUE if the value is any error value except #N/A
B134: ISERROR | C134: Information: Returns TRUE if the value is any error value
B135: ISEVEN | C135: Information: Returns TRUE if the number is even
B136: ISFORMULA | C136: Information: Returns TRUE if there is a reference to a cell that contains a formula
B137: ISLOGICAL | C137: Information: Returns TRUE if the value is a logical value
B138: ISNA | C138: Information: Returns TRUE if the value is the #N/A error value
B139: ISNONTEXT | C139: Information: Returns TRUE if the value is not text
B140: ISNUMBER | C140: Information: Returns TRUE if the value is a number
B141: ISODD | C141: Information: Returns TRUE if the number is odd
B142: ISREF | C142: Information: Returns TRUE if the value is a reference
B143: ISTEXT | C143: Information: Returns TRUE if the value is text
B144: N | C144: Information: Returns a value converted to a number
B145: NA | C145: Information: Returns the error value #N/A
B146: SHEET | C146: Information: Returns the sheet number of the referenced sheet
B147: SHEETS | C147: Information: Returns the number of sheets in a reference
B148: TYPE | C148: Information: Returns a number indicating the data type of a value
B149: AND | C149: Logical: Returns TRUE if all of its arguments are TRUE | D149: TOP
B150: FALSE | C150: Logical: Returns the logical value FALSE
B151: IF | C151: Logical: Specifies a logical test to perform
B152: IFERROR | C152: Logical: Returns a value you specify if a formula evaluates to an error; otherwise, returns the result of the formula
B153: IFNA | C153: Logical: Returns the value you specify if the expression resolves to #N/A, otherwise returns the result of the expression
B154: NOT | C154: Logical: Reverses the logic of its argument
B155: OR | C155: Logical: Returns TRUE if any argument is TRUE
B156: TRUE | C156: Logical: Returns the logical value TRUE
B157: XOR | C157: Logical: Returns a logical exclusive OR of all arguments
B158: ADDRESS | C158: Lookup and reference: Returns a reference as text to a single cell in a worksheet | D158: TOP
B159: AREAS | C159: Lookup and reference: Returns the number of areas in a reference
B160: CHOOSE | C160: Lookup and reference: Chooses a value from a list of values
B161: COLUMN | C161: Lookup and reference: Returns the column number of a reference
B162: COLUMNS | C162: Lookup and reference: Returns the number of columns in a reference
B163: FORMULATEXT | C163: Lookup and reference: Returns the formula at the given reference as text
B164: HLOOKUP | C164: Lookup and reference: Looks in the top row of an array and returns the value of the indicated cell
B165: HYPERLINK | C165: Lookup and reference: Creates a shortcut or jump that opens a document stored on a network server, an intranet, or the Internet
B166: INDEX | C166: Lookup and reference: Uses an index to choose a value from a reference or array
B167: INDIRECT | C167: Lookup and reference: Returns a reference indicated by a text value
B168: LOOKUP | C168: Lookup and reference: Looks up values in a vector or array
B169: MATCH | C169: Lookup and reference: Looks up values in a reference or array
B170: ROW | C170: Lookup and reference: Returns the row number of a reference
B171: ROWS | C171: Lookup and reference: Returns the number of rows in a reference
B172: TRANSPOSE | C172: Lookup and reference: Returns the transpose of an array
B173: VLOOKUP | C173: Lookup and reference: Looks in the first column of an array and moves across the row to return the value of a cell
B174: ABS | C174: Math and trigonometry: Returns the absolute value of a number | D174: TOP
B175: AGGREGATE | C175: Math and trigonometry: Returns an aggregate in a list or database
B176: ARABIC | C176: Math and trigonometry: Converts a Roman number to Arabic, as a number
B177: CEILING | C177: Math and trigonometry: Rounds a number to the nearest integer or to the nearest multiple of significance
B178: CEILING.MATH | C178: Math and trigonometry: Rounds a number up, to the nearest integer or to the nearest multiple of significance
B179: CEILING.PRECISE | C179: Math and trigonometry: Rounds a number the nearest integer or to the nearest multiple of significance. Regardless of the sign of the number, the number is rounded up.
B180: COMBIN | C180: Math and trigonometry: Returns the number of combinations for a given number of objects
B181: DECIMAL | C181: Math and trigonometry: Converts a text representation of a number in a given base into a decimal number
B182: EVEN | C182: Math and trigonometry: Rounds a number up to the nearest even integer
B183: EXP | C183: Math and trigonometry: Returns e raised to the power of a given number
B184: FACT | C184: Math and trigonometry: Returns the factorial of a number
B185: FLOOR.MATH | C185: Math and trigonometry: Rounds a number down, to the nearest integer or to the nearest multiple of significance
B186: FLOOR.PRECISE | C186: Math and trigonometry: Rounds a number the nearest integer or to the nearest multiple of significance. Regardless of the sign of the number, the number is rounded up.
B187: GCD | C187: Math and trigonometry: Returns the greatest common divisor
B188: INT | C188: Math and trigonometry: Rounds a number down to the nearest integer
B189: ISO.CEILING | C189: Math and trigonometry: Returns a number that is rounded up to the nearest integer or to the nearest multiple of significance
B190: LN | C190: Math and trigonometry: Returns the natural logarithm of a number
B191: LOG | C191: Math and trigonometry: Returns the logarithm of a number to a specified base
B192: LOG10 | C192: Math and trigonometry: Returns the base-10 logarithm of a number
B193: MROUND | C193: Math and trigonometry: Returns a number rounded to the desired multiple
B194: MULTINOMIAL | C194: Math and trigonometry: Returns the multinomial of a set of numbers
B195: ODD | C195: Math and trigonometry: Rounds a number up to the nearest odd integer
B196: PI | C196: Math and trigonometry: Returns the value of pi
B197: POWER | C197: Math and trigonometry: Returns the result of a number raised to a power
B198: PRODUCT | C198: Math and trigonometry: Multiplies its arguments
B199: QUOTIENT | C199: Math and trigonometry: Returns the integer portion of a division
B200: RAND | C200: Math and trigonometry: Returns a random number between 0 and 1
B201: RANDBETWEEN | C201: Math and trigonometry: Returns a random number between the numbers you specify
... 147 more rows

Sheet Random Dup
C2: Data - Planning, Editing, and Formatting with Excel- Generating Random Numbers | F2: TOC
C3: The random number generator is a useful formula to know.
C4: Please note that Excel regenerates the number when any change is made, if you want to keep the numbers you need to copy and paste as values or go to FORMULAS and CALCULATION OPTIONS and click on MANUAL.
C5: GOAL | D5: PRODUCE 40 RANDOM NUMBERS BETWEEN 1 AND 40 WITH DUPLICATES POSSIBLE
C6: FORMULA | D6: =RANDBETWEEN(1,40) | E6: Duplicates formatted by highlighting the cells and clicking on Conditional Formatting on the HOME RIBBON, and then Highlight Cell Rules and Duplicate Values.
C7: (TIE THEM TO AN IDENTIFIER, E.G. IDN)
C8: IDN | D8: FORMULA | E8: RESULT | F8: NUMBER
C9: 1 | D9: =RANDBETWEEN(1,40) | E9: =RANDBETWEEN(1,40) -> 37
C10: 2 | D10: =RANDBETWEEN(1,40) | E10: =RANDBETWEEN(1,40) -> 40
C11: 3 | D11: =RANDBETWEEN(1,40) | E11: 22
C12: 4 | D12: =RANDBETWEEN(1,40) | E12: 21
C13: 5 | D13: =RANDBETWEEN(1,40) | E13: 26
C14: 6 | D14: =RANDBETWEEN(1,40) | E14: 34
C15: 7 | D15: =RANDBETWEEN(1,40) | E15: 8
C16: 8 | D16: =RANDBETWEEN(1,40) | E16: 3
C17: 9 | D17: =RANDBETWEEN(1,40) | E17: 18
C18: 10 | D18: =RANDBETWEEN(1,40) | E18: 17
C19: 11 | D19: =RANDBETWEEN(1,40) | E19: 23
C20: 12 | D20: =RANDBETWEEN(1,40) | E20: 35
C21: 13 | D21: =RANDBETWEEN(1,40) | E21: 10
C22: 14 | D22: =RANDBETWEEN(1,40) | E22: 11
C23: 15 | D23: =RANDBETWEEN(1,40) | E23: 4
C24: 16 | D24: =RANDBETWEEN(1,40) | E24: 12
C25: 17 | D25: =RANDBETWEEN(1,40) | E25: 26
C26: 18 | D26: =RANDBETWEEN(1,40) | E26: 37
C27: 19 | D27: =RANDBETWEEN(1,40) | E27: 33
C28: 20 | D28: =RANDBETWEEN(1,40) | E28: 32
C29: 21 | D29: =RANDBETWEEN(1,40) | E29: 27
C30: 22 | D30: =RANDBETWEEN(1,40) | E30: 39
C31: 23 | D31: =RANDBETWEEN(1,40) | E31: 39
C32: 24 | D32: =RANDBETWEEN(1,40) | E32: 6
C33: 25 | D33: =RANDBETWEEN(1,40) | E33: 12
C34: 26 | D34: =RANDBETWEEN(1,40) | E34: 27
C35: 27 | D35: =RANDBETWEEN(1,40) | E35: 32
C36: 28 | D36: =RANDBETWEEN(1,40) | E36: 36
C37: 29 | D37: =RANDBETWEEN(1,40) | E37: 14
C38: 30 | D38: =RANDBETWEEN(1,40) | E38: 1
C39: 31 | D39: =RANDBETWEEN(1,40) | E39: 24
C40: 32 | D40: =RANDBETWEEN(1,40) | E40: 25
C41: 33 | D41: =RANDBETWEEN(1,40) | E41: 26
C42: 34 | D42: =RANDBETWEEN(1,40) | E42: 12
C43: 35 | D43: =RANDBETWEEN(1,40) | E43: 12
C44: 36 | D44: =RANDBETWEEN(1,40) | E44: 31
C45: 37 | D45: =RANDBETWEEN(1,40) | E45: 22
C46: 38 | D46: =RANDBETWEEN(1,40) | E46: 37
C47: 39 | D47: =RANDBETWEEN(1,40) | E47: 20
C48: 40 | D48: =RANDBETWEEN(1,40) | E48: 8
C51: WHAT IT DOES | D51: FORMULA (TAKE OUT THE LEADING SPACE) | E51: RESULT
C52: A random number between 0 and 1 (varies) | D52: =RAND() | E52: =RAND() -> 0.7466630162
C53: A random number greater than or equal to 0 but less than 100 (varies) | D53: =RAND()*100 | E53: =RAND()*100 -> 87.56867933
C54: Random number between -1 and 1 (varies) and generates an integer | D54: =RANDBETWEEN(-1,1) | E54: =RANDBETWEEN(-1,1) -> -1
C55: A random number greater than or equal to 0 but less than 100 (varies), ROUND TO 1 DIGIT | D55: =ROUND(RAND()*100,1) | E55: =ROUND(RAND()*100,1) -> 89

Sheet Random No Dup
C2: Data - Planning, Editing, and Formatting with Excel- Generating Random Numbers, No Duplicates | G2: TOC
C3: The random number generator is a useful formula to know. Result 1 has duplicates and Result 2 has no duplicates.
C4: GOAL | D4: PRODUCE 40 RANDOM NUMBERS BETWEEN 1 AND 40 WITH NO DUPLICATES
C5: FORMULA | D5: =RANDBETWEEN(1,40)
D7: (WITH DUPLICATES) | E7: (NO DUPLICATES) | F7: (Duplicates in Blue) | G7: (No Duplicates)
C8: IDN | D8: FORMULA 1 | E8: FORMULA 2 | F8: RESULT 1 | G8: RESULT 2
C9: 1 | D9: =RANDBETWEEN(1,40) | E9: =RANK(D9,D$9:D$48)+COUNTIF(D$9:D9,D9)-1 | F9: =RANDBETWEEN(1,40) -> 20 | G9: =RANK(F9,F$9:F$48)+COUNTIF(F$9:F9,F9)-1 -> 24
C10: 2 | D10: =RANDBETWEEN(1,40) | E10: =RANK(D9,D$8:D$47)+COUNTIF(D$8:D9,D9)-1 | F10: =RANDBETWEEN(1,40) -> 35 | G10: =RANK(F10,F$9:F$48)+COUNTIF(F$9:F10,F10)-1 -> 6
C11: 3 | D11: =RANDBETWEEN(1,40) | E11: =RANK(D10,D$8:D$47)+COUNTIF(D$8:D10,D10)-1 | F11: 13 | G11: =RANK(F11,F$9:F$48)+COUNTIF(F$9:F11,F11)-1 -> 32
C12: 4 | D12: =RANDBETWEEN(1,40) | E12: =RANK(D11,D$8:D$47)+COUNTIF(D$8:D11,D11)-1 | F12: 25 | G12: =RANK(F12,F$9:F$48)+COUNTIF(F$9:F12,F12)-1 -> 14
C13: 5 | D13: =RANDBETWEEN(1,40) | E13: =RANK(D12,D$8:D$47)+COUNTIF(D$8:D12,D12)-1 | F13: 29 | G13: =RANK(F13,F$9:F$48)+COUNTIF(F$9:F13,F13)-1 -> 12
C14: 6 | D14: =RANDBETWEEN(1,40) | E14: =RANK(D13,D$8:D$47)+COUNTIF(D$8:D13,D13)-1 | F14: 36 | G14: =RANK(F14,F$9:F$48)+COUNTIF(F$9:F14,F14)-1 -> 5
C15: 7 | D15: =RANDBETWEEN(1,40) | E15: =RANK(D14,D$8:D$47)+COUNTIF(D$8:D14,D14)-1 | F15: 20 | G15: =RANK(F15,F$9:F$48)+COUNTIF(F$9:F15,F15)-1 -> 25
C16: 8 | D16: =RANDBETWEEN(1,40) | E16: =RANK(D15,D$8:D$47)+COUNTIF(D$8:D15,D15)-1 | F16: 10 | G16: =RANK(F16,F$9:F$48)+COUNTIF(F$9:F16,F16)-1 -> 36
C17: 9 | D17: =RANDBETWEEN(1,40) | E17: =RANK(D16,D$8:D$47)+COUNTIF(D$8:D16,D16)-1 | F17: 21 | G17: =RANK(F17,F$9:F$48)+COUNTIF(F$9:F17,F17)-1 -> 22
C18: 10 | D18: =RANDBETWEEN(1,40) | E18: =RANK(D17,D$8:D$47)+COUNTIF(D$8:D17,D17)-1 | F18: 37 | G18: =RANK(F18,F$9:F$48)+COUNTIF(F$9:F18,F18)-1 -> 3
C19: 11 | D19: =RANDBETWEEN(1,40) | E19: =RANK(D18,D$8:D$47)+COUNTIF(D$8:D18,D18)-1 | F19: 28 | G19: =RANK(F19,F$9:F$48)+COUNTIF(F$9:F19,F19)-1 -> 13
C20: 12 | D20: =RANDBETWEEN(1,40) | E20: =RANK(D19,D$8:D$47)+COUNTIF(D$8:D19,D19)-1 | F20: 23 | G20: =RANK(F20,F$9:F$48)+COUNTIF(F$9:F20,F20)-1 -> 17
C21: 13 | D21: =RANDBETWEEN(1,40) | E21: =RANK(D20,D$8:D$47)+COUNTIF(D$8:D20,D20)-1 | F21: 11 | G21: =RANK(F21,F$9:F$48)+COUNTIF(F$9:F21,F21)-1 -> 35
C22: 14 | D22: =RANDBETWEEN(1,40) | E22: =RANK(D21,D$8:D$47)+COUNTIF(D$8:D21,D21)-1 | F22: 37 | G22: =RANK(F22,F$9:F$48)+COUNTIF(F$9:F22,F22)-1 -> 4
C23: 15 | D23: =RANDBETWEEN(1,40) | E23: =RANK(D22,D$8:D$47)+COUNTIF(D$8:D22,D22)-1 | F23: 21 | G23: =RANK(F23,F$9:F$48)+COUNTIF(F$9:F23,F23)-1 -> 23
C24: 16 | D24: =RANDBETWEEN(1,40) | E24: =RANK(D23,D$8:D$47)+COUNTIF(D$8:D23,D23)-1 | F24: 30 | G24: =RANK(F24,F$9:F$48)+COUNTIF(F$9:F24,F24)-1 -> 11
C25: 17 | D25: =RANDBETWEEN(1,40) | E25: =RANK(D24,D$8:D$47)+COUNTIF(D$8:D24,D24)-1 | F25: 38 | G25: =RANK(F25,F$9:F$48)+COUNTIF(F$9:F25,F25)-1 -> 2
C26: 18 | D26: =RANDBETWEEN(1,40) | E26: =RANK(D25,D$8:D$47)+COUNTIF(D$8:D25,D25)-1 | F26: 24 | G26: =RANK(F26,F$9:F$48)+COUNTIF(F$9:F26,F26)-1 -> 15
C27: 19 | D27: =RANDBETWEEN(1,40) | E27: =RANK(D26,D$8:D$47)+COUNTIF(D$8:D26,D26)-1 | F27: 16 | G27: =RANK(F27,F$9:F$48)+COUNTIF(F$9:F27,F27)-1 -> 28
C28: 20 | D28: =RANDBETWEEN(1,40) | E28: =RANK(D27,D$8:D$47)+COUNTIF(D$8:D27,D27)-1 | F28: 15 | G28: =RANK(F28,F$9:F$48)+COUNTIF(F$9:F28,F28)-1 -> 29
C29: 21 | D29: =RANDBETWEEN(1,40) | E29: =RANK(D28,D$8:D$47)+COUNTIF(D$8:D28,D28)-1 | F29: 24 | G29: =RANK(F29,F$9:F$48)+COUNTIF(F$9:F29,F29)-1 -> 16
C30: 22 | D30: =RANDBETWEEN(1,40) | E30: =RANK(D29,D$8:D$47)+COUNTIF(D$8:D29,D29)-1 | F30: 18 | G30: =RANK(F30,F$9:F$48)+COUNTIF(F$9:F30,F30)-1 -> 26
C31: 23 | D31: =RANDBETWEEN(1,40) | E31: =RANK(D30,D$8:D$47)+COUNTIF(D$8:D30,D30)-1 | F31: 32 | G31: =RANK(F31,F$9:F$48)+COUNTIF(F$9:F31,F31)-1 -> 9
C32: 24 | D32: =RANDBETWEEN(1,40) | E32: =RANK(D31,D$8:D$47)+COUNTIF(D$8:D31,D31)-1 | F32: 23 | G32: =RANK(F32,F$9:F$48)+COUNTIF(F$9:F32,F32)-1 -> 18
C33: 25 | D33: =RANDBETWEEN(1,40) | E33: =RANK(D32,D$8:D$47)+COUNTIF(D$8:D32,D32)-1 | F33: 40 | G33: =RANK(F33,F$9:F$48)+COUNTIF(F$9:F33,F33)-1 -> 1
C34: 26 | D34: =RANDBETWEEN(1,40) | E34: =RANK(D33,D$8:D$47)+COUNTIF(D$8:D33,D33)-1 | F34: 33 | G34: =RANK(F34,F$9:F$48)+COUNTIF(F$9:F34,F34)-1 -> 7
C35: 27 | D35: =RANDBETWEEN(1,40) | E35: =RANK(D34,D$8:D$47)+COUNTIF(D$8:D34,D34)-1 | F35: 5 | G35: =RANK(F35,F$9:F$48)+COUNTIF(F$9:F35,F35)-1 -> 38
C36: 28 | D36: =RANDBETWEEN(1,40) | E36: =RANK(D35,D$8:D$47)+COUNTIF(D$8:D35,D35)-1 | F36: 8 | G36: =RANK(F36,F$9:F$48)+COUNTIF(F$9:F36,F36)-1 -> 37
C37: 29 | D37: =RANDBETWEEN(1,40) | E37: =RANK(D36,D$8:D$47)+COUNTIF(D$8:D36,D36)-1 | F37: 18 | G37: =RANK(F37,F$9:F$48)+COUNTIF(F$9:F37,F37)-1 -> 27
C38: 30 | D38: =RANDBETWEEN(1,40) | E38: =RANK(D37,D$8:D$47)+COUNTIF(D$8:D37,D37)-1 | F38: 22 | G38: =RANK(F38,F$9:F$48)+COUNTIF(F$9:F38,F38)-1 -> 20
C39: 31 | D39: =RANDBETWEEN(1,40) | E39: =RANK(D38,D$8:D$47)+COUNTIF(D$8:D38,D38)-1 | F39: 23 | G39: =RANK(F39,F$9:F$48)+COUNTIF(F$9:F39,F39)-1 -> 19
C40: 32 | D40: =RANDBETWEEN(1,40) | E40: =RANK(D39,D$8:D$47)+COUNTIF(D$8:D39,D39)-1 | F40: 4 | G40: =RANK(F40,F$9:F$48)+COUNTIF(F$9:F40,F40)-1 -> 40
C41: 33 | D41: =RANDBETWEEN(1,40) | E41: =RANK(D40,D$8:D$47)+COUNTIF(D$8:D40,D40)-1 | F41: 15 | G41: =RANK(F41,F$9:F$48)+COUNTIF(F$9:F41,F41)-1 -> 30
C42: 34 | D42: =RANDBETWEEN(1,40) | E42: =RANK(D41,D$8:D$47)+COUNTIF(D$8:D41,D41)-1 | F42: 5 | G42: =RANK(F42,F$9:F$48)+COUNTIF(F$9:F42,F42)-1 -> 39
C43: 35 | D43: =RANDBETWEEN(1,40) | E43: =RANK(D42,D$8:D$47)+COUNTIF(D$8:D42,D42)-1 | F43: 13 | G43: =RANK(F43,F$9:F$48)+COUNTIF(F$9:F43,F43)-1 -> 33
C44: 36 | D44: =RANDBETWEEN(1,40) | E44: =RANK(D43,D$8:D$47)+COUNTIF(D$8:D43,D43)-1 | F44: 15 | G44: =RANK(F44,F$9:F$48)+COUNTIF(F$9:F44,F44)-1 -> 31
C45: 37 | D45: =RANDBETWEEN(1,40) | E45: =RANK(D44,D$8:D$47)+COUNTIF(D$8:D44,D44)-1 | F45: 32 | G45: =RANK(F45,F$9:F$48)+COUNTIF(F$9:F45,F45)-1 -> 10
C46: 38 | D46: =RANDBETWEEN(1,40) | E46: =RANK(D45,D$8:D$47)+COUNTIF(D$8:D45,D45)-1 | F46: 33 | G46: =RANK(F46,F$9:F$48)+COUNTIF(F$9:F46,F46)-1 -> 8
C47: 39 | D47: =RANDBETWEEN(1,40) | E47: =RANK(D46,D$8:D$47)+COUNTIF(D$8:D46,D46)-1 | F47: 12 | G47: =RANK(F47,F$9:F$48)+COUNTIF(F$9:F47,F47)-1 -> 34
C48: 40 | D48: =RANDBETWEEN(1,40) | E48: =RANK(D47,D$8:D$47)+COUNTIF(D$8:D47,D47)-1 | F48: 22 | G48: =RANK(F48,F$9:F$48)+COUNTIF(F$9:F48,F48)-1 -> 21

Sheet Other Random
C2: Data - Planning, Editing, and Formatting with Excel - Other Random Formulas | F2: TOC
C4: GOAL | D4: Choose A Name At Random From Column E (NAME).
C5: FIRST | D5: The Datafile Below was Named In FORMULAS And Name Manager. See Below.
D6: The Name Is POVERTY.
C7: POVERTY DATAFILE
C8: ID | D8: POVERTY | E8: NAME | F8: TEAM
C9: 1 | D9: ABOVE | E9: HUANG LEE | F9: =CHOOSE(RANDBETWEEN(1,3),"Blue Team","Red Team","Yellow Team") -> Blue Team
C10: 2 | D10: BELOW | E10: BEN CARSON | F10: =CHOOSE(RANDBETWEEN(1,3),"Blue Team","Red Team","Yellow Team") -> Yellow Team
C11: 3 | D11: BELOW | E11: MAY WRIGHT | F11: Yellow Team
C12: 4 | D12: AT | E12: TISH JOHNSON | F12: Blue Team
C13: 5 | D13: ABOVE | E13: RUTH THOMPSON | F13: Red Team
C14: 6 | D14: BELOW | E14: KANANI OSHIRO | F14: Yellow Team
C15: 7 | D15: AT | E15: SALLY CHU | F15: Blue Team
C16: 8 | D16: AT | E16: TOM THUMB | F16: Blue Team
C17: 9 | D17: BELOW | E17: SUE STRONG | F17: Yellow Team
D19: To find a name at random you first need to generate a location, row and column reference, at random.
C20: Naming a Datafile | D20: Location of Data - First to refer to the data it is easiest to name the data set rather than to refer to cell's rows and columns. To name a range of a data set, first highlight the range with your mouse with no headers and go to FORMULAS and then Name Manager and new. The name of the datafile on this worksheet is 'POVERTY' and you can use name to refer to in formulas. Naming a datafile is often easier than writing, e.g. $C$9:$E$17 The F column will be discussed below.
D22: Row Value - To find a random value from column c (it contains the number of participants) to serve as the row value, point to the data named 'POVERTY' (from Name Manager in FORMULAS, POVERTY represents $C$9:$E$17 on this worksheet) to generate a number between the minimum and maximum ID's in the ID column. The ROWS counts the number of ROWS in the POVERTY datafile and the RANDBETWEEN generates a random number between 1 and the number of ROWS.
D24: Formula | F24: Example Person IDN Chosen:
D25: =RANDBETWEEN(1,ROWS(POVERTY)) | F25: =RANDBETWEEN(1,ROWS(POVERTY)) -> 3
D26: Column Value - Then adding the INDEX function chooses the name in the column E (in this case column 3 in the named dataset POVERTY) with that row number. To point to the column with names input the column number in the dataset by the last number.
D27: Formula | F27: Example:
D28: =INDEX(POVERTY,RANDBETWEEN(1,ROWS(POVERTY)),3) | F28: =INDEX(POVERTY,RANDBETWEEN(1,ROWS(POVERTY)),3) -> SUE STRONG
C30: GOAL | D30: Randomly Assign A Treatment Or Baseball Team
D31: The CHOOSE function will randomly assign one of three Team Names when the following formula is pasted into Column F above.
D32: =CHOOSE(RANDBETWEEN(1,3),"Blue Team","Red Team","Yellow Team")
D33: NOTE: Values Change If Changes Are Made.

Sheet Research Questions
C2: Data - Planning, Editing, and Formatting with Excel | E2: TOC
C3: Initial Questions
C4: Questions to Ask Prior To Collecting Data
C5: What are the questions you are asking of your data? The planning that you do ahead of time will save you time.
C6: 1 | D6: Explain the study of interest in easily understandable words.
C7: 2 | D7: What is your variable of interest and what other variables are being studied?
C8: 3 | D8: Do you want to describe your data only and not test a hypothesis?
C9: 4 | D9: Do you have a hypothesis, an idea you are testing or a variable of interest?
C10: 5 | D10: Do you have a test or a treatment group? Do you have a control group?
C11: 6 | D11: What are your independent and dependent variables?
C12: 7 | D12: Is your study on data already collected or will you be collecting data in the future?
C13: 8 | D13: Will you be sampling data from a population of values? What is your sampling design (e.g. random, stratified, clustered)?
C14: 9 | D14: Do you have a Data Codebook?
C15: 10 | D15: Do you know your sample size? What sample size is needed to test your hypothesis?
C16: 11 | D16: Do you have published estimates or know from your own experience about the distribution of your outcome variable?
C17: 12 | D17: Suggestion: Picture how you would like to see your final data. Do you have a table in mind? Lay it out with variables and values. Do you have a figure in mind? Draw a picture and label the axes.

Sheet Hypothesis
C2: Data - Planning, Editing, and Formatting with Excel | E2: TOC
C3: Hypothesis
C4: Create An Clear Hypothesis and Analysis Plan
C5: THIS WORKBOOK - To test for BMI (body mass index) differences between urban and rural populations in Hawaii.
C6: Null Hypothesis Ho: | D6: There was no statistical difference in BMI between urban and rural populations in Hawaii.
C7: Alternative Hypothesis H1: | D7: There was a difference in BMI between urban and rural populations in Hawaii.
C8: 1. What is the hypothesis…goal?
C9: There is a difference in weight loss between urban and rural populations but in what direction?
C10: 2.What is the outcome variable (dependent variable, variable of interest)?
C11: BMI (body mass index
C12: 3.What are the independent variables?
C13: Urban/Rural, Gender, Age, other variables?
C14: 4. What is the test statistic? | E14: Student's t test
C15: 5. Set Your p or probability Values to test significance of test statistic. | E15: α = 0.05

Sheet Statistical Tests
C2: Data - Plotting and Analysis with Excel | E2: TOC
C3: Choosing the Right Statistical Test, Check these out… | D3: https://www.ncbi.nlm.nih.gov/pmc/articles/PMC3116565/
D4: http://www.biostathandbook.com/testchoice.html
D5: http://www.bmj.com/about-bmj/resources-readers/publications/statistics-square-one/13-study-design-and-choosing-statisti
C6: Questions To Ask Prior To Collecting Data | E6: In This Study Only
C8: 1 | D8: Is Your sample random? | E8: Yes
C9: 2 | D9: Are your variables independent of each other? Are your variables associated (correlated)? | E9: We Can Test This
C10: 3 | D10: Are your data paired? Pre Post | E10: No
C11: 4 | D11: Are you interested only in descriptive statistics, that pertains only to your data? | E11: Yes/No
C12: 5 | D12: Do you want to make inferences from your sample data to the population in general? This is the area of hypothesis testing; accepting or rejecting a null hypothesis of no difference. | E12: Yes
C13: A. | D13: What sample size is needed? | E13: 50 Each Urban/Rural
C14: B. | D14: Is your outcome categorical? | E14: No
D15: Check Assumptions Prior to any Test
D16: 1. Example Odds Ratio or Relative Risk
D17: 2. Example Chi-Square Test to test if counts of outcomes are different from expected
C18: C. | D18: Is your outcome continuous? | E18: Yes
D19: Check Assumptions Prior to any Test
D20: 1. Do descriptive statistics and graphs on continuous variables. | E20: Yes
D21: 2. Example Student's T Test - Two Unpaired Groups | E21: Yes
D22: 3. Example ANOVA - Several Unpaired Groups | E22: No
D23: 4. Regression linear | E23: BMI by Age or Poverty
C24: For more complicated statistics please see a statistician to see if Excel is the best way to analyze your data.
C25: 6 | D25: Are your data time dependent? See a statistician

Sheet Variable Type
C2: Data - Planning, Editing, and Formatting with Excel - Variable Type | F2: TOC
C3: Variable Types
C4: Variable Types
C5: Statistical tests are often described as non-parametric or parametric and depend on the data type and distribution.
C6: It is important prior to your study to know the types of variables that you will be analyzing.
C8: TYPE | E8: DEFINITION | F8: EXAMPLE
C9: Non-Parametric | E9: Number or character variables that do not have a distribution frequency
C10: 1 | D10: Categorical | E10: variables that fit into groups with no order to the group | F10: eye color, blood type
C11: 2 | D11: Ordinal | E11: variables that fit into groups where there is an order | F11: grades A,B,C,D etc.
C13: Parametric | E13: Number variables that follow a type of distribution
C14: 3 | D14: Count Variables | E14: variables that are integers or a tally of a number of items | F14: number of eggs
C15: 4 | D15: Continuous | E15: variables that can contain intermediate values on a range of values | F15: waist circumference*
C16: 5 | D16: Continuous with a valid zero | E16: variables that can contain intermediate values on a range of values and has a true zero | F16: temperature
C17: * this could also be a count variable if e.g. you were counting the number of inches

Sheet Variable Codebook
C2: Data - Planning, Editing, and Formatting with Excel - Codesheet Example | F2: TOC
C3: Variable Codebook
B4: It Is Important To Have A Variable Codesheet That Defines The Variables In Your Study So That Another Researcher Can Understand Your Analysis
B5: VARIABLE | C5: DEFINITION | D5: ROLE | E5: TYPE | F5: UNITS | G5: LABEL (software) | H5: FORMAT
B6: IDN | C6: IDN | D6: Identify Patient or Survey Respondent | E6: Numeric | F6: 1-100 | H6: None
B7: GENDER | C7: Gender Identified by Patient | D7: Independent | E7: Nominal | F7: Text | G7: Gender | H7: Female Male
B8: AGE | C8: Age in Years | D8: Independent | E8: Numeric | F8: Years since birth | G8: Age | H8: None ≥18years
B9: ETHNICITY | C9: Ethnicity Identified By Adult | D9: Independent | E9: Nominal | F9: 1,2,3 | G9: Ethnicity | H9: Text
B10: RURAL/URBAN | C10: Defined By Zip Code | D10: Independent, Variable of Interest | E10: Nominal coded numerical | F10: 1,2 | H10: 1 = Urban 2 = Rural
B11: BMI | C11: BMI = ((weight in pounds)/ (height in inches)2)*703 | D11: Dependent Outcome, Calculated | E11: Numeric | F11: Index Units | G11: Body Mass Index | H11: None
B12: POVERTY | C12: Poverty Level, Guidelines HHS, based on Household Size and Income http://aspe.hhs.gov/poverty/11poverty.shtml | D12: Independent | E12: Numeric | F12: Percent | G12: Poverty | H12: None
B13: MARRIED | C13: Marital Status | D13: Independent | E13: Nominal coded as numeric | F13: 1,2 | G13: Married | H13: 1 = Married 2 = Not Married

Sheet Copies and HIPAA
D2: Data - Planning, Editing, and Formatting with Excel - HIPAA | E2: TOC
D4: SAFEGUARDING YOUR DATASET IS A TOP PRIORITY
D6: SAVE A COPY OF THE ORIGINAL DATASET AND CREATE A WORKING COPY WHERE YOU MODIFY VARIABLES AND VALUES
D7: CREATE A BACKUP OF THE ORIGINAL FILE AND ALSO THE WORKING COPY WITH DATES OF CREATION IN THE NAME
D8: I GO BACK TO THE ORIGINAL MANY TIMES IN A STUDY TO VERIFY VARIABLES AND VALUES
D9: SAFEGUARD ALL COPIES IN A SECURE LOCATION!!!
D10: OBSERVE HIPAA RULES
D11: SAFEGUARD ALL COPIES IN A SECURE LOCATION!!!
D12: OBSERVE HIPAA RULES, PROTECT THE PRIVACY OF PATIENTS OR PERSONS

Sheet Database Structure Flatfile
B1: Cross Sectional Data (Point in Time) Structure (FLATFILE) | G1: FICTICIOUS DATA
B2: Observation Identifier | C2: Columns are Variables | G2: TOC
C3: FOUR VARIABLES PLUS IDENTIFIER
C4: GENDER | D4: AGE | E4: POVERTY VALUE | F4: BMI | G4: Header Row with Variable Names
A5: Rows are Respondents | B5: 1 | C5: 2 | D5: 72 | E5: 133 | F5: 23.0286
B6: 2 | C6: 2 | D6: 63 | E6: 486 | F6: 27.9798 | G6: DATA
B7: 3 | C7: 2 | D7: 40 | E7: 75 | F7: 50
B8: 4 | C8: 1 | D8: 53 | E8: 738 | F8: 22.4688
B9: 5 | C9: 2 | D9: 72 | E9: 192 | F9: 27.0697 | G9: Four variable values Per Individual
B10: 6 | C10: 2 | D10: 68 | E10: 399 | F10: 39.0601
B11: 7 | C11: 2 | D11: 88 | E11: 281 | F11: 26.9492
B12: 8 | C12: 2 | D12: 67 | E12: 340 | F12: 26.6256
B13: 9 | C13: 1 | D13: 78 | E13: 174 | F13: 25.3891
B14: 10 | C14: 1 | D14: 78 | E14: 997 | F14: 19.84
B15: 11 | C15: 2 | D15: 70 | E15: 738 | F15: 24.6078
B16: 12 | C16: 2 | D16: 67 | E16: 133 | F16: 26.7562
B17: 13 | C17: 2 | D17: 25 | E17: 379 | F17: 28.6972
B18: 14 | C18: 2 | D18: 86 | E18: 738 | F18: 20.5065
B19: 15 | C19: 2 | D19: 49 | E19: 498 | F19: 23.2974
B20: 16 | C20: 2 | D20: 84 | E20: 340 | F20: 29.2602
B21: 17 | C21: 2 | D21: 33 | E21: 415 | F21: 24.0311
B22: 18 | C22: 2 | D22: 30 | E22: 202 | F22: 30.8971
B23: 19 | C23: 2 | D23: 90 | E23: 459 | F23: 21.9484
B24: 20 | C24: 2 | D24: 67 | E24: 310 | F24: 23.6187
B25: 21 | C25: 1 | D25: 53 | E25: 486 | F25: 32.3163
B26: 22 | C26: 2 | D26: 59 | E26: 192 | F26: 21.7655
B27: 23 | C27: 2 | D27: 42 | E27: 82 | F27: 45
B28: 24 | C28: 2 | D28: 79 | E28: 340 | F28: 21.6333
B29: 25 | C29: 1 | D29: 60 | E29: 74 | F29: 36.2629
B30: 26 | C30: 2 | D30: 64 | E30: 281 | F30: 30.1143
B31: 27 | C31: 2 | D31: 60 | E31: 94 | F31: 35.4895
B32: 28 | C32: 2 | D32: 85 | E32: 459 | F32: 26.1252
B33: 29 | C33: 2 | D33: 41 | E33: 340 | F33: 25.853
B34: 30 | C34: 2 | D34: 73 | E34: 162 | F34: 21.7897
B35: 31 | C35: 2 | D35: 48 | E35: 583 | F35: 19.5779
B36: 32 | C36: 2 | D36: 42 | E36: 583 | F36: 19.2049
B37: 33 | C37: 1 | D37: 65 | E37: 399 | F37: 23.7103
B38: 34 | C38: 1 | D38: 45 | E38: 538 | F38: 29.2892
B39: 35 | C39: 2 | D39: 53 | E39: 586 | F39: 36.3162
B40: 36 | C40: 2 | D40: 81 | E40: 225 | F40: 24.9615
B41: 37 | C41: 2 | D41: 59 | E41: 997 | F41: 21.4563
B42: 38 | C42: 1 | D42: 68 | E42: 399 | F42: 26.5815
B43: 39 | C43: 1 | D43: 86 | E43: 141 | F43: 20.9827
B44: 40 | C44: 1 | D44: 51 | E44: 125 | F44: 39.5331
B45: 41 | C45: 1 | D45: 52 | E45: 586 | F45: 31.8719
B46: 42 | C46: 2 | D46: 40 | E46: 415 | F46: 27.4355
B47: 43 | C47: 1 | D47: 59 | E47: 586 | F47: 27.3691
B48: 44 | C48: 2 | D48: 52 | E48: 152 | F48: .
B49: 45 | C49: 2 | D49: 58 | E49: 586 | F49: 22.6317
B50: 46 | C50: 1 | D50: 59 | E50: 379 | F50: 17.4858
B51: 47 | C51: 2 | D51: 79 | E51: 103 | F51: 18.7772
B52: 48 | C52: 2 | D52: 47 | E52: 133 | F52: 31.0936
B53: 49 | C53: 1 | D53: 39 | E53: 315 | F53: 19.1315
B54: 50 | C54: 2 | D54: 60 | E54: 65 | F54: 43.8969
B55: 51 | C55: 2 | D55: 94 | E55: 997 | F55: 18
B56: 52 | C56: 2 | D56: 66 | E56: 459 | F56: 24.8
B57: 53 | C57: 1 | D57: 64 | E57: 517 | F57: 25.6234
B58: 54 | C58: 1 | D58: 59 | E58: 340 | F58: 34.8682
B59: 55 | C59: 2 | D59: 56 | E59: 517 | F59: 28.2459
B60: 56 | C60: 2 | D60: 35 | E60: 165 | F60: 18.5535
B61: 57 | C61: 2 | D61: 46 | E61: 586 | F61: 26.7562
B62: 58 | C62: 1 | D62: 51 | E62: 340 | F62: 20.2548
B63: 59 | C63: 2 | D63: 52 | E63: 340 | F63: 21.9484
B64: 60 | C64: 2 | D64: 61 | E64: 223 | F64: 19.6508
B65: 61 | C65: 1 | D65: 70 | E65: 410 | F65: 26.6259
B66: 62 | C66: 1 | D66: 48 | E66: 140 | F66: 24.1294
B67: 63 | C67: 1 | D67: 62 | E67: 586 | F67: 32.5713
B68: 64 | C68: 1 | D68: 68 | E68: 60 | F68: 18.2461
B69: 65 | C69: 2 | D69: 68 | E69: 886 | F69: 20.7258
B70: 66 | C70: 2 | D70: 71 | E70: 110 | F70: 37.7899
B71: 67 | C71: 2 | D71: 76 | E71: 199 | F71: 21.2572
B72: 68 | C72: 1 | D72: 36 | E72: 91 | F72: 31.7968
B73: 69 | C73: 2 | D73: 43 | E73: 419 | F73: 27.8032
B74: 70 | C74: 1 | D74: 41 | E74: 191 | F74: 40.0095
B75: 71 | C75: 1 | D75: 60 | E75: 410 | F75: 23.628
B76: 72 | C76: 2 | D76: 64 | E76: 152 | F76: 20.4066
B77: 73 | C77: 2 | D77: 56 | E77: 583 | F77: 27.3421
B78: 74 | C78: 1 | D78: 82 | E78: 415 | F78: 24.8894
B79: 75 | C79: 2 | D79: 80 | E79: 704 | F79: 21.1505
B80: 76 | C80: 2 | D80: 83 | E80: 192 | F80: 23.7372
B81: 77 | C81: 1 | D81: 24 | E81: 51 | F81: 33.0662
B82: 78 | C82: 2 | D82: 82 | E82: 44 | F82: 27.3691
B83: 79 | C83: 2 | D83: 67 | E83: 44 | F83: 25.2407
B84: 80 | C84: 1 | D84: 76 | E84: 517 | F84: 28.7967
B85: 81 | C85: 2 | D85: 72 | E85: 219 | F85: 24.5091
B86: 82 | C86: 2 | D86: 76 | E86: 310 | F86: 25.1938
B87: 83 | C87: 1 | D87: 23 | E87: 174 | F87: 20.088
B88: 84 | C88: 1 | D88: 66 | E88: 517 | F88: 25.384
B89: 85 | C89: 2 | D89: 81 | E89: 410 | F89: 26.521
B90: 86 | C90: 1 | D90: 58 | E90: 997 | F90: 23.5678
B91: 87 | C91: 2 | D91: 47 | E91: 291 | F91: 26.3656
B92: 88 | C92: 1 | D92: 65 | E92: 340 | F92: 46.987
B93: 89 | C93: 2 | D93: 29 | E93: 75 | F93: 26.6059
B94: 90 | C94: 1 | D94: 75 | E94: 222 | F94: 24.4125
B95: 91 | C95: 1 | D95: 45 | E95: 586 | F95: 21.2871
B96: 92 | C96: 2 | D96: 66 | E96: 419 | F96: 28.4787
B97: 93 | C97: 2 | D97: 23 | E97: 498 | F97: 20.9414
B98: 94 | C98: 1 | D98: 61 | E98: 738 | F98: 25.8432
B99: 95 | C99: 1 | D99: 61 | E99: 586 | F99: 20.5429
B100: 96 | C100: 2 | D100: 87 | E100: 310 | F100: 26.8868
B101: 97 | C101: 2 | D101: 53 | E101: 291 | F101: 21.0056
B102: 98 | C102: 2 | D102: 41 | E102: 340 | F102: 25.5082
B103: 99 | C103: 2 | D103: 56 | E103: 410 | F103: 28.1293
B104: 100 | C104: 2 | D104: 79 | E104: 219 | F104: 23.7775

Sheet Steps Editing Flatfile
C2: Data - Planning, Editing, and Formatting with Excel - Steps Editing Flatfile | F2: TOC
B3: FLATFILE | D3: GOAL | E3: FREE FROM ERRORS, INCONSISTENCIES, AND FORMATTED CORRECTLY (FOR STATISTICAL SOFTWARE)
C4: 1 | D4: HEADER ROW WITH NO SPACES | E4: The variable names should be in a header row with no spaces within names only an _.
E5: If multiple columns, you can highlight the top row and find and replace spaces with an underscore _.
C6: 2 | D6: ROWS | E6: List of e.g. persons, adults, or secure identifier .
C7: 3 | D7: FORMAT FONT, SIZE, AND ALIGNMENT | E7: Hit CTRL + A, and format font, font size, alignment, numbers, style.
C8: 4 | D8: UNMERGE ALL CELLS | E8: Make sure there are no merged cells by hitting CTRL + A, highlight all cells and press unmerge icon.
C9: 5 | D9: FREEZE PANES | E9: If table is huge so that you can use scroll and still see headers, go to View and Freeze Panes.
C10: 6 | D10: FIND AND REMOVE DUPLICATES IF APPROPRIATE | E10: In conditional formatting highlight duplicates.
E11: Remove duplicates after examining them or delete the row of data.
E12: Can also sort on unique records, only in advanced sort, and copy and paste sorted cells into another worksheet, the duplicates do not copy.
C13: 6 | D13: TURN ON FILTER FOR EACH COLUMN OR FORMAT AS A TABLE | E13: Check for inconsistent values or blank cells.
E14: Check numeric column that all values are numbered, 0, or missing coded with a . (period).
E15: Check text column that all values are alpha_numeric text with missing coded with a space.
E16: For text entries spaces can be replaced with an _ (underscore).
E17: Create a separate column with only text if important text is in a numeric variable.
C18: 7 | D18: CHECK RANGE OF VALUES | E18: Make sure data table has correct range of values for each variable.
C19: 8 | E19: Delete extra columns and rows.
C20: 9 | D20: SORTING ON A COLUMN | E20: Sort & filter and choose A-Z or Z-A.
E21: Before sorting highlight selected rows to make sure they stay together!!!
E22: Make sure no empty cells prior to sorting and an empty row between data table and headers.
E23: Make sure that a space for a character (text) variable is in every cell that is empty; a period for a numeric variable.
E24: Can also filter on unique records (Data and Filter) only in advanced filter. Then copy and paste entire workbook, the duplicates do not copy.
C25: 10 | D25: ROUNDING | E25: = (round,cell,number of digits), be careful using this formula so that you know it is not an actual number in the cell.
C26: 11 | D26: TEXT TO COLUMNS | E26: Can use this if text within a variable separated by a common element, Go to Data and Text to Columns and input the delimiter in the text. You can only do one Column at a time.
D27: TEXT TO COLUMNS | E27: Highlight column E and hit Data and Text To Columns to see an example.
C28: 9 | D28: ONE MAIN WORKSHEET OF DATA | E28: If there is more than one worksheet of data, each worksheet needs a common identifier so that they are combined by the identifier.
B29: MULTIPLE WORKSHEETS | D29: NEED AT LEAST ONE COMMON IDENTIFYING VARIABLE
B30: MULTIPLE LINES PER PATIENT | D30: IDENTIFY EACH LINE WITH AN IDN AND A REFERENCE E.G. DATE, YEAR

Sheet Excel_file_to_edit
A1: IDN | B1: GENDER | C1: AGE | D1: POVERTY VALUE | E1: MARITAL STATUS | F1: RURAL | G1: URBAN | H1: BMI | I1: TOC
A2: 1 | B2: Female | C2: 34 | D2: 133 | E2: 2 | F2: 1 | G2: 0 | H2: 39.1 | I2: FICTICIOUS DATA!!
A3: 2 | B3: Male | C3: 56 | D3: 486 | E3: 1 | F3: 0 | G3: 1 | H3: 35 | I3: TASKS
A4: 3 | B4: Female | C4: 73 | D4: 75 | E4: 1 | F4: 1 | G4: 0 | H4: 34.8 | I4: Check Header Row And Replace Any Space With An _ (Underscore)
A5: 4 | B5: Male | C5: 42 | D5: 738 | E5: 1 | F5: 0 | G5: 1 | H5: 34.5 | I5: Format Font, Size, And Alignment, Do a CTRL A or hit the top left cell to Highlight Worksheet
A6: 5 | B6: Female | C6: 55 | D6: 192 | E6: 2 | F6: 1 | G6: 0 | H6: 38 | I6: Unmerge all cells, do a CTRL A or hit the top left cell to highlight worksheet.
A7: 6 | B7: Female | C7: 67 | D7: 399 | E7: 2 | F7: 0 | G7: 1 | H7: 34.3 | I7: Freeze Panes so that you can Scroll (Tip - Under View).
A8: 7 | B8: Male | C8: 23 | D8: 281 | E8: 2 | F8: 1 | G8: 0 | H8: 40.2 | I8: Check duplicates of individuals - by color coding (Tip - Under Conditional Formatting, Highlight Cells Rules).
A9: 8 | B9: Male | C9: 72 | D9: 340 | E9: 1 | F9: 0 | G9: 1 | H9: 38.4 | I9: Filter columns - Highlight columns and hit filter (Under Data, Sort And Filter).
A10: 9 | B10: Male | C10: 43 | D10: 174 | E10: 1 | F10: 1 | G10: 0 | H10: 38.8 | I10: Check values by clicking on the filter icon for each column individually; look for character values in a numeric variable and vice versa, look for mistakes in coding, look for blank values.
A11: 10 | B11: Female | C11: 54 | D11: 997 | E11: 2 | F11: 0 | G11: 1 | H11: 35.5 | I11: Replace cells that are empty with a . (Period) If numeric data or a space if text data.
A12: 11 | B12: Female | C12: 66 | D12: 738 | E12: 2 | F12: 1 | G12: 0 | H12: 38.6 | I12: Combine the RURAL and URBAN columns into one column with URBAN = 1 and RURAL = 2.
A13: 12 | B13: Female | C13: 75 | D13: 133 | E13: 2 | F13: 1 | G13: 0 | H13: 39.2 | I13: Attempt to fill In missing data with valid data.
A14: 13 | B14: Male | C14: 23 | D14: 379 | E14: 1 | F14: 1 | G14: 0 | H14: 36.5
A15: 14 | B15: Male | C15: 44 | D15: 738 | E15: 1 | F15: 0 | G15: 1 | H15: 36.6
A16: 15 | B16: Female | C16: 73 | D16: 498 | E16: 1 | F16: 1 | G16: 0 | H16: 36.8
A17: 16 | B17: Male | C17: 23 | D17: 340 | E17: 1 | F17: 0 | G17: 1 | H17: 41.1
A18: 17 | B18: Male | C18: 64 | D18: 415 | E18: 2 | F18: 0 | G18: 1 | H18: 34.5
A19: 18 | B19: Female | C19: 54 | D19: 202 | E19: 1 | F19: 0 | G19: 1 | H19: 35.2
A20: 19 | B20: Male | C20: 23 | D20: 459 | E20: 2 | F20: 1 | G20: 0 | H20: 37.4
A21: 20 | B21: Male | C21: 45 | D21: 310 | E21: 1 | F21: 1 | G21: 0 | H21: 38
A22: 21 | B22: Female | C22: 55 | D22: 486 | E22: 1 | F22: 0 | G22: 1 | H22: 36.4
A23: 22 | B23: Female | C23: 34 | D23: 192 | E23: 1 | F23: 1 | G23: 0 | H23: 38.4
A24: 23 | B24: Male | C24: 34 | D24: 82 | E24: 2 | F24: 0 | G24: 1 | H24: 44.3
A25: 24 | B25: Female | C25: 65 | D25: 340 | E25: 2 | F25: 0 | G25: 1 | H25: 36
A26: 25 | B26: Male | C26: 45 | D26: 74 | E26: 1 | F26: 0 | G26: 1 | H26: 49.9
A27: 26 | B27: Female | C27: 44 | D27: 281 | E27: 2.1 | F27: 1 | G27: 0 | H27: 34.2
A28: 27 | B28: Female | C28: 33 | D28: 94 | E28: 2.4 | F28: 1 | G28: 0 | H28: 41
A29: 28 | B29: Female | C29: 66 | D29: 459 | E29: 2 | F29: 0 | G29: 1 | H29: 34.1
A30: 29 | B30: Female | C30: 43 | D30: 340 | E30: 2 | F30: 0 | G30: 1 | H30: 38.8
A31: 30 | B31: Female | C31: 55 | D31: 162 | E31: 1 | F31: 1 | G31: 0 | H31: 36.8
A32: 31 | B32: Male | C32: 43 | D32: 583 | E32: 1 | F32: 11 | G32: 1 | H32: 40.7
A33: 32 | B33: Female | C33: 56 | D33: 583 | E33: 1 | F33: 1 | G33: 1 | H33: 34.2
A34: 33 | B34: Female | C34: 34 | D34: 399 | E34: 2 | F34: 1 | G34: 0 | H34: 35.9
A35: 34 | B35: Female | C35: 54 | D35: 538 | E35: 1 | F35: 1 | G35: 0 | H35: 37.8
A36: 35 | B36: Male | C36: 78 | D36: 586 | E36: 2 | F36: 1 | G36: 0 | H36: 36
A37: 36 | B37: Male | C37: 25 | D37: 225 | E37: 2 | F37: 1 | G37: 0 | H37: 40.7
A38: 37 | B38: Male | C38: 33 | D38: 997 | E38: DIVORCED | F38: 0 | G38: 1 | H38: 40.2
A39: 38 | B39: Female | C39: 22 | D39: 399 | E39: 1 | F39: 0 | G39: 1 | H39: 45.6
A40: 39 | B40: Female | C40: 45 | D40: 141 | E40: 2 | F40: 0 | G40: 1 | H40: 35.8
A41: 40 | B41: Male | C41: 33 | D41: 125 | E41: 2 | F41: 0 | G41: 1 | H41: 36.9
A42: 41 | B42: Female | C42: 32 | D42: 586 | E42: 1 | F42: 1 | G42: 0 | H42: 35.4
A43: 42 | B43: Female | C43: 66 | D43: 200 | E43: 1 | F43: 1 | G43: 0 | H43: 42.1
A44: 42 | B44: Female | C44: 54 | D44: 415 | E44: 1 | F44: 1 | G44: 0 | H44: 34.7
A45: 43 | B45: Female | C45: 43 | D45: 586 | E45: 1 | F45: 0 | G45: 1 | H45: 35
A46: 44 | B46: Female | C46: 55 | D46: 152 | E46: 2 | F46: 0 | G46: 1 | H46: 37.4
A47: 45 | B47: Female | C47: 77 | D47: 586 | E47: 1 | F47: 1 | G47: 0 | H47: 40.4
A48: 46 | B48: Female | C48: 45 | D48: 379 | E48: 1 | F48: 1 | G48: 0 | H48: 42.9
A49: 47 | B49: Female | C49: 32 | D49: 103 | E49: 2 | F49: 1 | G49: 0 | H49: 61.8
A50: 48 | B50: Female | C50: 23 | D50: 133 | E50: 2 | F50: 0 | G50: 1 | H50: 36.6
A51: 49 | B51: Female | C51: 44 | D51: 315 | E51: 2 | F51: 0 | G51: 1 | H51: 40.4
A52: 50 | B52: Female | C52: 54 | D52: 65 | E52: 2 | F52: 0 | G52: 1 | H52: 35
A53: 51 | B53: Male | C53: 76 | D53: 997 | E53: 2 | F53: 1 | G53: 0 | H53: 39.2
A54: 52 | B54: Female | C54: 43 | D54: 459 | E54: 1 | F54: 1 | G54: 0 | H54: 34.2
A55: 53 | B55: Female | C55: 56 | D55: 517 | E55: 1 | F55: 0 | G55: 1 | H55: 35.2
A56: 54 | B56: Female | C56: 77 | D56: 340 | E56: 1 | F56: 0 | G56: 1 | H56: 34
A57: 55 | B57: Female | C57: 44 | D57: 517 | E57: 2 | F57: 0 | G57: 1 | H57: 37.2
A58: 56 | B58: Female | C58: 76 | D58: 165 | E58: 2 | F58: 1 | G58: 0 | H58: 35.4
A59: 57 | B59: Female | C59: 76 | D59: 586 | E59: 2 | F59: 1 | G59: 0 | H59: 47.2
A60: 58 | B60: Female | C60: 43 | D60: 340 | E60: 2 | F60: 1 | G60: 0 | H60: 34.3
A61: 59 | B61: Female | C61: 23 | D61: 340 | E61: 2 | F61: 0 | G61: 1 | H61: 34.8
A62: 60 | B62: Male | C62: 77 | D62: 223 | E62: 1 | F62: 0 | G62: 1 | H62: 35.9
A63: 61 | B63: Male | C63: 65 | D63: 410 | E63: 1 | F63: 0 | G63: 1 | H63: 34.9
A64: 62 | B64: Male | C64: 43 | D64: 140 | E64: 1 | F64: 1 | G64: 0 | H64: 35.9
A65: 63 | B65: Male | C65: 65 | D65: 586 | E65: 1 | F65: 1 | G65: 0 | H65: 36.8
A66: 64 | B66: Female | C66: 34 | D66: 60 | E66: 5 | F66: 1 | G66: 0 | H66: 45.2
A67: 65 | B67: Male | C67: 23 | D67: 886 | E67: 1 | F67: 0 | G67: 1 | H67: 35
A68: 66 | B68: Male | C68: 54 | D68: 110 | E68: 2 | F68: 0 | G68: 1 | H68: 35.5
A69: 67 | B69: Female | C69: 65 | D69: 199 | E69: 1 | F69: 1 | G69: 0 | H69: 42.1
A70: 68 | B70: Male | C70: 44 | D70: 91 | E70: 2 | F70: 1 | G70: 0 | H70: 39.1
A71: 69 | B71: Male | C71: 76 | D71: 419 | E71: 2 | F71: 0 | G71: 1 | H71: 62.6
A72: 70 | B72: Male | C72: 64 | D72: 191 | E72: 2 | F72: 0 | G72: 1 | H72: 35.4
A73: 71 | B73: Female | C73: 77 | D73: 410 | E73: 1 | F73: 1 | G73: 0 | H73: 46.8
A74: 72 | B74: Female | C74: 66 | D74: 152 | E74: 1 | F74: 1 | G74: 0 | H74: 35
A75: 73 | B75: Female | C75: 43 | D75: 583 | E75: 1 | F75: 11 | G75: 1 | H75: 34.8
A76: 74 | B76: Female | C76: 40 | D76: 415 | E76: 2 | F76: 0 | G76: 1 | H76: 40.5
A77: 75 | B77: Female | C77: 20 | D77: 704 | E77: 2 | F77: 0 | G77: 1 | H77: 37.1
A78: 76 | B78: Female | C78: 33 | D78: 192 | E78: 2 | F78: 0 | G78: 1 | H78: 35.7
A79: 77 | B79: Female | C79: 42 | D79: 51 | E79: 1 | F79: 1 | G79: 0 | H79: 35.9
A80: 78 | B80: Female | C80: 66 | D80: 44 | E80: 1 | F80: 1 | G80: 0 | H80: 37.2
A81: 79 | B81: Female | C81: 54 | D81: 44 | E81: 1 | F81: 1 | G81: 0 | H81: 34.8
A82: 80 | B82: Female | C82: 43 | D82: 517 | E82: 2 | F82: 0 | G82: 1 | H82: 49.4
A83: 81 | B83: Male | C83: 55 | D83: 219 | E83: 1 | F83: 1 | G83: 0 | H83: 39.9
A84: 82 | B84: Female | C84: 32 | D84: 310 | E84: 2 | F84: 0 | G84: 1 | H84: 43.9
A85: 83 | B85: Male | C85: 77 | D85: 174 | E85: 1 | F85: 1 | G85: 0 | H85: 71.9
A86: 84 | B86: Female | C86: 43 | D86: 517 | E86: 1 | F86: 0 | G86: 1 | H86: 34.3
A87: 85 | C87: 24 | D87: 410 | E87: 2 | F87: 0 | G87: 1 | H87: 35
A88: 86 | B88: Female | C88: 34 | D88: 997 | E88: 1 | F88: 1 | G88: 0 | H88: 37.2
A89: 87 | B89: Female | D89: 291 | E89: 2 | F89: 1 | G89: 0 | H89: 46.6
A90: 88 | B90: Female | C90: 43 | D90: 340 | E90: 2 | F90: 0 | G90: 1 | H90: 46.1
A91: 89 | B91: Male | C91: 77 | D91: 75 | E91: 2 | F91: 1 | G91: 0 | H91: 36.2
A92: 90 | B92: Female | C92: 34 | D92: 222 | E92: 1 | F92: 1 | G92: 0 | H92: 36.6
A93: 91 | B93: Male | C93: 64 | D93: 586 | E93: 1 | F93: 0 | G93: 1 | H93: 41.6
A94: 92 | B94: Male | C94: 48 | D94: 419 | E94: 2 | F94: 0 | G94: 1 | H94: 37.3
A95: 93 | B95: Male | C95: 54 | D95: 2000 | E95: 1 | F95: 1 | G95: 0 | H95: 34.7
A96: 94 | B96: 1 | C96: 56 | D96: 738 | E96: 1 | F96: 1 | G96: 0 | H96: 34.9
A97: 95 | B97: Female | C97: 43 | D97: 586 | E97: 1 | F97: 1 | G97: 0 | H97: 37.1
A98: 96 | B98: Female | C98: 36 | D98: 310 | E98: 2 | F98: 1 | G98: 0 | H98: 43.6
A99: 97 | B99: Female | C99: 40 | D99: 291 | E99: 2 | F99: 0 | G99: 1 | H99: 38.3
A100: 98 | B100: Female | C100: 42 | D100: 340 | E100: 1 | F100: 0 | G100: 1 | H100: 38.1
A101: 99 | B101: Male | C101: 56 | D101: 410 | E101: 2 | F101: 0 | G101: 1 | H101: 40
A102: 100 | B102: Female | C102: 23 | D102: 219 | E102: 1 | F102: 0 | G102: 1 | H102: 35.2

Sheet Edited File
A1: IDN | B1: GENDER | C1: AGE | D1: POVERTY_VALUE | E1: MARITAL_STATUS | F1: URBAN_RURAL | G1: BMI
A2: 1 | B2: Female | C2: 34 | D2: 133 | E2: 2 | F2: 1 | G2: 39.1 | H2: USING THE FILTER UNDER DATA | I2: TOC
A3: 2 | B3: Male | C3: 56 | D3: 486 | E3: 1 | F3: 2 | G3: 35 | H3: HIGHLIGHT THE COLUMNS AND CLICK FILTER,
A4: 3 | B4: Female | C4: 73 | D4: 75 | E4: 1 | F4: 1 | G4: 34.8
A5: 4 | B5: Male | C5: 42 | D5: 738 | E5: 1 | F5: 2 | G5: 34.5
A6: 5 | B6: Female | C6: 55 | D6: 192 | E6: 2 | F6: 1 | G6: 38 | H6: (CLICK ON THE SQUARE WITH THE TRIANGLE TO SEE THE RANGE OF VALUES), YOU CAN UNCLICK CERTAIN VALUES WITHIN THE LIST
A7: 6 | B7: Female | C7: 67 | D7: 399 | E7: 2 | F7: 2 | G7: 34.3
A8: 7 | B8: Male | C8: 23 | D8: 281 | E8: 2 | F8: 1 | G8: 40.2
A9: 8 | B9: Male | C9: 72 | D9: 340 | E9: 1 | F9: 2 | G9: 38.4
A10: 9 | B10: Male | C10: 43 | D10: 174 | E10: 1 | F10: 1 | G10: 38.8 | H10: WHAT VARIABLE IS MISSING?
A11: 10 | B11: Female | C11: 54 | D11: 997 | E11: 2 | F11: 2 | G11: 35.5 | H11: MAC PUT YOUR POINTER IN A CELL OF THE TABLE YOU WANT TO FILTER AND HIT FILTER IN THE STANDARD TOOLBAR. THEN CLICK ON THE ARROW OF THE COLUMN YOU WANT TO FILTER TO SEE OPTIONS.
A12: 11 | B12: Female | C12: 66 | D12: 738 | E12: 2 | F12: 1 | G12: 38.6
A13: 12 | B13: Female | C13: 75 | D13: 133 | E13: 2 | F13: 1 | G13: 39.2
A14: 13 | B14: Male | C14: 23 | D14: 379 | E14: 1 | F14: 1 | G14: 36.5
A15: 14 | B15: Male | C15: 44 | D15: 738 | E15: 1 | F15: 2 | G15: 36.6
A16: 15 | B16: Female | C16: 73 | D16: 498 | E16: 1 | F16: 1 | G16: 36.8
A17: 16 | B17: Male | C17: 23 | D17: 340 | E17: 1 | F17: 2 | G17: 41.1
A18: 17 | B18: Male | C18: 64 | D18: 415 | E18: 2 | F18: 2 | G18: 34.5
A19: 18 | B19: Female | C19: 54 | D19: 202 | E19: 1 | F19: 2 | G19: 35.2
A20: 19 | B20: Male | C20: 23 | D20: 459 | E20: 2 | F20: 1 | G20: 37.4
A21: 20 | B21: Male | C21: 45 | D21: 310 | E21: 1 | F21: 1 | G21: 38
A22: 21 | B22: Female | C22: 55 | D22: 486 | E22: 1 | F22: 2 | G22: 36.4
A23: 22 | B23: Female | C23: 34 | D23: 192 | E23: 1 | F23: 1 | G23: 38.4
A24: 23 | B24: Male | C24: 34 | D24: 82 | E24: 2 | F24: 2 | G24: 44.3
A25: 24 | B25: Female | C25: 65 | D25: 340 | E25: 2 | F25: 2 | G25: 36
A26: 25 | B26: Male | C26: 45 | D26: 74 | E26: 1 | F26: 2 | G26: 49.9
A27: 26 | B27: Female | C27: 44 | D27: 281 | E27: 1 | F27: 1 | G27: 34.2
A28: 27 | B28: Female | C28: 33 | D28: 94 | E28: 2 | F28: 1 | G28: 41
A29: 28 | B29: Female | C29: 66 | D29: 459 | E29: 2 | F29: 2 | G29: 34.1
A30: 29 | B30: Female | C30: 43 | D30: 340 | E30: 2 | F30: 2 | G30: 38.8
A31: 30 | B31: Female | C31: 55 | D31: 162 | E31: 1 | F31: 1 | G31: 36.8
A32: 31 | B32: Male | C32: 43 | D32: 583 | E32: 1 | F32: 1 | G32: 40.7
A33: 32 | B33: Female | C33: 56 | D33: 583 | E33: 1 | F33: 1 | G33: 34.2
A34: 33 | B34: Female | C34: 34 | D34: 399 | E34: 2 | F34: 1 | G34: 35.9
A35: 34 | B35: Female | C35: 54 | D35: 538 | E35: 1 | F35: 1 | G35: 37.8
A36: 35 | B36: Male | C36: 78 | D36: 586 | E36: 2 | F36: 1 | G36: 36
A37: 36 | B37: Male | C37: 25 | D37: 225 | E37: 2 | F37: 1 | G37: 40.7
A38: 37 | B38: Male | C38: 33 | D38: 997 | E38: 2 | F38: 2 | G38: 40.2
A39: 38 | B39: Female | C39: 22 | D39: 399 | E39: 1 | F39: 2 | G39: 45.6
A40: 39 | B40: Female | C40: 45 | D40: 141 | E40: 2 | F40: 2 | G40: 35.8
A41: 40 | B41: Male | C41: 33 | D41: 125 | E41: 2 | F41: 2 | G41: 36.9
A42: 41 | B42: Female | C42: 32 | D42: 586 | E42: 1 | F42: 1 | G42: 35.4
A43: 42 | B43: Female | C43: 54 | D43: 415 | E43: 1 | F43: 1 | G43: 34.7
A44: 43 | B44: Female | C44: 43 | D44: 586 | E44: 1 | F44: 2 | G44: 35
A45: 44 | B45: Female | C45: 55 | D45: 152 | E45: 2 | F45: 2 | G45: 37.4
A46: 45 | B46: Female | C46: 77 | D46: 586 | E46: 1 | F46: 1 | G46: 40.4
A47: 46 | B47: Female | C47: 45 | D47: 379 | E47: 1 | F47: 1 | G47: 42.9
A48: 47 | B48: Female | C48: 32 | D48: 103 | E48: 2 | F48: 1 | G48: 61.8
A49: 48 | B49: Female | C49: 23 | D49: 133 | E49: 2 | F49: 2 | G49: 36.6
A50: 49 | B50: Female | C50: 44 | D50: 315 | E50: 2 | F50: 2 | G50: 40.4
A51: 50 | B51: Female | C51: 54 | D51: 65 | E51: 2 | F51: 2 | G51: 35
A52: 51 | B52: Male | C52: 76 | D52: 997 | E52: 2 | F52: 1 | G52: 39.2
A53: 52 | B53: Female | C53: 43 | D53: 459 | E53: 1 | F53: 1 | G53: 34.2
A54: 53 | B54: Female | C54: 56 | D54: 517 | E54: 1 | F54: 2 | G54: 35.2
A55: 54 | B55: Female | C55: 77 | D55: 340 | E55: 1 | F55: 2 | G55: 34
A56: 55 | B56: Female | C56: 44 | D56: 517 | E56: 2 | F56: 2 | G56: 37.2
A57: 56 | B57: Female | C57: 76 | D57: 165 | E57: 2 | F57: 1 | G57: 35.4
A58: 57 | B58: Female | C58: 76 | D58: 586 | E58: 2 | F58: 1 | G58: 47.2
A59: 58 | B59: Female | C59: 43 | D59: 340 | E59: 2 | F59: 1 | G59: 34.3
A60: 59 | B60: Female | C60: 23 | D60: 340 | E60: 2 | F60: 2 | G60: 34.8
A61: 60 | B61: Male | C61: 77 | D61: 223 | E61: 1 | F61: 2 | G61: 35.9
A62: 61 | B62: Male | C62: 65 | D62: 410 | E62: 1 | F62: 2 | G62: 34.9
A63: 62 | B63: Male | C63: 43 | D63: 140 | E63: 1 | F63: 1 | G63: 35.9
A64: 63 | B64: Male | C64: 65 | D64: 586 | E64: 1 | F64: 1 | G64: 36.8
A65: 64 | B65: Female | C65: 34 | D65: 60 | E65: 2 | F65: 1 | G65: 45.2
A66: 65 | B66: Male | C66: 23 | D66: 886 | E66: 1 | F66: 2 | G66: 35
A67: 66 | B67: Male | C67: 54 | D67: 110 | E67: 2 | F67: 2 | G67: 35.5
A68: 67 | B68: Female | C68: 65 | D68: 199 | E68: 1 | F68: 1 | G68: 42.1
A69: 68 | B69: Male | C69: 44 | D69: 91 | E69: 2 | F69: 1 | G69: 39.1
A70: 69 | B70: Male | C70: 76 | D70: 419 | E70: 2 | F70: 2 | G70: 62.6
A71: 70 | B71: Male | C71: 64 | D71: 191 | E71: 2 | F71: 2 | G71: 35.4
A72: 71 | B72: Female | C72: 77 | D72: 410 | E72: 1 | F72: 1 | G72: 46.8
A73: 72 | B73: Female | C73: 66 | D73: 152 | E73: 1 | F73: 1 | G73: 35
A74: 73 | B74: Female | C74: 43 | D74: 583 | E74: 1 | F74: 1 | G74: 34.8
A75: 74 | B75: Female | C75: 40 | D75: 415 | E75: 2 | F75: 2 | G75: 40.5
A76: 75 | B76: Female | C76: 20 | D76: 704 | E76: 2 | F76: 2 | G76: 37.1
A77: 76 | B77: Female | C77: 33 | D77: 192 | E77: 2 | F77: 2 | G77: 35.7
A78: 77 | B78: Female | C78: 42 | D78: 51 | E78: 1 | F78: 1 | G78: 35.9
A79: 78 | B79: Female | C79: 66 | D79: 44 | E79: 1 | F79: 1 | G79: 37.2
A80: 79 | B80: Female | C80: 54 | D80: 44 | E80: 1 | F80: 1 | G80: 34.8
A81: 80 | B81: Female | C81: 43 | D81: 517 | E81: 2 | F81: 2 | G81: 49.4
A82: 81 | B82: Male | C82: 55 | D82: 219 | E82: 1 | F82: 1 | G82: 39.9
A83: 82 | B83: Female | C83: 32 | D83: 310 | E83: 2 | F83: 2 | G83: 43.9
A84: 83 | B84: Male | C84: 77 | D84: 174 | E84: 1 | F84: 1 | G84: 71.9
A85: 84 | B85: Female | C85: 43 | D85: 517 | E85: 1 | F85: 2 | G85: 34.3
A86: 85 | B86: Female | C86: 24 | D86: 410 | E86: 2 | F86: 2 | G86: 35
A87: 86 | B87: Female | C87: 34 | D87: 997 | E87: 1 | F87: 1 | G87: 37.2
A88: 87 | B88: Female | C88: 64 | D88: 291 | E88: 2 | F88: 1 | G88: 46.6
A89: 88 | B89: Female | C89: 43 | D89: 340 | E89: 2 | F89: 2 | G89: 46.1
A90: 89 | B90: Male | C90: 77 | D90: 75 | E90: 2 | F90: 1 | G90: 36.2
A91: 90 | B91: Female | C91: 34 | D91: 222 | E91: 1 | F91: 1 | G91: 36.6
A92: 91 | B92: Male | C92: 64 | D92: 586 | E92: 1 | F92: 2 | G92: 41.6
A93: 92 | B93: Male | C93: 48 | D93: 419 | E93: 2 | F93: 2 | G93: 37.3
A94: 93 | B94: Male | C94: 54 | D94: 200 | E94: 1 | F94: 1 | G94: 34.7
A95: 94 | B95: Female | C95: 56 | D95: 738 | E95: 1 | F95: 1 | G95: 34.9
A96: 95 | B96: Female | C96: 43 | D96: 586 | E96: 1 | F96: 1 | G96: 37.1
A97: 96 | B97: Female | C97: 36 | D97: 310 | E97: 2 | F97: 1 | G97: 43.6
A98: 97 | B98: Female | C98: 40 | D98: 291 | E98: 2 | F98: 2 | G98: 38.3
A99: 98 | B99: Female | C99: 42 | D99: 340 | E99: 1 | F99: 2 | G99: 38.1
A100: 99 | B100: Male | C100: 56 | D100: 410 | E100: 2 | F100: 2 | G100: 40
A101: 100 | B101: Female | C101: 23 | D101: 219 | E101: 1 | F101: 2 | G101: 35.2

Sheet Ethnicity Data
A1: IDN | B1: ETHNICITY | D1: TOC | E1: DATA TO BE ADDED TO EDITED FILE
A2: 1 | B2: Other | D2: Unmerge all cells, do a CTRL A or hit the top left cell to highlight worksheet. | E2: FICTICIOUS DATA!!
A3: 2 | B3: Japanese | D3: Freeze Panes so that you can Scroll (Tip - Under View).
A4: 3 | B4: Other | D4: Check duplicates of individuals - by color coding (Tip - Under Conditional Formatting, Highlight Cells Rules).
A5: 4 | B5: Native Hawaiian/Part | D5: Filter columns - Highlight columns and hit filter (Under Data, Sort And Filter).
A6: 5 | B6: White | D6: Check values by clicking on the filter icon for each column individually; look for character values in a numeric variable and vice versa, look for mistakes in coding, look for blank values.
A7: 6 | B7: Other | D7: Replace cells that are empty with a . (Period) If numeric data or a space if text data.
A8: 7 | B8: White | D8: Combine the RURAL and URBAN columns into one column with URBAN = 1 and RURAL = 2.
A9: 8 | B9: Japanese | D9: Attempt to fill In missing data with valid data.
A10: 9 | B10: Other
A11: 10 | B11: Native Hawaiian/Part
A12: 11 | B12: Japanese
A13: 12 | B13: Native Hawaiian/Part
A14: 13 | B14: Japanese
A15: 14 | B15: White
A16: 15 | B16: White
A17: 16 | B17: Japanese
A18: 17 | B18: Filipino
A19: 18 | B19: White
A20: 19 | B20: Other
A21: 20 | B21: White
A22: 21 | B22: Native Hawaiian/Part
A23: 22 | B23: Other
A24: 23 | B24: Other
A25: 24 | B25: White
A26: 25 | B26: Japanese
A27: 26
A28: 27 | B28: Japanese
A29: 28 | B29: Native Hawaiian/Part
A30: 29 | B30: Japanese
A31: 30 | B31: Other
A32: 31 | B32: Japanese
A33: 32 | B33: Other
A34: 33 | B34: Filipino
A35: 34 | B35: Other
A36: 35 | B36: Japanese
A37: 36 | B37: Japanese
A38: 37 | B38: White
A39: 38 | B39: White
A40: 39 | B40: Native Hawaiian/Part
A41: 40 | B41: Japanese
A42: 41 | B42: Filipino
A43: 42 | B43: White
A44: 42 | B44: Native Hawaiian/Part
A45: 43 | B45: White
A46: 44 | B46: Filipino
A47: 45 | B47: Other
A48: 46 | B48: Unknown
A49: 47 | B49: Japanese
A50: 48 | B50: Filipino
A51: 49 | B51: White
A52: 50 | B52: Other
A53: 51 | B53: Japanese
A54: 52 | B54: Other
A55: 53 | B55: White
A56: 54 | B56: Japanese
A57: 55 | B57: White
A58: 56 | B58: Other
A59: 57 | B59: White
A60: 58 | B60: Other
A61: 59 | B61: Native Hawaiian/Part
A62: 60 | B62: Other
A63: 61 | B63: Native Hawaiian/Part
A64: 62 | B64: Native Hawaiian/Part
A65: 63 | B65: Japanese
A66: 64 | B66: Japanese
A67: 65 | B67: Native Hawaiian/Part
A68: 66 | B68: Japanese
A69: 67 | B69: Other
A70: 68 | B70: Filipino
A71: 69 | B71: Japanese
A72: 70 | B72: Native Hawaiian/Part
A73: 71 | B73: Filipino
A74: 72 | B74: Other
A75: 73 | B75: Other
A76: 74 | B76: Other
A77: 75 | B77: Other
A78: 76 | B78: Native Hawaiian/Part
A79: 77 | B79: Other
A80: 78 | B80: Japanese
A81: 79 | B81: Native Hawaiian/Part
A82: 80 | B82: Native Hawaiian/Part
A83: 81 | B83: Other
A84: 82 | B84: White
A85: 83 | B85: White
A86: 84 | B86: Filipino
A87: 85 | B87: Japanese
A88: 86 | B88: White
A89: 87 | B89: Native Hawaiian/Part
A90: 88 | B90: Japanese
A91: 89 | B91: Filipino
A92: 90 | B92: Japanese
A93: 91 | B93: White
A94: 92 | B94: Filipino
A95: 93 | B95: Other
A96: 94 | B96: White
A97: 95 | B97: White
A98: 96 | B98: Other
A99: 97 | B99: Native Hawaiian/Part
A100: 98 | B100: Other
A101: 99 | B101: Japanese
A102: 100 | B102: Other

Sheet Steps Combining Worksheets
C2: Data - Planning, Editing, and Formatting with Excel - Combining Worksheets with a Common Variable, IDN in the Example | F2: TOC
C4: STEPS
C5: 1 | D5: INPUT THE THE FIRST EXAMPLE WORKSHEET, INCLUDING THE HEADERS
D6: =example!A1 =example!B1
D7: After the = sign input the name of the worksheet followed by a ! Then a cell reference.
D8: If the name has a space in it enclose the worksheet name by a single quote ' or change the name of the worksheet.
C9: 2 | D9: You can enter the formula then click on the lower right corner of the cell on a small square box to
D10: get a crosshatch icon then drag and drop the contents into other cells.
C11: 3 | D11: INPUT THE IDN OF BOTH WORKSHEETS TO MAKE SURE THE IDN'S MATCH
D12: =example!A1 =ethnicity!A1
C13: 4 | D13: In the last column you can enter the header and data from the ethnicity worksheet.
D14: = ethnicity!B1

Sheet Combined Example 1
A1: ='Edited File'!A1 -> IDN | B1: ='Edited File'!B1 -> GENDER | C1: ='Edited File'!C1 -> AGE | D1: ='Edited File'!D1 -> POVERTY_VALUE | E1: ='Edited File'!E1 -> MARITAL_STATUS | F1: ='Edited File'!F1 -> URBAN_RURAL | G1: ='Edited File'!G1 -> BMI | H1: COPY AND PASTE DATA FROM THE ETHNICITY FILE OR USE FORMULAS FOR ETHNICITY DATA TO THE RIGHT | I1: ='Ethnicity Data'!A1 -> IDN | J1: ='Ethnicity Data'!B1 -> ETHNICITY | K1: CHECKING IDN TO SEE IF THE SAME IN BOTH FILES, TAKE OUT SPACE IN FRONT OF THE = | L1: check IDN | M1: TOC
A2: ='Edited File'!A2 -> 1 | B2: ='Edited File'!B2 -> Female | C2: ='Edited File'!C2 -> 34 | D2: ='Edited File'!D2 -> 133 | E2: ='Edited File'!E2 -> 2 | F2: ='Edited File'!F2 -> 1 | G2: ='Edited File'!G2 -> 39.1 | I2: ='Ethnicity Data'!A2 | J2: ='Ethnicity Data'!B2 | K2: =A2=I2 | L2: =A2=I2 -> FALSE | M2: METHOD ONE
A3: ='Edited File'!A3 -> 2 | B3: ='Edited File'!B3 -> Male | C3: ='Edited File'!C3 -> 56 | D3: ='Edited File'!D3 -> 486 | E3: ='Edited File'!E3 -> 1 | F3: ='Edited File'!F3 -> 2 | G3: ='Edited File'!G3 -> 35 | I3: ='Ethnicity Data'!A3 -> 2 | J3: ='Ethnicity Data'!B3 -> Japanese | L3: =A3=I3 -> TRUE | M3: FORMULA SET TO DETECT IF THE IDN MATCHES FROM BOTH FILES
A4: ='Edited File'!A4 -> 3 | B4: ='Edited File'!B4 -> Female | C4: ='Edited File'!C4 -> 73 | D4: ='Edited File'!D4 -> 75 | E4: ='Edited File'!E4 -> 1 | F4: ='Edited File'!F4 -> 1 | G4: ='Edited File'!G4 -> 34.8 | I4: ='Ethnicity Data'!A4 -> 3 | J4: ='Ethnicity Data'!B4 -> Other | L4: TRUE
A5: ='Edited File'!A5 -> 4 | B5: ='Edited File'!B5 -> Male | C5: ='Edited File'!C5 -> 42 | D5: ='Edited File'!D5 -> 738 | E5: ='Edited File'!E5 -> 1 | F5: ='Edited File'!F5 -> 2 | G5: ='Edited File'!G5 -> 34.5 | I5: ='Ethnicity Data'!A5 -> 4 | J5: ='Ethnicity Data'!B5 -> Native Hawaiian/Part | L5: TRUE
A6: ='Edited File'!A6 -> 5 | B6: ='Edited File'!B6 -> Female | C6: ='Edited File'!C6 -> 55 | D6: ='Edited File'!D6 -> 192 | E6: ='Edited File'!E6 -> 2 | F6: ='Edited File'!F6 -> 1 | G6: ='Edited File'!G6 -> 38 | I6: ='Ethnicity Data'!A6 -> 5 | J6: ='Ethnicity Data'!B6 -> White | L6: TRUE
A7: ='Edited File'!A7 -> 6 | B7: ='Edited File'!B7 -> Female | C7: ='Edited File'!C7 -> 67 | D7: ='Edited File'!D7 -> 399 | E7: ='Edited File'!E7 -> 2 | F7: ='Edited File'!F7 -> 2 | G7: ='Edited File'!G7 -> 34.3 | I7: ='Ethnicity Data'!A7 -> 6 | J7: ='Ethnicity Data'!B7 -> Other | L7: TRUE
A8: ='Edited File'!A8 -> 7 | B8: ='Edited File'!B8 -> Male | C8: ='Edited File'!C8 -> 23 | D8: ='Edited File'!D8 -> 281 | E8: ='Edited File'!E8 -> 2 | F8: ='Edited File'!F8 -> 1 | G8: ='Edited File'!G8 -> 40.2 | I8: ='Ethnicity Data'!A8 -> 7 | J8: ='Ethnicity Data'!B8 -> White | L8: TRUE
A9: ='Edited File'!A9 -> 8 | B9: ='Edited File'!B9 -> Male | C9: ='Edited File'!C9 -> 72 | D9: ='Edited File'!D9 -> 340 | E9: ='Edited File'!E9 -> 1 | F9: ='Edited File'!F9 -> 2 | G9: ='Edited File'!G9 -> 38.4 | I9: ='Ethnicity Data'!A9 -> 8 | J9: ='Ethnicity Data'!B9 -> Japanese | L9: TRUE
A10: ='Edited File'!A10 -> 9 | B10: ='Edited File'!B10 -> Male | C10: ='Edited File'!C10 -> 43 | D10: ='Edited File'!D10 -> 174 | E10: ='Edited File'!E10 -> 1 | F10: ='Edited File'!F10 -> 1 | G10: ='Edited File'!G10 -> 38.8 | I10: ='Ethnicity Data'!A10 -> 9 | J10: ='Ethnicity Data'!B10 -> Other | L10: TRUE
A11: ='Edited File'!A11 -> 10 | B11: ='Edited File'!B11 -> Female | C11: ='Edited File'!C11 -> 54 | D11: ='Edited File'!D11 -> 997 | E11: ='Edited File'!E11 -> 2 | F11: ='Edited File'!F11 -> 2 | G11: ='Edited File'!G11 -> 35.5 | I11: ='Ethnicity Data'!A11 -> 10 | J11: ='Ethnicity Data'!B11 -> Native Hawaiian/Part | L11: TRUE
A12: ='Edited File'!A12 -> 11 | B12: ='Edited File'!B12 -> Female | C12: ='Edited File'!C12 -> 66 | D12: ='Edited File'!D12 -> 738 | E12: ='Edited File'!E12 -> 2 | F12: ='Edited File'!F12 -> 1 | G12: ='Edited File'!G12 -> 38.6 | I12: ='Ethnicity Data'!A12 -> 11 | J12: ='Ethnicity Data'!B12 -> Japanese | L12: TRUE
A13: ='Edited File'!A13 -> 12 | B13: ='Edited File'!B13 -> Female | C13: ='Edited File'!C13 -> 75 | D13: ='Edited File'!D13 -> 133 | E13: ='Edited File'!E13 -> 2 | F13: ='Edited File'!F13 -> 1 | G13: ='Edited File'!G13 -> 39.2 | I13: ='Ethnicity Data'!A13 -> 12 | J13: ='Ethnicity Data'!B13 -> Native Hawaiian/Part | L13: TRUE
A14: ='Edited File'!A14 -> 13 | B14: ='Edited File'!B14 -> Male | C14: ='Edited File'!C14 -> 23 | D14: ='Edited File'!D14 -> 379 | E14: ='Edited File'!E14 -> 1 | F14: ='Edited File'!F14 -> 1 | G14: ='Edited File'!G14 -> 36.5 | I14: ='Ethnicity Data'!A14 -> 13 | J14: ='Ethnicity Data'!B14 -> Japanese | L14: TRUE
A15: ='Edited File'!A15 -> 14 | B15: ='Edited File'!B15 -> Male | C15: ='Edited File'!C15 -> 44 | D15: ='Edited File'!D15 -> 738 | E15: ='Edited File'!E15 -> 1 | F15: ='Edited File'!F15 -> 2 | G15: ='Edited File'!G15 -> 36.6 | I15: ='Ethnicity Data'!A15 -> 14 | J15: ='Ethnicity Data'!B15 -> White | L15: TRUE
A16: ='Edited File'!A16 -> 15 | B16: ='Edited File'!B16 -> Female | C16: ='Edited File'!C16 -> 73 | D16: ='Edited File'!D16 -> 498 | E16: ='Edited File'!E16 -> 1 | F16: ='Edited File'!F16 -> 1 | G16: ='Edited File'!G16 -> 36.8 | I16: ='Ethnicity Data'!A16 -> 15 | J16: ='Ethnicity Data'!B16 -> White | L16: TRUE
A17: ='Edited File'!A17 -> 16 | B17: ='Edited File'!B17 -> Male | C17: ='Edited File'!C17 -> 23 | D17: ='Edited File'!D17 -> 340 | E17: ='Edited File'!E17 -> 1 | F17: ='Edited File'!F17 -> 2 | G17: ='Edited File'!G17 -> 41.1 | I17: ='Ethnicity Data'!A17 -> 16 | J17: ='Ethnicity Data'!B17 -> Japanese | L17: TRUE
A18: ='Edited File'!A18 -> 17 | B18: ='Edited File'!B18 -> Male | C18: ='Edited File'!C18 -> 64 | D18: ='Edited File'!D18 -> 415 | E18: ='Edited File'!E18 -> 2 | F18: ='Edited File'!F18 -> 2 | G18: ='Edited File'!G18 -> 34.5 | I18: ='Ethnicity Data'!A18 -> 17 | J18: ='Ethnicity Data'!B18 -> Filipino | L18: TRUE
A19: ='Edited File'!A19 -> 18 | B19: ='Edited File'!B19 -> Female | C19: ='Edited File'!C19 -> 54 | D19: ='Edited File'!D19 -> 202 | E19: ='Edited File'!E19 -> 1 | F19: ='Edited File'!F19 -> 2 | G19: ='Edited File'!G19 -> 35.2 | I19: ='Ethnicity Data'!A19 -> 18 | J19: ='Ethnicity Data'!B19 -> White | L19: TRUE
A20: ='Edited File'!A20 -> 19 | B20: ='Edited File'!B20 -> Male | C20: ='Edited File'!C20 -> 23 | D20: ='Edited File'!D20 -> 459 | E20: ='Edited File'!E20 -> 2 | F20: ='Edited File'!F20 -> 1 | G20: ='Edited File'!G20 -> 37.4 | I20: ='Ethnicity Data'!A20 -> 19 | J20: ='Ethnicity Data'!B20 -> Other | L20: TRUE
A21: ='Edited File'!A21 -> 20 | B21: ='Edited File'!B21 -> Male | C21: ='Edited File'!C21 -> 45 | D21: ='Edited File'!D21 -> 310 | E21: ='Edited File'!E21 -> 1 | F21: ='Edited File'!F21 -> 1 | G21: ='Edited File'!G21 -> 38 | I21: ='Ethnicity Data'!A21 -> 20 | J21: ='Ethnicity Data'!B21 -> White | L21: TRUE
A22: ='Edited File'!A22 -> 21 | B22: ='Edited File'!B22 -> Female | C22: ='Edited File'!C22 -> 55 | D22: ='Edited File'!D22 -> 486 | E22: ='Edited File'!E22 -> 1 | F22: ='Edited File'!F22 -> 2 | G22: ='Edited File'!G22 -> 36.4 | I22: ='Ethnicity Data'!A22 -> 21 | J22: ='Ethnicity Data'!B22 -> Native Hawaiian/Part | L22: TRUE
A23: ='Edited File'!A23 -> 22 | B23: ='Edited File'!B23 -> Female | C23: ='Edited File'!C23 -> 34 | D23: ='Edited File'!D23 -> 192 | E23: ='Edited File'!E23 -> 1 | F23: ='Edited File'!F23 -> 1 | G23: ='Edited File'!G23 -> 38.4 | I23: ='Ethnicity Data'!A23 -> 22 | J23: ='Ethnicity Data'!B23 -> Other | L23: TRUE
A24: ='Edited File'!A24 -> 23 | B24: ='Edited File'!B24 -> Male | C24: ='Edited File'!C24 -> 34 | D24: ='Edited File'!D24 -> 82 | E24: ='Edited File'!E24 -> 2 | F24: ='Edited File'!F24 -> 2 | G24: ='Edited File'!G24 -> 44.3 | I24: ='Ethnicity Data'!A24 -> 23 | J24: ='Ethnicity Data'!B24 -> Other | L24: TRUE
A25: ='Edited File'!A25 -> 24 | B25: ='Edited File'!B25 -> Female | C25: ='Edited File'!C25 -> 65 | D25: ='Edited File'!D25 -> 340 | E25: ='Edited File'!E25 -> 2 | F25: ='Edited File'!F25 -> 2 | G25: ='Edited File'!G25 -> 36 | I25: ='Ethnicity Data'!A25 -> 24 | J25: ='Ethnicity Data'!B25 -> White | L25: TRUE
A26: ='Edited File'!A26 -> 25 | B26: ='Edited File'!B26 -> Male | C26: ='Edited File'!C26 -> 45 | D26: ='Edited File'!D26 -> 74 | E26: ='Edited File'!E26 -> 1 | F26: ='Edited File'!F26 -> 2 | G26: ='Edited File'!G26 -> 49.9 | I26: ='Ethnicity Data'!A26 -> 25 | J26: ='Ethnicity Data'!B26 -> Japanese | L26: TRUE
A27: ='Edited File'!A27 -> 26 | B27: ='Edited File'!B27 -> Female | C27: ='Edited File'!C27 -> 44 | D27: ='Edited File'!D27 -> 281 | E27: ='Edited File'!E27 -> 1 | F27: ='Edited File'!F27 -> 1 | G27: ='Edited File'!G27 -> 34.2 | I27: ='Ethnicity Data'!A27 -> 26 | J27: ='Ethnicity Data'!B27 ->  | L27: TRUE
A28: ='Edited File'!A28 -> 27 | B28: ='Edited File'!B28 -> Female | C28: ='Edited File'!C28 -> 33 | D28: ='Edited File'!D28 -> 94 | E28: ='Edited File'!E28 -> 2 | F28: ='Edited File'!F28 -> 1 | G28: ='Edited File'!G28 -> 41 | I28: ='Ethnicity Data'!A28 -> 27 | J28: ='Ethnicity Data'!B28 -> Japanese | L28: TRUE
A29: ='Edited File'!A29 -> 28 | B29: ='Edited File'!B29 -> Female | C29: ='Edited File'!C29 -> 66 | D29: ='Edited File'!D29 -> 459 | E29: ='Edited File'!E29 -> 2 | F29: ='Edited File'!F29 -> 2 | G29: ='Edited File'!G29 -> 34.1 | I29: ='Ethnicity Data'!A29 -> 28 | J29: ='Ethnicity Data'!B29 -> Native Hawaiian/Part | L29: TRUE
A30: ='Edited File'!A30 -> 29 | B30: ='Edited File'!B30 -> Female | C30: ='Edited File'!C30 -> 43 | D30: ='Edited File'!D30 -> 340 | E30: ='Edited File'!E30 -> 2 | F30: ='Edited File'!F30 -> 2 | G30: ='Edited File'!G30 -> 38.8 | I30: ='Ethnicity Data'!A30 -> 29 | J30: ='Ethnicity Data'!B30 -> Japanese | L30: TRUE
A31: ='Edited File'!A31 -> 30 | B31: ='Edited File'!B31 -> Female | C31: ='Edited File'!C31 -> 55 | D31: ='Edited File'!D31 -> 162 | E31: ='Edited File'!E31 -> 1 | F31: ='Edited File'!F31 -> 1 | G31: ='Edited File'!G31 -> 36.8 | I31: ='Ethnicity Data'!A31 -> 30 | J31: ='Ethnicity Data'!B31 -> Other | L31: TRUE
A32: ='Edited File'!A32 -> 31 | B32: ='Edited File'!B32 -> Male | C32: ='Edited File'!C32 -> 43 | D32: ='Edited File'!D32 -> 583 | E32: ='Edited File'!E32 -> 1 | F32: ='Edited File'!F32 -> 1 | G32: ='Edited File'!G32 -> 40.7 | I32: ='Ethnicity Data'!A32 -> 31 | J32: ='Ethnicity Data'!B32 -> Japanese | L32: TRUE
A33: ='Edited File'!A33 -> 32 | B33: ='Edited File'!B33 -> Female | C33: ='Edited File'!C33 -> 56 | D33: ='Edited File'!D33 -> 583 | E33: ='Edited File'!E33 -> 1 | F33: ='Edited File'!F33 -> 1 | G33: ='Edited File'!G33 -> 34.2 | I33: ='Ethnicity Data'!A33 -> 32 | J33: ='Ethnicity Data'!B33 -> Other | L33: TRUE
A34: ='Edited File'!A34 -> 33 | B34: ='Edited File'!B34 -> Female | C34: ='Edited File'!C34 -> 34 | D34: ='Edited File'!D34 -> 399 | E34: ='Edited File'!E34 -> 2 | F34: ='Edited File'!F34 -> 1 | G34: ='Edited File'!G34 -> 35.9 | I34: ='Ethnicity Data'!A34 -> 33 | J34: ='Ethnicity Data'!B34 -> Filipino | L34: =A34=I34 -> TRUE
A35: ='Edited File'!A35 -> 34 | B35: ='Edited File'!B35 -> Female | C35: ='Edited File'!C35 -> 54 | D35: ='Edited File'!D35 -> 538 | E35: ='Edited File'!E35 -> 1 | F35: ='Edited File'!F35 -> 1 | G35: ='Edited File'!G35 -> 37.8 | I35: ='Ethnicity Data'!A35 -> 34 | J35: ='Ethnicity Data'!B35 -> Other | L35: TRUE
A36: ='Edited File'!A36 -> 35 | B36: ='Edited File'!B36 -> Male | C36: ='Edited File'!C36 -> 78 | D36: ='Edited File'!D36 -> 586 | E36: ='Edited File'!E36 -> 2 | F36: ='Edited File'!F36 -> 1 | G36: ='Edited File'!G36 -> 36 | I36: ='Ethnicity Data'!A36 -> 35 | J36: ='Ethnicity Data'!B36 -> Japanese | L36: TRUE
A37: ='Edited File'!A37 -> 36 | B37: ='Edited File'!B37 -> Male | C37: ='Edited File'!C37 -> 25 | D37: ='Edited File'!D37 -> 225 | E37: ='Edited File'!E37 -> 2 | F37: ='Edited File'!F37 -> 1 | G37: ='Edited File'!G37 -> 40.7 | I37: ='Ethnicity Data'!A37 -> 36 | J37: ='Ethnicity Data'!B37 -> Japanese | L37: TRUE
A38: ='Edited File'!A38 -> 37 | B38: ='Edited File'!B38 -> Male | C38: ='Edited File'!C38 -> 33 | D38: ='Edited File'!D38 -> 997 | E38: ='Edited File'!E38 -> 2 | F38: ='Edited File'!F38 -> 2 | G38: ='Edited File'!G38 -> 40.2 | I38: ='Ethnicity Data'!A38 -> 37 | J38: ='Ethnicity Data'!B38 -> White | L38: TRUE
A39: ='Edited File'!A39 -> 38 | B39: ='Edited File'!B39 -> Female | C39: ='Edited File'!C39 -> 22 | D39: ='Edited File'!D39 -> 399 | E39: ='Edited File'!E39 -> 1 | F39: ='Edited File'!F39 -> 2 | G39: ='Edited File'!G39 -> 45.6 | I39: ='Ethnicity Data'!A39 -> 38 | J39: ='Ethnicity Data'!B39 -> White | L39: TRUE
A40: ='Edited File'!A40 -> 39 | B40: ='Edited File'!B40 -> Female | C40: ='Edited File'!C40 -> 45 | D40: ='Edited File'!D40 -> 141 | E40: ='Edited File'!E40 -> 2 | F40: ='Edited File'!F40 -> 2 | G40: ='Edited File'!G40 -> 35.8 | I40: ='Ethnicity Data'!A40 -> 39 | J40: ='Ethnicity Data'!B40 -> Native Hawaiian/Part | L40: TRUE
A41: ='Edited File'!A41 -> 40 | B41: ='Edited File'!B41 -> Male | C41: ='Edited File'!C41 -> 33 | D41: ='Edited File'!D41 -> 125 | E41: ='Edited File'!E41 -> 2 | F41: ='Edited File'!F41 -> 2 | G41: ='Edited File'!G41 -> 36.9 | I41: ='Ethnicity Data'!A41 -> 40 | J41: ='Ethnicity Data'!B41 -> Japanese | L41: TRUE
A42: ='Edited File'!A42 -> 41 | B42: ='Edited File'!B42 -> Female | C42: ='Edited File'!C42 -> 32 | D42: ='Edited File'!D42 -> 586 | E42: ='Edited File'!E42 -> 1 | F42: ='Edited File'!F42 -> 1 | G42: ='Edited File'!G42 -> 35.4 | I42: ='Ethnicity Data'!A42 -> 41 | J42: ='Ethnicity Data'!B42 -> Filipino | L42: TRUE
A43: ='Edited File'!A43 -> 42 | B43: ='Edited File'!B43 -> Female | C43: ='Edited File'!C43 -> 54 | D43: ='Edited File'!D43 -> 415 | E43: ='Edited File'!E43 -> 1 | F43: ='Edited File'!F43 -> 1 | G43: ='Edited File'!G43 -> 34.7 | I43: ='Ethnicity Data'!A43 -> 42 | J43: ='Ethnicity Data'!B43 -> White | L43: TRUE
A44: ='Edited File'!A44 -> 43 | B44: ='Edited File'!B44 -> Female | C44: ='Edited File'!C44 -> 43 | D44: ='Edited File'!D44 -> 586 | E44: ='Edited File'!E44 -> 1 | F44: ='Edited File'!F44 -> 2 | G44: ='Edited File'!G44 -> 35 | I44: ='Ethnicity Data'!A44 -> 42 | J44: ='Ethnicity Data'!B44 -> Native Hawaiian/Part | L44: FALSE | M44: PLEASE CORRECT ERROR IF PRESENT
A45: ='Edited File'!A45 -> 44 | B45: ='Edited File'!B45 -> Female | C45: ='Edited File'!C45 -> 55 | D45: ='Edited File'!D45 -> 152 | E45: ='Edited File'!E45 -> 2 | F45: ='Edited File'!F45 -> 2 | G45: ='Edited File'!G45 -> 37.4 | I45: ='Ethnicity Data'!A45 -> 43 | J45: ='Ethnicity Data'!B45 -> White | L45: FALSE | M45: IF ETHNICITY FILE EDITED FOR ERROR THE LEFT
A46: ='Edited File'!A46 -> 45 | B46: ='Edited File'!B46 -> Female | C46: ='Edited File'!C46 -> 77 | D46: ='Edited File'!D46 -> 586 | E46: ='Edited File'!E46 -> 1 | F46: ='Edited File'!F46 -> 1 | G46: ='Edited File'!G46 -> 40.4 | I46: ='Ethnicity Data'!A46 -> 44 | J46: ='Ethnicity Data'!B46 -> Filipino | L46: FALSE | M46: HAND COLUMN WILL NOT BE FORMATED RED
A47: ='Edited File'!A47 -> 46 | B47: ='Edited File'!B47 -> Female | C47: ='Edited File'!C47 -> 45 | D47: ='Edited File'!D47 -> 379 | E47: ='Edited File'!E47 -> 1 | F47: ='Edited File'!F47 -> 1 | G47: ='Edited File'!G47 -> 42.9 | I47: ='Ethnicity Data'!A47 -> 45 | J47: ='Ethnicity Data'!B47 -> Other | L47: FALSE | M47: PLEASE CORRECT THE ERROR IN ETHNICITY AND FILL IN THE REMAINDER
A48: ='Edited File'!A48 -> 47 | B48: ='Edited File'!B48 -> Female | C48: ='Edited File'!C48 -> 32 | D48: ='Edited File'!D48 -> 103 | E48: ='Edited File'!E48 -> 2 | F48: ='Edited File'!F48 -> 1 | G48: ='Edited File'!G48 -> 61.8 | I48: ='Ethnicity Data'!A48 -> 46 | J48: ='Ethnicity Data'!B48 -> Unknown | L48: FALSE
A49: ='Edited File'!A49 -> 48 | B49: ='Edited File'!B49 -> Female | C49: ='Edited File'!C49 -> 23 | D49: ='Edited File'!D49 -> 133 | E49: ='Edited File'!E49 -> 2 | F49: ='Edited File'!F49 -> 2 | G49: ='Edited File'!G49 -> 36.6 | I49: ='Ethnicity Data'!A49 -> 47 | J49: ='Ethnicity Data'!B49 -> Japanese | L49: FALSE
A50: ='Edited File'!A50 -> 49 | B50: ='Edited File'!B50 -> Female | C50: ='Edited File'!C50 -> 44 | D50: ='Edited File'!D50 -> 315 | E50: ='Edited File'!E50 -> 2 | F50: ='Edited File'!F50 -> 2 | G50: ='Edited File'!G50 -> 40.4 | I50: ='Ethnicity Data'!A50 -> 48 | J50: ='Ethnicity Data'!B50 -> Filipino | L50: FALSE
A51: ='Edited File'!A51 -> 50 | B51: ='Edited File'!B51 -> Female | C51: ='Edited File'!C51 -> 54 | D51: ='Edited File'!D51 -> 65 | E51: ='Edited File'!E51 -> 2 | F51: ='Edited File'!F51 -> 2 | G51: ='Edited File'!G51 -> 35 | I51: ='Ethnicity Data'!A51 -> 49 | J51: ='Ethnicity Data'!B51 -> White | L51: FALSE
A52: ='Edited File'!A52 -> 51 | B52: ='Edited File'!B52 -> Male | C52: ='Edited File'!C52 -> 76 | D52: ='Edited File'!D52 -> 997 | E52: ='Edited File'!E52 -> 2 | F52: ='Edited File'!F52 -> 1 | G52: ='Edited File'!G52 -> 39.2 | I52: ='Ethnicity Data'!A52 -> 50 | J52: ='Ethnicity Data'!B52 -> Other | L52: FALSE
A53: ='Edited File'!A53 -> 52 | B53: ='Edited File'!B53 -> Female | C53: ='Edited File'!C53 -> 43 | D53: ='Edited File'!D53 -> 459 | E53: ='Edited File'!E53 -> 1 | F53: ='Edited File'!F53 -> 1 | G53: ='Edited File'!G53 -> 34.2 | I53: ='Ethnicity Data'!A53 -> 51 | J53: ='Ethnicity Data'!B53 -> Japanese | L53: FALSE
A54: ='Edited File'!A54 -> 53 | B54: ='Edited File'!B54 -> Female | C54: ='Edited File'!C54 -> 56 | D54: ='Edited File'!D54 -> 517 | E54: ='Edited File'!E54 -> 1 | F54: ='Edited File'!F54 -> 2 | G54: ='Edited File'!G54 -> 35.2 | I54: ='Ethnicity Data'!A54 -> 52 | J54: ='Ethnicity Data'!B54 -> Other | L54: FALSE
A55: ='Edited File'!A55 -> 54 | B55: ='Edited File'!B55 -> Female | C55: ='Edited File'!C55 -> 77 | D55: ='Edited File'!D55 -> 340 | E55: ='Edited File'!E55 -> 1 | F55: ='Edited File'!F55 -> 2 | G55: ='Edited File'!G55 -> 34 | I55: ='Ethnicity Data'!A55 -> 53 | J55: ='Ethnicity Data'!B55 -> White | L55: FALSE
A56: ='Edited File'!A56 -> 55 | B56: ='Edited File'!B56 -> Female | C56: ='Edited File'!C56 -> 44 | D56: ='Edited File'!D56 -> 517 | E56: ='Edited File'!E56 -> 2 | F56: ='Edited File'!F56 -> 2 | G56: ='Edited File'!G56 -> 37.2 | I56: ='Ethnicity Data'!A56 -> 54 | J56: ='Ethnicity Data'!B56 -> Japanese | L56: FALSE
A57: ='Edited File'!A57 -> 56 | B57: ='Edited File'!B57 -> Female | C57: ='Edited File'!C57 -> 76 | D57: ='Edited File'!D57 -> 165 | E57: ='Edited File'!E57 -> 2 | F57: ='Edited File'!F57 -> 1 | G57: ='Edited File'!G57 -> 35.4 | I57: ='Ethnicity Data'!A57 -> 55 | J57: ='Ethnicity Data'!B57 -> White | L57: FALSE
A58: ='Edited File'!A58 -> 57 | B58: ='Edited File'!B58 -> Female | C58: ='Edited File'!C58 -> 76 | D58: ='Edited File'!D58 -> 586 | E58: ='Edited File'!E58 -> 2 | F58: ='Edited File'!F58 -> 1 | G58: ='Edited File'!G58 -> 47.2 | I58: ='Ethnicity Data'!A58 -> 56 | J58: ='Ethnicity Data'!B58 -> Other | L58: FALSE
A59: ='Edited File'!A59 -> 58 | B59: ='Edited File'!B59 -> Female | C59: ='Edited File'!C59 -> 43 | D59: ='Edited File'!D59 -> 340 | E59: ='Edited File'!E59 -> 2 | F59: ='Edited File'!F59 -> 1 | G59: ='Edited File'!G59 -> 34.3 | I59: ='Ethnicity Data'!A59 -> 57 | J59: ='Ethnicity Data'!B59 -> White | L59: FALSE
A60: ='Edited File'!A60 -> 59 | B60: ='Edited File'!B60 -> Female | C60: ='Edited File'!C60 -> 23 | D60: ='Edited File'!D60 -> 340 | E60: ='Edited File'!E60 -> 2 | F60: ='Edited File'!F60 -> 2 | G60: ='Edited File'!G60 -> 34.8 | I60: ='Ethnicity Data'!A60 -> 58 | J60: ='Ethnicity Data'!B60 -> Other | L60: FALSE
A61: ='Edited File'!A61 -> 60 | B61: ='Edited File'!B61 -> Male | C61: ='Edited File'!C61 -> 77 | D61: ='Edited File'!D61 -> 223 | E61: ='Edited File'!E61 -> 1 | F61: ='Edited File'!F61 -> 2 | G61: ='Edited File'!G61 -> 35.9 | I61: ='Ethnicity Data'!A61 -> 59 | J61: ='Ethnicity Data'!B61 -> Native Hawaiian/Part | L61: FALSE
A62: ='Edited File'!A62 -> 61 | B62: ='Edited File'!B62 -> Male | C62: ='Edited File'!C62 -> 65 | D62: ='Edited File'!D62 -> 410 | E62: ='Edited File'!E62 -> 1 | F62: ='Edited File'!F62 -> 2 | G62: ='Edited File'!G62 -> 34.9 | I62: ='Ethnicity Data'!A62 -> 60 | J62: ='Ethnicity Data'!B62 -> Other | L62: FALSE
A63: ='Edited File'!A63 -> 62 | B63: ='Edited File'!B63 -> Male | C63: ='Edited File'!C63 -> 43 | D63: ='Edited File'!D63 -> 140 | E63: ='Edited File'!E63 -> 1 | F63: ='Edited File'!F63 -> 1 | G63: ='Edited File'!G63 -> 35.9 | I63: ='Ethnicity Data'!A63 -> 61 | J63: ='Ethnicity Data'!B63 -> Native Hawaiian/Part | L63: FALSE
A64: ='Edited File'!A64 -> 63 | B64: ='Edited File'!B64 -> Male | C64: ='Edited File'!C64 -> 65 | D64: ='Edited File'!D64 -> 586 | E64: ='Edited File'!E64 -> 1 | F64: ='Edited File'!F64 -> 1 | G64: ='Edited File'!G64 -> 36.8 | I64: ='Ethnicity Data'!A64 -> 62 | J64: ='Ethnicity Data'!B64 -> Native Hawaiian/Part | L64: FALSE
A65: ='Edited File'!A65 -> 64 | B65: ='Edited File'!B65 -> Female | C65: ='Edited File'!C65 -> 34 | D65: ='Edited File'!D65 -> 60 | E65: ='Edited File'!E65 -> 2 | F65: ='Edited File'!F65 -> 1 | G65: ='Edited File'!G65 -> 45.2 | I65: ='Ethnicity Data'!A65 -> 63 | J65: ='Ethnicity Data'!B65 -> Japanese | L65: FALSE
A66: ='Edited File'!A66 -> 65 | B66: ='Edited File'!B66 -> Male | C66: ='Edited File'!C66 -> 23 | D66: ='Edited File'!D66 -> 886 | E66: ='Edited File'!E66 -> 1 | F66: ='Edited File'!F66 -> 2 | G66: ='Edited File'!G66 -> 35
A67: ='Edited File'!A67 -> 66 | B67: ='Edited File'!B67 -> Male | C67: ='Edited File'!C67 -> 54 | D67: ='Edited File'!D67 -> 110 | E67: ='Edited File'!E67 -> 2 | F67: ='Edited File'!F67 -> 2 | G67: ='Edited File'!G67 -> 35.5
A68: ='Edited File'!A68 -> 67 | B68: ='Edited File'!B68 -> Female | C68: ='Edited File'!C68 -> 65 | D68: ='Edited File'!D68 -> 199 | E68: ='Edited File'!E68 -> 1 | F68: ='Edited File'!F68 -> 1 | G68: ='Edited File'!G68 -> 42.1
A69: ='Edited File'!A69 -> 68 | B69: ='Edited File'!B69 -> Male | C69: ='Edited File'!C69 -> 44 | D69: ='Edited File'!D69 -> 91 | E69: ='Edited File'!E69 -> 2 | F69: ='Edited File'!F69 -> 1 | G69: ='Edited File'!G69 -> 39.1
A70: ='Edited File'!A70 -> 69 | B70: ='Edited File'!B70 -> Male | C70: ='Edited File'!C70 -> 76 | D70: ='Edited File'!D70 -> 419 | E70: ='Edited File'!E70 -> 2 | F70: ='Edited File'!F70 -> 2 | G70: ='Edited File'!G70 -> 62.6
A71: ='Edited File'!A71 -> 70 | B71: ='Edited File'!B71 -> Male | C71: ='Edited File'!C71 -> 64 | D71: ='Edited File'!D71 -> 191 | E71: ='Edited File'!E71 -> 2 | F71: ='Edited File'!F71 -> 2 | G71: ='Edited File'!G71 -> 35.4
A72: ='Edited File'!A72 -> 71 | B72: ='Edited File'!B72 -> Female | C72: ='Edited File'!C72 -> 77 | D72: ='Edited File'!D72 -> 410 | E72: ='Edited File'!E72 -> 1 | F72: ='Edited File'!F72 -> 1 | G72: ='Edited File'!G72 -> 46.8
A73: ='Edited File'!A73 -> 72 | B73: ='Edited File'!B73 -> Female | C73: ='Edited File'!C73 -> 66 | D73: ='Edited File'!D73 -> 152 | E73: ='Edited File'!E73 -> 1 | F73: ='Edited File'!F73 -> 1 | G73: ='Edited File'!G73 -> 35
A74: ='Edited File'!A74 -> 73 | B74: ='Edited File'!B74 -> Female | C74: ='Edited File'!C74 -> 43 | D74: ='Edited File'!D74 -> 583 | E74: ='Edited File'!E74 -> 1 | F74: ='Edited File'!F74 -> 1 | G74: ='Edited File'!G74 -> 34.8
A75: ='Edited File'!A75 -> 74 | B75: ='Edited File'!B75 -> Female | C75: ='Edited File'!C75 -> 40 | D75: ='Edited File'!D75 -> 415 | E75: ='Edited File'!E75 -> 2 | F75: ='Edited File'!F75 -> 2 | G75: ='Edited File'!G75 -> 40.5
A76: ='Edited File'!A76 -> 75 | B76: ='Edited File'!B76 -> Female | C76: ='Edited File'!C76 -> 20 | D76: ='Edited File'!D76 -> 704 | E76: ='Edited File'!E76 -> 2 | F76: ='Edited File'!F76 -> 2 | G76: ='Edited File'!G76 -> 37.1
A77: ='Edited File'!A77 -> 76 | B77: ='Edited File'!B77 -> Female | C77: ='Edited File'!C77 -> 33 | D77: ='Edited File'!D77 -> 192 | E77: ='Edited File'!E77 -> 2 | F77: ='Edited File'!F77 -> 2 | G77: ='Edited File'!G77 -> 35.7
A78: ='Edited File'!A78 -> 77 | B78: ='Edited File'!B78 -> Female | C78: ='Edited File'!C78 -> 42 | D78: ='Edited File'!D78 -> 51 | E78: ='Edited File'!E78 -> 1 | F78: ='Edited File'!F78 -> 1 | G78: ='Edited File'!G78 -> 35.9
A79: ='Edited File'!A79 -> 78 | B79: ='Edited File'!B79 -> Female | C79: ='Edited File'!C79 -> 66 | D79: ='Edited File'!D79 -> 44 | E79: ='Edited File'!E79 -> 1 | F79: ='Edited File'!F79 -> 1 | G79: ='Edited File'!G79 -> 37.2
A80: ='Edited File'!A80 -> 79 | B80: ='Edited File'!B80 -> Female | C80: ='Edited File'!C80 -> 54 | D80: ='Edited File'!D80 -> 44 | E80: ='Edited File'!E80 -> 1 | F80: ='Edited File'!F80 -> 1 | G80: ='Edited File'!G80 -> 34.8
A81: ='Edited File'!A81 -> 80 | B81: ='Edited File'!B81 -> Female | C81: ='Edited File'!C81 -> 43 | D81: ='Edited File'!D81 -> 517 | E81: ='Edited File'!E81 -> 2 | F81: ='Edited File'!F81 -> 2 | G81: ='Edited File'!G81 -> 49.4
A82: ='Edited File'!A82 -> 81 | B82: ='Edited File'!B82 -> Male | C82: ='Edited File'!C82 -> 55 | D82: ='Edited File'!D82 -> 219 | E82: ='Edited File'!E82 -> 1 | F82: ='Edited File'!F82 -> 1 | G82: ='Edited File'!G82 -> 39.9
A83: ='Edited File'!A83 -> 82 | B83: ='Edited File'!B83 -> Female | C83: ='Edited File'!C83 -> 32 | D83: ='Edited File'!D83 -> 310 | E83: ='Edited File'!E83 -> 2 | F83: ='Edited File'!F83 -> 2 | G83: ='Edited File'!G83 -> 43.9
A84: ='Edited File'!A84 -> 83 | B84: ='Edited File'!B84 -> Male | C84: ='Edited File'!C84 -> 77 | D84: ='Edited File'!D84 -> 174 | E84: ='Edited File'!E84 -> 1 | F84: ='Edited File'!F84 -> 1 | G84: ='Edited File'!G84 -> 71.9
A85: ='Edited File'!A85 -> 84 | B85: ='Edited File'!B85 -> Female | C85: ='Edited File'!C85 -> 43 | D85: ='Edited File'!D85 -> 517 | E85: ='Edited File'!E85 -> 1 | F85: ='Edited File'!F85 -> 2 | G85: ='Edited File'!G85 -> 34.3
A86: ='Edited File'!A86 -> 85 | B86: ='Edited File'!B86 -> Female | C86: ='Edited File'!C86 -> 24 | D86: ='Edited File'!D86 -> 410 | E86: ='Edited File'!E86 -> 2 | F86: ='Edited File'!F86 -> 2 | G86: ='Edited File'!G86 -> 35
A87: ='Edited File'!A87 -> 86 | B87: ='Edited File'!B87 -> Female | C87: ='Edited File'!C87 -> 34 | D87: ='Edited File'!D87 -> 997 | E87: ='Edited File'!E87 -> 1 | F87: ='Edited File'!F87 -> 1 | G87: ='Edited File'!G87 -> 37.2
A88: ='Edited File'!A88 -> 87 | B88: ='Edited File'!B88 -> Female | C88: ='Edited File'!C88 -> 64 | D88: ='Edited File'!D88 -> 291 | E88: ='Edited File'!E88 -> 2 | F88: ='Edited File'!F88 -> 1 | G88: ='Edited File'!G88 -> 46.6
A89: ='Edited File'!A89 -> 88 | B89: ='Edited File'!B89 -> Female | C89: ='Edited File'!C89 -> 43 | D89: ='Edited File'!D89 -> 340 | E89: ='Edited File'!E89 -> 2 | F89: ='Edited File'!F89 -> 2 | G89: ='Edited File'!G89 -> 46.1
A90: ='Edited File'!A90 -> 89 | B90: ='Edited File'!B90 -> Male | C90: ='Edited File'!C90 -> 77 | D90: ='Edited File'!D90 -> 75 | E90: ='Edited File'!E90 -> 2 | F90: ='Edited File'!F90 -> 1 | G90: ='Edited File'!G90 -> 36.2
A91: ='Edited File'!A91 -> 90 | B91: ='Edited File'!B91 -> Female | C91: ='Edited File'!C91 -> 34 | D91: ='Edited File'!D91 -> 222 | E91: ='Edited File'!E91 -> 1 | F91: ='Edited File'!F91 -> 1 | G91: ='Edited File'!G91 -> 36.6
A92: ='Edited File'!A92 -> 91 | B92: ='Edited File'!B92 -> Male | C92: ='Edited File'!C92 -> 64 | D92: ='Edited File'!D92 -> 586 | E92: ='Edited File'!E92 -> 1 | F92: ='Edited File'!F92 -> 2 | G92: ='Edited File'!G92 -> 41.6
A93: ='Edited File'!A93 -> 92 | B93: ='Edited File'!B93 -> Male | C93: ='Edited File'!C93 -> 48 | D93: ='Edited File'!D93 -> 419 | E93: ='Edited File'!E93 -> 2 | F93: ='Edited File'!F93 -> 2 | G93: ='Edited File'!G93 -> 37.3
A94: ='Edited File'!A94 -> 93 | B94: ='Edited File'!B94 -> Male | C94: ='Edited File'!C94 -> 54 | D94: ='Edited File'!D94 -> 200 | E94: ='Edited File'!E94 -> 1 | F94: ='Edited File'!F94 -> 1 | G94: ='Edited File'!G94 -> 34.7
A95: ='Edited File'!A95 -> 94 | B95: ='Edited File'!B95 -> Female | C95: ='Edited File'!C95 -> 56 | D95: ='Edited File'!D95 -> 738 | E95: ='Edited File'!E95 -> 1 | F95: ='Edited File'!F95 -> 1 | G95: ='Edited File'!G95 -> 34.9
A96: ='Edited File'!A96 -> 95 | B96: ='Edited File'!B96 -> Female | C96: ='Edited File'!C96 -> 43 | D96: ='Edited File'!D96 -> 586 | E96: ='Edited File'!E96 -> 1 | F96: ='Edited File'!F96 -> 1 | G96: ='Edited File'!G96 -> 37.1
A97: ='Edited File'!A97 -> 96 | B97: ='Edited File'!B97 -> Female | C97: ='Edited File'!C97 -> 36 | D97: ='Edited File'!D97 -> 310 | E97: ='Edited File'!E97 -> 2 | F97: ='Edited File'!F97 -> 1 | G97: ='Edited File'!G97 -> 43.6
A98: ='Edited File'!A98 -> 97 | B98: ='Edited File'!B98 -> Female | C98: ='Edited File'!C98 -> 40 | D98: ='Edited File'!D98 -> 291 | E98: ='Edited File'!E98 -> 2 | F98: ='Edited File'!F98 -> 2 | G98: ='Edited File'!G98 -> 38.3
A99: ='Edited File'!A99 -> 98 | B99: ='Edited File'!B99 -> Female | C99: ='Edited File'!C99 -> 42 | D99: ='Edited File'!D99 -> 340 | E99: ='Edited File'!E99 -> 1 | F99: ='Edited File'!F99 -> 2 | G99: ='Edited File'!G99 -> 38.1
A100: ='Edited File'!A100 -> 99 | B100: ='Edited File'!B100 -> Male | C100: ='Edited File'!C100 -> 56 | D100: ='Edited File'!D100 -> 410 | E100: ='Edited File'!E100 -> 2 | F100: ='Edited File'!F100 -> 2 | G100: ='Edited File'!G100 -> 40
A101: ='Edited File'!A101 -> 100 | B101: ='Edited File'!B101 -> Female | C101: ='Edited File'!C101 -> 23 | D101: ='Edited File'!D101 -> 219 | E101: ='Edited File'!E101 -> 1 | F101: ='Edited File'!F101 -> 2 | G101: ='Edited File'!G101 -> 35.2

Sheet Combined Example 2
A1: ='Edited File'!A1 -> IDN | B1: ='Edited File'!B1 -> GENDER | C1: ='Edited File'!C1 -> AGE | D1: ='Edited File'!D1 -> POVERTY_VALUE | E1: ='Edited File'!E1 -> MARITAL_STATUS | F1: ='Edited File'!F1 -> URBAN_RURAL | G1: ='Edited File'!G1 -> BMI | H1: =IF('Edited File'!A1='Ethnicity Data'!A1,'Ethnicity Data'!B1,"FALSE") -> ETHNICITY | J1: TOC | K1: METHOD TWO
A2: ='Edited File'!A2 -> 1 | B2: ='Edited File'!B2 -> Female | C2: ='Edited File'!C2 -> 34 | D2: ='Edited File'!D2 -> 133 | E2: ='Edited File'!E2 -> 2 | F2: ='Edited File'!F2 -> 1 | G2: ='Edited File'!G2 -> 39.1 | H2: =IF('Edited File'!A2='Ethnicity Data'!A2,'Ethnicity Data'!B2,"FALSE") -> Other | K2: The data are input by formula from the worksheet Edited Data. The ethnicity is added by a formula pointing to the data on the ethnicity worksheet and comparing the IDN's, if they match the ethnicity is pasted if they don't FALSE is pasted. Where is the error in the ethnicity datasheet?
A3: ='Edited File'!A3 -> 2 | B3: ='Edited File'!B3 -> Male | C3: ='Edited File'!C3 -> 56 | D3: ='Edited File'!D3 -> 486 | E3: ='Edited File'!E3 -> 1 | F3: ='Edited File'!F3 -> 2 | G3: ='Edited File'!G3 -> 35 | H3: =IF('Edited File'!A3='Ethnicity Data'!A3,'Ethnicity Data'!B3,"FALSE") -> Japanese
A4: ='Edited File'!A4 -> 3 | B4: ='Edited File'!B4 -> Female | C4: ='Edited File'!C4 -> 73 | D4: ='Edited File'!D4 -> 75 | E4: ='Edited File'!E4 -> 1 | F4: ='Edited File'!F4 -> 1 | G4: ='Edited File'!G4 -> 34.8 | H4: =IF('Edited File'!A4='Ethnicity Data'!A4,'Ethnicity Data'!B4,"FALSE") -> Other
A5: ='Edited File'!A5 -> 4 | B5: ='Edited File'!B5 -> Male | C5: ='Edited File'!C5 -> 42 | D5: ='Edited File'!D5 -> 738 | E5: ='Edited File'!E5 -> 1 | F5: ='Edited File'!F5 -> 2 | G5: ='Edited File'!G5 -> 34.5 | H5: =IF('Edited File'!A5='Ethnicity Data'!A5,'Ethnicity Data'!B5,"FALSE") -> Native Hawaiian/Part
A6: ='Edited File'!A6 -> 5 | B6: ='Edited File'!B6 -> Female | C6: ='Edited File'!C6 -> 55 | D6: ='Edited File'!D6 -> 192 | E6: ='Edited File'!E6 -> 2 | F6: ='Edited File'!F6 -> 1 | G6: ='Edited File'!G6 -> 38 | H6: =IF('Edited File'!A6='Ethnicity Data'!A6,'Ethnicity Data'!B6,"FALSE") -> White
A7: ='Edited File'!A7 -> 6 | B7: ='Edited File'!B7 -> Female | C7: ='Edited File'!C7 -> 67 | D7: ='Edited File'!D7 -> 399 | E7: ='Edited File'!E7 -> 2 | F7: ='Edited File'!F7 -> 2 | G7: ='Edited File'!G7 -> 34.3 | H7: =IF('Edited File'!A7='Ethnicity Data'!A7,'Ethnicity Data'!B7,"FALSE") -> Other
A8: ='Edited File'!A8 -> 7 | B8: ='Edited File'!B8 -> Male | C8: ='Edited File'!C8 -> 23 | D8: ='Edited File'!D8 -> 281 | E8: ='Edited File'!E8 -> 2 | F8: ='Edited File'!F8 -> 1 | G8: ='Edited File'!G8 -> 40.2 | H8: =IF('Edited File'!A8='Ethnicity Data'!A8,'Ethnicity Data'!B8,"FALSE") -> White
A9: ='Edited File'!A9 -> 8 | B9: ='Edited File'!B9 -> Male | C9: ='Edited File'!C9 -> 72 | D9: ='Edited File'!D9 -> 340 | E9: ='Edited File'!E9 -> 1 | F9: ='Edited File'!F9 -> 2 | G9: ='Edited File'!G9 -> 38.4 | H9: =IF('Edited File'!A9='Ethnicity Data'!A9,'Ethnicity Data'!B9,"FALSE") -> Japanese
A10: ='Edited File'!A10 -> 9 | B10: ='Edited File'!B10 -> Male | C10: ='Edited File'!C10 -> 43 | D10: ='Edited File'!D10 -> 174 | E10: ='Edited File'!E10 -> 1 | F10: ='Edited File'!F10 -> 1 | G10: ='Edited File'!G10 -> 38.8 | H10: =IF('Edited File'!A10='Ethnicity Data'!A10,'Ethnicity Data'!B10,"FALSE") -> Other
A11: ='Edited File'!A11 -> 10 | B11: ='Edited File'!B11 -> Female | C11: ='Edited File'!C11 -> 54 | D11: ='Edited File'!D11 -> 997 | E11: ='Edited File'!E11 -> 2 | F11: ='Edited File'!F11 -> 2 | G11: ='Edited File'!G11 -> 35.5 | H11: =IF('Edited File'!A11='Ethnicity Data'!A11,'Ethnicity Data'!B11,"FALSE") -> Native Hawaiian/Part
A12: ='Edited File'!A12 -> 11 | B12: ='Edited File'!B12 -> Female | C12: ='Edited File'!C12 -> 66 | D12: ='Edited File'!D12 -> 738 | E12: ='Edited File'!E12 -> 2 | F12: ='Edited File'!F12 -> 1 | G12: ='Edited File'!G12 -> 38.6 | H12: =IF('Edited File'!A12='Ethnicity Data'!A12,'Ethnicity Data'!B12,"FALSE") -> Japanese
A13: ='Edited File'!A13 -> 12 | B13: ='Edited File'!B13 -> Female | C13: ='Edited File'!C13 -> 75 | D13: ='Edited File'!D13 -> 133 | E13: ='Edited File'!E13 -> 2 | F13: ='Edited File'!F13 -> 1 | G13: ='Edited File'!G13 -> 39.2 | H13: =IF('Edited File'!A13='Ethnicity Data'!A13,'Ethnicity Data'!B13,"FALSE") -> Native Hawaiian/Part
A14: ='Edited File'!A14 -> 13 | B14: ='Edited File'!B14 -> Male | C14: ='Edited File'!C14 -> 23 | D14: ='Edited File'!D14 -> 379 | E14: ='Edited File'!E14 -> 1 | F14: ='Edited File'!F14 -> 1 | G14: ='Edited File'!G14 -> 36.5 | H14: =IF('Edited File'!A14='Ethnicity Data'!A14,'Ethnicity Data'!B14,"FALSE") -> Japanese
A15: ='Edited File'!A15 -> 14 | B15: ='Edited File'!B15 -> Male | C15: ='Edited File'!C15 -> 44 | D15: ='Edited File'!D15 -> 738 | E15: ='Edited File'!E15 -> 1 | F15: ='Edited File'!F15 -> 2 | G15: ='Edited File'!G15 -> 36.6 | H15: =IF('Edited File'!A15='Ethnicity Data'!A15,'Ethnicity Data'!B15,"FALSE") -> White
A16: ='Edited File'!A16 -> 15 | B16: ='Edited File'!B16 -> Female | C16: ='Edited File'!C16 -> 73 | D16: ='Edited File'!D16 -> 498 | E16: ='Edited File'!E16 -> 1 | F16: ='Edited File'!F16 -> 1 | G16: ='Edited File'!G16 -> 36.8 | H16: =IF('Edited File'!A16='Ethnicity Data'!A16,'Ethnicity Data'!B16,"FALSE") -> White
A17: ='Edited File'!A17 -> 16 | B17: ='Edited File'!B17 -> Male | C17: ='Edited File'!C17 -> 23 | D17: ='Edited File'!D17 -> 340 | E17: ='Edited File'!E17 -> 1 | F17: ='Edited File'!F17 -> 2 | G17: ='Edited File'!G17 -> 41.1 | H17: =IF('Edited File'!A17='Ethnicity Data'!A17,'Ethnicity Data'!B17,"FALSE") -> Japanese
A18: ='Edited File'!A18 -> 17 | B18: ='Edited File'!B18 -> Male | C18: ='Edited File'!C18 -> 64 | D18: ='Edited File'!D18 -> 415 | E18: ='Edited File'!E18 -> 2 | F18: ='Edited File'!F18 -> 2 | G18: ='Edited File'!G18 -> 34.5 | H18: =IF('Edited File'!A18='Ethnicity Data'!A18,'Ethnicity Data'!B18,"FALSE") -> Filipino
A19: ='Edited File'!A19 -> 18 | B19: ='Edited File'!B19 -> Female | C19: ='Edited File'!C19 -> 54 | D19: ='Edited File'!D19 -> 202 | E19: ='Edited File'!E19 -> 1 | F19: ='Edited File'!F19 -> 2 | G19: ='Edited File'!G19 -> 35.2 | H19: =IF('Edited File'!A19='Ethnicity Data'!A19,'Ethnicity Data'!B19,"FALSE") -> White
A20: ='Edited File'!A20 -> 19 | B20: ='Edited File'!B20 -> Male | C20: ='Edited File'!C20 -> 23 | D20: ='Edited File'!D20 -> 459 | E20: ='Edited File'!E20 -> 2 | F20: ='Edited File'!F20 -> 1 | G20: ='Edited File'!G20 -> 37.4 | H20: =IF('Edited File'!A20='Ethnicity Data'!A20,'Ethnicity Data'!B20,"FALSE") -> Other
A21: ='Edited File'!A21 -> 20 | B21: ='Edited File'!B21 -> Male | C21: ='Edited File'!C21 -> 45 | D21: ='Edited File'!D21 -> 310 | E21: ='Edited File'!E21 -> 1 | F21: ='Edited File'!F21 -> 1 | G21: ='Edited File'!G21 -> 38 | H21: =IF('Edited File'!A21='Ethnicity Data'!A21,'Ethnicity Data'!B21,"FALSE") -> White
A22: ='Edited File'!A22 -> 21 | B22: ='Edited File'!B22 -> Female | C22: ='Edited File'!C22 -> 55 | D22: ='Edited File'!D22 -> 486 | E22: ='Edited File'!E22 -> 1 | F22: ='Edited File'!F22 -> 2 | G22: ='Edited File'!G22 -> 36.4 | H22: =IF('Edited File'!A22='Ethnicity Data'!A22,'Ethnicity Data'!B22,"FALSE") -> Native Hawaiian/Part
A23: ='Edited File'!A23 -> 22 | B23: ='Edited File'!B23 -> Female | C23: ='Edited File'!C23 -> 34 | D23: ='Edited File'!D23 -> 192 | E23: ='Edited File'!E23 -> 1 | F23: ='Edited File'!F23 -> 1 | G23: ='Edited File'!G23 -> 38.4 | H23: =IF('Edited File'!A23='Ethnicity Data'!A23,'Ethnicity Data'!B23,"FALSE") -> Other
A24: ='Edited File'!A24 -> 23 | B24: ='Edited File'!B24 -> Male | C24: ='Edited File'!C24 -> 34 | D24: ='Edited File'!D24 -> 82 | E24: ='Edited File'!E24 -> 2 | F24: ='Edited File'!F24 -> 2 | G24: ='Edited File'!G24 -> 44.3 | H24: =IF('Edited File'!A24='Ethnicity Data'!A24,'Ethnicity Data'!B24,"FALSE") -> Other
A25: ='Edited File'!A25 -> 24 | B25: ='Edited File'!B25 -> Female | C25: ='Edited File'!C25 -> 65 | D25: ='Edited File'!D25 -> 340 | E25: ='Edited File'!E25 -> 2 | F25: ='Edited File'!F25 -> 2 | G25: ='Edited File'!G25 -> 36 | H25: =IF('Edited File'!A25='Ethnicity Data'!A25,'Ethnicity Data'!B25,"FALSE") -> White
A26: ='Edited File'!A26 -> 25 | B26: ='Edited File'!B26 -> Male | C26: ='Edited File'!C26 -> 45 | D26: ='Edited File'!D26 -> 74 | E26: ='Edited File'!E26 -> 1 | F26: ='Edited File'!F26 -> 2 | G26: ='Edited File'!G26 -> 49.9 | H26: =IF('Edited File'!A26='Ethnicity Data'!A26,'Ethnicity Data'!B26,"FALSE") -> Japanese
A27: ='Edited File'!A27 -> 26 | B27: ='Edited File'!B27 -> Female | C27: ='Edited File'!C27 -> 44 | D27: ='Edited File'!D27 -> 281 | E27: ='Edited File'!E27 -> 1 | F27: ='Edited File'!F27 -> 1 | G27: ='Edited File'!G27 -> 34.2 | H27: =IF('Edited File'!A27='Ethnicity Data'!A27,'Ethnicity Data'!B27,"FALSE") -> 
A28: ='Edited File'!A28 -> 27 | B28: ='Edited File'!B28 -> Female | C28: ='Edited File'!C28 -> 33 | D28: ='Edited File'!D28 -> 94 | E28: ='Edited File'!E28 -> 2 | F28: ='Edited File'!F28 -> 1 | G28: ='Edited File'!G28 -> 41 | H28: =IF('Edited File'!A28='Ethnicity Data'!A28,'Ethnicity Data'!B28,"FALSE") -> Japanese
A29: ='Edited File'!A29 -> 28 | B29: ='Edited File'!B29 -> Female | C29: ='Edited File'!C29 -> 66 | D29: ='Edited File'!D29 -> 459 | E29: ='Edited File'!E29 -> 2 | F29: ='Edited File'!F29 -> 2 | G29: ='Edited File'!G29 -> 34.1 | H29: =IF('Edited File'!A29='Ethnicity Data'!A29,'Ethnicity Data'!B29,"FALSE") -> Native Hawaiian/Part
A30: ='Edited File'!A30 -> 29 | B30: ='Edited File'!B30 -> Female | C30: ='Edited File'!C30 -> 43 | D30: ='Edited File'!D30 -> 340 | E30: ='Edited File'!E30 -> 2 | F30: ='Edited File'!F30 -> 2 | G30: ='Edited File'!G30 -> 38.8 | H30: =IF('Edited File'!A30='Ethnicity Data'!A30,'Ethnicity Data'!B30,"FALSE") -> Japanese
A31: ='Edited File'!A31 -> 30 | B31: ='Edited File'!B31 -> Female | C31: ='Edited File'!C31 -> 55 | D31: ='Edited File'!D31 -> 162 | E31: ='Edited File'!E31 -> 1 | F31: ='Edited File'!F31 -> 1 | G31: ='Edited File'!G31 -> 36.8 | H31: =IF('Edited File'!A31='Ethnicity Data'!A31,'Ethnicity Data'!B31,"FALSE") -> Other
A32: ='Edited File'!A32 -> 31 | B32: ='Edited File'!B32 -> Male | C32: ='Edited File'!C32 -> 43 | D32: ='Edited File'!D32 -> 583 | E32: ='Edited File'!E32 -> 1 | F32: ='Edited File'!F32 -> 1 | G32: ='Edited File'!G32 -> 40.7 | H32: =IF('Edited File'!A32='Ethnicity Data'!A32,'Ethnicity Data'!B32,"FALSE") -> Japanese
A33: ='Edited File'!A33 -> 32 | B33: ='Edited File'!B33 -> Female | C33: ='Edited File'!C33 -> 56 | D33: ='Edited File'!D33 -> 583 | E33: ='Edited File'!E33 -> 1 | F33: ='Edited File'!F33 -> 1 | G33: ='Edited File'!G33 -> 34.2 | H33: =IF('Edited File'!A33='Ethnicity Data'!A33,'Ethnicity Data'!B33,"FALSE") -> Other
A34: ='Edited File'!A34 -> 33 | B34: ='Edited File'!B34 -> Female | C34: ='Edited File'!C34 -> 34 | D34: ='Edited File'!D34 -> 399 | E34: ='Edited File'!E34 -> 2 | F34: ='Edited File'!F34 -> 1 | G34: ='Edited File'!G34 -> 35.9 | H34: =IF('Edited File'!A34='Ethnicity Data'!A34,'Ethnicity Data'!B34,"FALSE") -> Filipino
A35: ='Edited File'!A35 -> 34 | B35: ='Edited File'!B35 -> Female | C35: ='Edited File'!C35 -> 54 | D35: ='Edited File'!D35 -> 538 | E35: ='Edited File'!E35 -> 1 | F35: ='Edited File'!F35 -> 1 | G35: ='Edited File'!G35 -> 37.8 | H35: =IF('Edited File'!A35='Ethnicity Data'!A35,'Ethnicity Data'!B35,"FALSE") -> Other
A36: ='Edited File'!A36 -> 35 | B36: ='Edited File'!B36 -> Male | C36: ='Edited File'!C36 -> 78 | D36: ='Edited File'!D36 -> 586 | E36: ='Edited File'!E36 -> 2 | F36: ='Edited File'!F36 -> 1 | G36: ='Edited File'!G36 -> 36 | H36: =IF('Edited File'!A36='Ethnicity Data'!A36,'Ethnicity Data'!B36,"FALSE") -> Japanese
A37: ='Edited File'!A37 -> 36 | B37: ='Edited File'!B37 -> Male | C37: ='Edited File'!C37 -> 25 | D37: ='Edited File'!D37 -> 225 | E37: ='Edited File'!E37 -> 2 | F37: ='Edited File'!F37 -> 1 | G37: ='Edited File'!G37 -> 40.7 | H37: =IF('Edited File'!A37='Ethnicity Data'!A37,'Ethnicity Data'!B37,"FALSE") -> Japanese
A38: ='Edited File'!A38 -> 37 | B38: ='Edited File'!B38 -> Male | C38: ='Edited File'!C38 -> 33 | D38: ='Edited File'!D38 -> 997 | E38: ='Edited File'!E38 -> 2 | F38: ='Edited File'!F38 -> 2 | G38: ='Edited File'!G38 -> 40.2 | H38: =IF('Edited File'!A38='Ethnicity Data'!A38,'Ethnicity Data'!B38,"FALSE") -> White
A39: ='Edited File'!A39 -> 38 | B39: ='Edited File'!B39 -> Female | C39: ='Edited File'!C39 -> 22 | D39: ='Edited File'!D39 -> 399 | E39: ='Edited File'!E39 -> 1 | F39: ='Edited File'!F39 -> 2 | G39: ='Edited File'!G39 -> 45.6 | H39: =IF('Edited File'!A39='Ethnicity Data'!A39,'Ethnicity Data'!B39,"FALSE") -> White
A40: ='Edited File'!A40 -> 39 | B40: ='Edited File'!B40 -> Female | C40: ='Edited File'!C40 -> 45 | D40: ='Edited File'!D40 -> 141 | E40: ='Edited File'!E40 -> 2 | F40: ='Edited File'!F40 -> 2 | G40: ='Edited File'!G40 -> 35.8 | H40: =IF('Edited File'!A40='Ethnicity Data'!A40,'Ethnicity Data'!B40,"FALSE") -> Native Hawaiian/Part
A41: ='Edited File'!A41 -> 40 | B41: ='Edited File'!B41 -> Male | C41: ='Edited File'!C41 -> 33 | D41: ='Edited File'!D41 -> 125 | E41: ='Edited File'!E41 -> 2 | F41: ='Edited File'!F41 -> 2 | G41: ='Edited File'!G41 -> 36.9 | H41: =IF('Edited File'!A41='Ethnicity Data'!A41,'Ethnicity Data'!B41,"FALSE") -> Japanese
A42: ='Edited File'!A42 -> 41 | B42: ='Edited File'!B42 -> Female | C42: ='Edited File'!C42 -> 32 | D42: ='Edited File'!D42 -> 586 | E42: ='Edited File'!E42 -> 1 | F42: ='Edited File'!F42 -> 1 | G42: ='Edited File'!G42 -> 35.4 | H42: =IF('Edited File'!A42='Ethnicity Data'!A42,'Ethnicity Data'!B42,"FALSE") -> Filipino
A43: ='Edited File'!A43 -> 42 | B43: ='Edited File'!B43 -> Female | C43: ='Edited File'!C43 -> 54 | D43: ='Edited File'!D43 -> 415 | E43: ='Edited File'!E43 -> 1 | F43: ='Edited File'!F43 -> 1 | G43: ='Edited File'!G43 -> 34.7 | H43: =IF('Edited File'!A43='Ethnicity Data'!A43,'Ethnicity Data'!B43,"FALSE") -> White
A44: ='Edited File'!A44 -> 43 | B44: ='Edited File'!B44 -> Female | C44: ='Edited File'!C44 -> 43 | D44: ='Edited File'!D44 -> 586 | E44: ='Edited File'!E44 -> 1 | F44: ='Edited File'!F44 -> 2 | G44: ='Edited File'!G44 -> 35 | H44: =IF('Edited File'!A44='Ethnicity Data'!A44,'Ethnicity Data'!B44,"FALSE") -> FALSE
A45: ='Edited File'!A45 -> 44 | B45: ='Edited File'!B45 -> Female | C45: ='Edited File'!C45 -> 55 | D45: ='Edited File'!D45 -> 152 | E45: ='Edited File'!E45 -> 2 | F45: ='Edited File'!F45 -> 2 | G45: ='Edited File'!G45 -> 37.4 | H45: =IF('Edited File'!A45='Ethnicity Data'!A45,'Ethnicity Data'!B45,"FALSE") -> FALSE
A46: ='Edited File'!A46 -> 45 | B46: ='Edited File'!B46 -> Female | C46: ='Edited File'!C46 -> 77 | D46: ='Edited File'!D46 -> 586 | E46: ='Edited File'!E46 -> 1 | F46: ='Edited File'!F46 -> 1 | G46: ='Edited File'!G46 -> 40.4 | H46: =IF('Edited File'!A46='Ethnicity Data'!A46,'Ethnicity Data'!B46,"FALSE") -> FALSE
A47: ='Edited File'!A47 -> 46 | B47: ='Edited File'!B47 -> Female | C47: ='Edited File'!C47 -> 45 | D47: ='Edited File'!D47 -> 379 | E47: ='Edited File'!E47 -> 1 | F47: ='Edited File'!F47 -> 1 | G47: ='Edited File'!G47 -> 42.9 | H47: =IF('Edited File'!A47='Ethnicity Data'!A47,'Ethnicity Data'!B47,"FALSE") -> FALSE
A48: ='Edited File'!A48 -> 47 | B48: ='Edited File'!B48 -> Female | C48: ='Edited File'!C48 -> 32 | D48: ='Edited File'!D48 -> 103 | E48: ='Edited File'!E48 -> 2 | F48: ='Edited File'!F48 -> 1 | G48: ='Edited File'!G48 -> 61.8 | H48: =IF('Edited File'!A48='Ethnicity Data'!A48,'Ethnicity Data'!B48,"FALSE") -> FALSE
A49: ='Edited File'!A49 -> 48 | B49: ='Edited File'!B49 -> Female | C49: ='Edited File'!C49 -> 23 | D49: ='Edited File'!D49 -> 133 | E49: ='Edited File'!E49 -> 2 | F49: ='Edited File'!F49 -> 2 | G49: ='Edited File'!G49 -> 36.6 | H49: =IF('Edited File'!A49='Ethnicity Data'!A49,'Ethnicity Data'!B49,"FALSE") -> FALSE
A50: ='Edited File'!A50 -> 49 | B50: ='Edited File'!B50 -> Female | C50: ='Edited File'!C50 -> 44 | D50: ='Edited File'!D50 -> 315 | E50: ='Edited File'!E50 -> 2 | F50: ='Edited File'!F50 -> 2 | G50: ='Edited File'!G50 -> 40.4 | H50: =IF('Edited File'!A50='Ethnicity Data'!A50,'Ethnicity Data'!B50,"FALSE") -> FALSE
A51: ='Edited File'!A51 -> 50 | B51: ='Edited File'!B51 -> Female | C51: ='Edited File'!C51 -> 54 | D51: ='Edited File'!D51 -> 65 | E51: ='Edited File'!E51 -> 2 | F51: ='Edited File'!F51 -> 2 | G51: ='Edited File'!G51 -> 35 | H51: =IF('Edited File'!A51='Ethnicity Data'!A51,'Ethnicity Data'!B51,"FALSE") -> FALSE
A52: ='Edited File'!A52 -> 51 | B52: ='Edited File'!B52 -> Male | C52: ='Edited File'!C52 -> 76 | D52: ='Edited File'!D52 -> 997 | E52: ='Edited File'!E52 -> 2 | F52: ='Edited File'!F52 -> 1 | G52: ='Edited File'!G52 -> 39.2 | H52: =IF('Edited File'!A52='Ethnicity Data'!A52,'Ethnicity Data'!B52,"FALSE") -> FALSE
A53: ='Edited File'!A53 -> 52 | B53: ='Edited File'!B53 -> Female | C53: ='Edited File'!C53 -> 43 | D53: ='Edited File'!D53 -> 459 | E53: ='Edited File'!E53 -> 1 | F53: ='Edited File'!F53 -> 1 | G53: ='Edited File'!G53 -> 34.2 | H53: =IF('Edited File'!A53='Ethnicity Data'!A53,'Ethnicity Data'!B53,"FALSE") -> FALSE
A54: ='Edited File'!A54 -> 53 | B54: ='Edited File'!B54 -> Female | C54: ='Edited File'!C54 -> 56 | D54: ='Edited File'!D54 -> 517 | E54: ='Edited File'!E54 -> 1 | F54: ='Edited File'!F54 -> 2 | G54: ='Edited File'!G54 -> 35.2 | H54: =IF('Edited File'!A54='Ethnicity Data'!A54,'Ethnicity Data'!B54,"FALSE") -> FALSE
A55: ='Edited File'!A55 -> 54 | B55: ='Edited File'!B55 -> Female | C55: ='Edited File'!C55 -> 77 | D55: ='Edited File'!D55 -> 340 | E55: ='Edited File'!E55 -> 1 | F55: ='Edited File'!F55 -> 2 | G55: ='Edited File'!G55 -> 34 | H55: =IF('Edited File'!A55='Ethnicity Data'!A55,'Ethnicity Data'!B55,"FALSE") -> FALSE
A56: ='Edited File'!A56 -> 55 | B56: ='Edited File'!B56 -> Female | C56: ='Edited File'!C56 -> 44 | D56: ='Edited File'!D56 -> 517 | E56: ='Edited File'!E56 -> 2 | F56: ='Edited File'!F56 -> 2 | G56: ='Edited File'!G56 -> 37.2 | H56: =IF('Edited File'!A56='Ethnicity Data'!A56,'Ethnicity Data'!B56,"FALSE") -> FALSE
A57: ='Edited File'!A57 -> 56 | B57: ='Edited File'!B57 -> Female | C57: ='Edited File'!C57 -> 76 | D57: ='Edited File'!D57 -> 165 | E57: ='Edited File'!E57 -> 2 | F57: ='Edited File'!F57 -> 1 | G57: ='Edited File'!G57 -> 35.4 | H57: =IF('Edited File'!A57='Ethnicity Data'!A57,'Ethnicity Data'!B57,"FALSE") -> FALSE
A58: ='Edited File'!A58 -> 57 | B58: ='Edited File'!B58 -> Female | C58: ='Edited File'!C58 -> 76 | D58: ='Edited File'!D58 -> 586 | E58: ='Edited File'!E58 -> 2 | F58: ='Edited File'!F58 -> 1 | G58: ='Edited File'!G58 -> 47.2 | H58: =IF('Edited File'!A58='Ethnicity Data'!A58,'Ethnicity Data'!B58,"FALSE") -> FALSE
A59: ='Edited File'!A59 -> 58 | B59: ='Edited File'!B59 -> Female | C59: ='Edited File'!C59 -> 43 | D59: ='Edited File'!D59 -> 340 | E59: ='Edited File'!E59 -> 2 | F59: ='Edited File'!F59 -> 1 | G59: ='Edited File'!G59 -> 34.3 | H59: =IF('Edited File'!A59='Ethnicity Data'!A59,'Ethnicity Data'!B59,"FALSE") -> FALSE
A60: ='Edited File'!A60 -> 59 | B60: ='Edited File'!B60 -> Female | C60: ='Edited File'!C60 -> 23 | D60: ='Edited File'!D60 -> 340 | E60: ='Edited File'!E60 -> 2 | F60: ='Edited File'!F60 -> 2 | G60: ='Edited File'!G60 -> 34.8 | H60: =IF('Edited File'!A60='Ethnicity Data'!A60,'Ethnicity Data'!B60,"FALSE") -> FALSE
A61: ='Edited File'!A61 -> 60 | B61: ='Edited File'!B61 -> Male | C61: ='Edited File'!C61 -> 77 | D61: ='Edited File'!D61 -> 223 | E61: ='Edited File'!E61 -> 1 | F61: ='Edited File'!F61 -> 2 | G61: ='Edited File'!G61 -> 35.9 | H61: =IF('Edited File'!A61='Ethnicity Data'!A61,'Ethnicity Data'!B61,"FALSE") -> FALSE
A62: ='Edited File'!A62 -> 61 | B62: ='Edited File'!B62 -> Male | C62: ='Edited File'!C62 -> 65 | D62: ='Edited File'!D62 -> 410 | E62: ='Edited File'!E62 -> 1 | F62: ='Edited File'!F62 -> 2 | G62: ='Edited File'!G62 -> 34.9 | H62: =IF('Edited File'!A62='Ethnicity Data'!A62,'Ethnicity Data'!B62,"FALSE") -> FALSE
A63: ='Edited File'!A63 -> 62 | B63: ='Edited File'!B63 -> Male | C63: ='Edited File'!C63 -> 43 | D63: ='Edited File'!D63 -> 140 | E63: ='Edited File'!E63 -> 1 | F63: ='Edited File'!F63 -> 1 | G63: ='Edited File'!G63 -> 35.9 | H63: =IF('Edited File'!A63='Ethnicity Data'!A63,'Ethnicity Data'!B63,"FALSE") -> FALSE
A64: ='Edited File'!A64 -> 63 | B64: ='Edited File'!B64 -> Male | C64: ='Edited File'!C64 -> 65 | D64: ='Edited File'!D64 -> 586 | E64: ='Edited File'!E64 -> 1 | F64: ='Edited File'!F64 -> 1 | G64: ='Edited File'!G64 -> 36.8 | H64: =IF('Edited File'!A64='Ethnicity Data'!A64,'Ethnicity Data'!B64,"FALSE") -> FALSE
A65: ='Edited File'!A65 -> 64 | B65: ='Edited File'!B65 -> Female | C65: ='Edited File'!C65 -> 34 | D65: ='Edited File'!D65 -> 60 | E65: ='Edited File'!E65 -> 2 | F65: ='Edited File'!F65 -> 1 | G65: ='Edited File'!G65 -> 45.2 | H65: =IF('Edited File'!A65='Ethnicity Data'!A65,'Ethnicity Data'!B65,"FALSE") -> FALSE
A66: ='Edited File'!A66 -> 65 | B66: ='Edited File'!B66 -> Male | C66: ='Edited File'!C66 -> 23 | D66: ='Edited File'!D66 -> 886 | E66: ='Edited File'!E66 -> 1 | F66: ='Edited File'!F66 -> 2 | G66: ='Edited File'!G66 -> 35 | H66: =IF('Edited File'!A66='Ethnicity Data'!A66,'Ethnicity Data'!B66,"FALSE") -> FALSE
A67: ='Edited File'!A67 -> 66 | B67: ='Edited File'!B67 -> Male | C67: ='Edited File'!C67 -> 54 | D67: ='Edited File'!D67 -> 110 | E67: ='Edited File'!E67 -> 2 | F67: ='Edited File'!F67 -> 2 | G67: ='Edited File'!G67 -> 35.5 | H67: =IF('Edited File'!A67='Ethnicity Data'!A67,'Ethnicity Data'!B67,"FALSE") -> FALSE
A68: ='Edited File'!A68 -> 67 | B68: ='Edited File'!B68 -> Female | C68: ='Edited File'!C68 -> 65 | D68: ='Edited File'!D68 -> 199 | E68: ='Edited File'!E68 -> 1 | F68: ='Edited File'!F68 -> 1 | G68: ='Edited File'!G68 -> 42.1 | H68: =IF('Edited File'!A68='Ethnicity Data'!A68,'Ethnicity Data'!B68,"FALSE") -> FALSE
A69: ='Edited File'!A69 -> 68 | B69: ='Edited File'!B69 -> Male | C69: ='Edited File'!C69 -> 44 | D69: ='Edited File'!D69 -> 91 | E69: ='Edited File'!E69 -> 2 | F69: ='Edited File'!F69 -> 1 | G69: ='Edited File'!G69 -> 39.1 | H69: =IF('Edited File'!A69='Ethnicity Data'!A69,'Ethnicity Data'!B69,"FALSE") -> FALSE
A70: ='Edited File'!A70 -> 69 | B70: ='Edited File'!B70 -> Male | C70: ='Edited File'!C70 -> 76 | D70: ='Edited File'!D70 -> 419 | E70: ='Edited File'!E70 -> 2 | F70: ='Edited File'!F70 -> 2 | G70: ='Edited File'!G70 -> 62.6 | H70: =IF('Edited File'!A70='Ethnicity Data'!A70,'Ethnicity Data'!B70,"FALSE") -> FALSE
A71: ='Edited File'!A71 -> 70 | B71: ='Edited File'!B71 -> Male | C71: ='Edited File'!C71 -> 64 | D71: ='Edited File'!D71 -> 191 | E71: ='Edited File'!E71 -> 2 | F71: ='Edited File'!F71 -> 2 | G71: ='Edited File'!G71 -> 35.4 | H71: =IF('Edited File'!A71='Ethnicity Data'!A71,'Ethnicity Data'!B71,"FALSE") -> FALSE
A72: ='Edited File'!A72 -> 71 | B72: ='Edited File'!B72 -> Female | C72: ='Edited File'!C72 -> 77 | D72: ='Edited File'!D72 -> 410 | E72: ='Edited File'!E72 -> 1 | F72: ='Edited File'!F72 -> 1 | G72: ='Edited File'!G72 -> 46.8 | H72: =IF('Edited File'!A72='Ethnicity Data'!A72,'Ethnicity Data'!B72,"FALSE") -> FALSE
A73: ='Edited File'!A73 -> 72 | B73: ='Edited File'!B73 -> Female | C73: ='Edited File'!C73 -> 66 | D73: ='Edited File'!D73 -> 152 | E73: ='Edited File'!E73 -> 1 | F73: ='Edited File'!F73 -> 1 | G73: ='Edited File'!G73 -> 35 | H73: =IF('Edited File'!A73='Ethnicity Data'!A73,'Ethnicity Data'!B73,"FALSE") -> FALSE
A74: ='Edited File'!A74 -> 73 | B74: ='Edited File'!B74 -> Female | C74: ='Edited File'!C74 -> 43 | D74: ='Edited File'!D74 -> 583 | E74: ='Edited File'!E74 -> 1 | F74: ='Edited File'!F74 -> 1 | G74: ='Edited File'!G74 -> 34.8 | H74: =IF('Edited File'!A74='Ethnicity Data'!A74,'Ethnicity Data'!B74,"FALSE") -> FALSE
A75: ='Edited File'!A75 -> 74 | B75: ='Edited File'!B75 -> Female | C75: ='Edited File'!C75 -> 40 | D75: ='Edited File'!D75 -> 415 | E75: ='Edited File'!E75 -> 2 | F75: ='Edited File'!F75 -> 2 | G75: ='Edited File'!G75 -> 40.5 | H75: =IF('Edited File'!A75='Ethnicity Data'!A75,'Ethnicity Data'!B75,"FALSE") -> FALSE
A76: ='Edited File'!A76 -> 75 | B76: ='Edited File'!B76 -> Female | C76: ='Edited File'!C76 -> 20 | D76: ='Edited File'!D76 -> 704 | E76: ='Edited File'!E76 -> 2 | F76: ='Edited File'!F76 -> 2 | G76: ='Edited File'!G76 -> 37.1 | H76: =IF('Edited File'!A76='Ethnicity Data'!A76,'Ethnicity Data'!B76,"FALSE") -> FALSE
A77: ='Edited File'!A77 -> 76 | B77: ='Edited File'!B77 -> Female | C77: ='Edited File'!C77 -> 33 | D77: ='Edited File'!D77 -> 192 | E77: ='Edited File'!E77 -> 2 | F77: ='Edited File'!F77 -> 2 | G77: ='Edited File'!G77 -> 35.7 | H77: =IF('Edited File'!A77='Ethnicity Data'!A77,'Ethnicity Data'!B77,"FALSE") -> FALSE
A78: ='Edited File'!A78 -> 77 | B78: ='Edited File'!B78 -> Female | C78: ='Edited File'!C78 -> 42 | D78: ='Edited File'!D78 -> 51 | E78: ='Edited File'!E78 -> 1 | F78: ='Edited File'!F78 -> 1 | G78: ='Edited File'!G78 -> 35.9 | H78: =IF('Edited File'!A78='Ethnicity Data'!A78,'Ethnicity Data'!B78,"FALSE") -> FALSE
A79: ='Edited File'!A79 -> 78 | B79: ='Edited File'!B79 -> Female | C79: ='Edited File'!C79 -> 66 | D79: ='Edited File'!D79 -> 44 | E79: ='Edited File'!E79 -> 1 | F79: ='Edited File'!F79 -> 1 | G79: ='Edited File'!G79 -> 37.2 | H79: =IF('Edited File'!A79='Ethnicity Data'!A79,'Ethnicity Data'!B79,"FALSE") -> FALSE
A80: ='Edited File'!A80 -> 79 | B80: ='Edited File'!B80 -> Female | C80: ='Edited File'!C80 -> 54 | D80: ='Edited File'!D80 -> 44 | E80: ='Edited File'!E80 -> 1 | F80: ='Edited File'!F80 -> 1 | G80: ='Edited File'!G80 -> 34.8 | H80: =IF('Edited File'!A80='Ethnicity Data'!A80,'Ethnicity Data'!B80,"FALSE") -> FALSE
A81: ='Edited File'!A81 -> 80 | B81: ='Edited File'!B81 -> Female | C81: ='Edited File'!C81 -> 43 | D81: ='Edited File'!D81 -> 517 | E81: ='Edited File'!E81 -> 2 | F81: ='Edited File'!F81 -> 2 | G81: ='Edited File'!G81 -> 49.4 | H81: =IF('Edited File'!A81='Ethnicity Data'!A81,'Ethnicity Data'!B81,"FALSE") -> FALSE
A82: ='Edited File'!A82 -> 81 | B82: ='Edited File'!B82 -> Male | C82: ='Edited File'!C82 -> 55 | D82: ='Edited File'!D82 -> 219 | E82: ='Edited File'!E82 -> 1 | F82: ='Edited File'!F82 -> 1 | G82: ='Edited File'!G82 -> 39.9 | H82: =IF('Edited File'!A82='Ethnicity Data'!A82,'Ethnicity Data'!B82,"FALSE") -> FALSE
A83: ='Edited File'!A83 -> 82 | B83: ='Edited File'!B83 -> Female | C83: ='Edited File'!C83 -> 32 | D83: ='Edited File'!D83 -> 310 | E83: ='Edited File'!E83 -> 2 | F83: ='Edited File'!F83 -> 2 | G83: ='Edited File'!G83 -> 43.9 | H83: =IF('Edited File'!A83='Ethnicity Data'!A83,'Ethnicity Data'!B83,"FALSE") -> FALSE
A84: ='Edited File'!A84 -> 83 | B84: ='Edited File'!B84 -> Male | C84: ='Edited File'!C84 -> 77 | D84: ='Edited File'!D84 -> 174 | E84: ='Edited File'!E84 -> 1 | F84: ='Edited File'!F84 -> 1 | G84: ='Edited File'!G84 -> 71.9 | H84: =IF('Edited File'!A84='Ethnicity Data'!A84,'Ethnicity Data'!B84,"FALSE") -> FALSE
A85: ='Edited File'!A85 -> 84 | B85: ='Edited File'!B85 -> Female | C85: ='Edited File'!C85 -> 43 | D85: ='Edited File'!D85 -> 517 | E85: ='Edited File'!E85 -> 1 | F85: ='Edited File'!F85 -> 2 | G85: ='Edited File'!G85 -> 34.3 | H85: =IF('Edited File'!A85='Ethnicity Data'!A85,'Ethnicity Data'!B85,"FALSE") -> FALSE
A86: ='Edited File'!A86 -> 85 | B86: ='Edited File'!B86 -> Female | C86: ='Edited File'!C86 -> 24 | D86: ='Edited File'!D86 -> 410 | E86: ='Edited File'!E86 -> 2 | F86: ='Edited File'!F86 -> 2 | G86: ='Edited File'!G86 -> 35 | H86: =IF('Edited File'!A86='Ethnicity Data'!A86,'Ethnicity Data'!B86,"FALSE") -> FALSE
A87: ='Edited File'!A87 -> 86 | B87: ='Edited File'!B87 -> Female | C87: ='Edited File'!C87 -> 34 | D87: ='Edited File'!D87 -> 997 | E87: ='Edited File'!E87 -> 1 | F87: ='Edited File'!F87 -> 1 | G87: ='Edited File'!G87 -> 37.2 | H87: =IF('Edited File'!A87='Ethnicity Data'!A87,'Ethnicity Data'!B87,"FALSE") -> FALSE
A88: ='Edited File'!A88 -> 87 | B88: ='Edited File'!B88 -> Female | C88: ='Edited File'!C88 -> 64 | D88: ='Edited File'!D88 -> 291 | E88: ='Edited File'!E88 -> 2 | F88: ='Edited File'!F88 -> 1 | G88: ='Edited File'!G88 -> 46.6 | H88: =IF('Edited File'!A88='Ethnicity Data'!A88,'Ethnicity Data'!B88,"FALSE") -> FALSE
A89: ='Edited File'!A89 -> 88 | B89: ='Edited File'!B89 -> Female | C89: ='Edited File'!C89 -> 43 | D89: ='Edited File'!D89 -> 340 | E89: ='Edited File'!E89 -> 2 | F89: ='Edited File'!F89 -> 2 | G89: ='Edited File'!G89 -> 46.1 | H89: =IF('Edited File'!A89='Ethnicity Data'!A89,'Ethnicity Data'!B89,"FALSE") -> FALSE
A90: ='Edited File'!A90 -> 89 | B90: ='Edited File'!B90 -> Male | C90: ='Edited File'!C90 -> 77 | D90: ='Edited File'!D90 -> 75 | E90: ='Edited File'!E90 -> 2 | F90: ='Edited File'!F90 -> 1 | G90: ='Edited File'!G90 -> 36.2 | H90: =IF('Edited File'!A90='Ethnicity Data'!A90,'Ethnicity Data'!B90,"FALSE") -> FALSE
A91: ='Edited File'!A91 -> 90 | B91: ='Edited File'!B91 -> Female | C91: ='Edited File'!C91 -> 34 | D91: ='Edited File'!D91 -> 222 | E91: ='Edited File'!E91 -> 1 | F91: ='Edited File'!F91 -> 1 | G91: ='Edited File'!G91 -> 36.6 | H91: =IF('Edited File'!A91='Ethnicity Data'!A91,'Ethnicity Data'!B91,"FALSE") -> FALSE
A92: ='Edited File'!A92 -> 91 | B92: ='Edited File'!B92 -> Male | C92: ='Edited File'!C92 -> 64 | D92: ='Edited File'!D92 -> 586 | E92: ='Edited File'!E92 -> 1 | F92: ='Edited File'!F92 -> 2 | G92: ='Edited File'!G92 -> 41.6 | H92: =IF('Edited File'!A92='Ethnicity Data'!A92,'Ethnicity Data'!B92,"FALSE") -> FALSE
A93: ='Edited File'!A93 -> 92 | B93: ='Edited File'!B93 -> Male | C93: ='Edited File'!C93 -> 48 | D93: ='Edited File'!D93 -> 419 | E93: ='Edited File'!E93 -> 2 | F93: ='Edited File'!F93 -> 2 | G93: ='Edited File'!G93 -> 37.3 | H93: =IF('Edited File'!A93='Ethnicity Data'!A93,'Ethnicity Data'!B93,"FALSE") -> FALSE
A94: ='Edited File'!A94 -> 93 | B94: ='Edited File'!B94 -> Male | C94: ='Edited File'!C94 -> 54 | D94: ='Edited File'!D94 -> 200 | E94: ='Edited File'!E94 -> 1 | F94: ='Edited File'!F94 -> 1 | G94: ='Edited File'!G94 -> 34.7 | H94: =IF('Edited File'!A94='Ethnicity Data'!A94,'Ethnicity Data'!B94,"FALSE") -> FALSE
A95: ='Edited File'!A95 -> 94 | B95: ='Edited File'!B95 -> Female | C95: ='Edited File'!C95 -> 56 | D95: ='Edited File'!D95 -> 738 | E95: ='Edited File'!E95 -> 1 | F95: ='Edited File'!F95 -> 1 | G95: ='Edited File'!G95 -> 34.9 | H95: =IF('Edited File'!A95='Ethnicity Data'!A95,'Ethnicity Data'!B95,"FALSE") -> FALSE
A96: ='Edited File'!A96 -> 95 | B96: ='Edited File'!B96 -> Female | C96: ='Edited File'!C96 -> 43 | D96: ='Edited File'!D96 -> 586 | E96: ='Edited File'!E96 -> 1 | F96: ='Edited File'!F96 -> 1 | G96: ='Edited File'!G96 -> 37.1 | H96: =IF('Edited File'!A96='Ethnicity Data'!A96,'Ethnicity Data'!B96,"FALSE") -> FALSE
A97: ='Edited File'!A97 -> 96 | B97: ='Edited File'!B97 -> Female | C97: ='Edited File'!C97 -> 36 | D97: ='Edited File'!D97 -> 310 | E97: ='Edited File'!E97 -> 2 | F97: ='Edited File'!F97 -> 1 | G97: ='Edited File'!G97 -> 43.6 | H97: =IF('Edited File'!A97='Ethnicity Data'!A97,'Ethnicity Data'!B97,"FALSE") -> FALSE
A98: ='Edited File'!A98 -> 97 | B98: ='Edited File'!B98 -> Female | C98: ='Edited File'!C98 -> 40 | D98: ='Edited File'!D98 -> 291 | E98: ='Edited File'!E98 -> 2 | F98: ='Edited File'!F98 -> 2 | G98: ='Edited File'!G98 -> 38.3 | H98: =IF('Edited File'!A98='Ethnicity Data'!A98,'Ethnicity Data'!B98,"FALSE") -> FALSE
A99: ='Edited File'!A99 -> 98 | B99: ='Edited File'!B99 -> Female | C99: ='Edited File'!C99 -> 42 | D99: ='Edited File'!D99 -> 340 | E99: ='Edited File'!E99 -> 1 | F99: ='Edited File'!F99 -> 2 | G99: ='Edited File'!G99 -> 38.1 | H99: =IF('Edited File'!A99='Ethnicity Data'!A99,'Ethnicity Data'!B99,"FALSE") -> FALSE
A100: ='Edited File'!A100 -> 99 | B100: ='Edited File'!B100 -> Male | C100: ='Edited File'!C100 -> 56 | D100: ='Edited File'!D100 -> 410 | E100: ='Edited File'!E100 -> 2 | F100: ='Edited File'!F100 -> 2 | G100: ='Edited File'!G100 -> 40 | H100: =IF('Edited File'!A100='Ethnicity Data'!A100,'Ethnicity Data'!B100,"FALSE") -> FALSE
A101: ='Edited File'!A101 -> 100 | B101: ='Edited File'!B101 -> Female | C101: ='Edited File'!C101 -> 23 | D101: ='Edited File'!D101 -> 219 | E101: ='Edited File'!E101 -> 1 | F101: ='Edited File'!F101 -> 2 | G101: ='Edited File'!G101 -> 35.2 | H101: =IF('Edited File'!A101='Ethnicity Data'!A101,'Ethnicity Data'!B101,"FALSE") -> FALSE

Sheet FINAL
A1: IDN | B1: GENDER | C1: AGE | D1: POVERTY_VALUE | E1: MARITAL_STATUS | F1: URBAN_RURAL | G1: BMI | H1: ETHNICITY
A2: 1 | B2: Female | C2: 34 | D2: 133 | E2: 2 | F2: 1 | G2: 39.1 | H2: Other
A3: 2 | B3: Male | C3: 56 | D3: 486 | E3: 1 | F3: 2 | G3: 35 | H3: Japanese | J3: TOC
A4: 3 | B4: Female | C4: 73 | D4: 75 | E4: 1 | F4: 1 | G4: 34.8 | H4: Other
A5: 4 | B5: Male | C5: 42 | D5: 738 | E5: 1 | F5: 2 | G5: 34.5 | H5: Native Hawaiian/Part | J5: You can also add External Data to your file by clicking on an empty cell, go to DATA, and GET EXTERNAL DATA.
A6: 5 | B6: Female | C6: 55 | D6: 192 | E6: 2 | F6: 1 | G6: 38 | H6: White
A7: 6 | B7: Female | C7: 67 | D7: 399 | E7: 2 | F7: 2 | G7: 34.3 | H7: Other
A8: 7 | B8: Male | C8: 23 | D8: 281 | E8: 2 | F8: 1 | G8: 40.2 | H8: White
A9: 8 | B9: Male | C9: 72 | D9: 340 | E9: 1 | F9: 2 | G9: 38.4 | H9: Japanese
A10: 9 | B10: Male | C10: 43 | D10: 174 | E10: 1 | F10: 1 | G10: 38.8 | H10: Other
A11: 10 | B11: Female | C11: 54 | D11: 997 | E11: 2 | F11: 2 | G11: 35.5 | H11: Native Hawaiian/Part
A12: 11 | B12: Female | C12: 66 | D12: 738 | E12: 2 | F12: 1 | G12: 38.6 | H12: Japanese
A13: 12 | B13: Female | C13: 75 | D13: 133 | E13: 2 | F13: 1 | G13: 39.2 | H13: Native Hawaiian/Part
A14: 13 | B14: Male | C14: 23 | D14: 379 | E14: 1 | F14: 1 | G14: 36.5 | H14: Japanese
A15: 14 | B15: Male | C15: 44 | D15: 738 | E15: 1 | F15: 2 | G15: 36.6 | H15: White
A16: 15 | B16: Female | C16: 73 | D16: 498 | E16: 1 | F16: 1 | G16: 36.8 | H16: White
A17: 16 | B17: Male | C17: 23 | D17: 340 | E17: 1 | F17: 2 | G17: 41.1 | H17: Japanese
A18: 17 | B18: Male | C18: 64 | D18: 415 | E18: 2 | F18: 2 | G18: 34.5 | H18: Filipino
A19: 18 | B19: Female | C19: 54 | D19: 202 | E19: 1 | F19: 2 | G19: 35.2 | H19: White
A20: 19 | B20: Male | C20: 23 | D20: 459 | E20: 2 | F20: 1 | G20: 37.4 | H20: Other
A21: 20 | B21: Male | C21: 45 | D21: 310 | E21: 1 | F21: 1 | G21: 38 | H21: White
A22: 21 | B22: Female | C22: 55 | D22: 486 | E22: 1 | F22: 2 | G22: 36.4 | H22: Native Hawaiian/Part
A23: 22 | B23: Female | C23: 34 | D23: 192 | E23: 1 | F23: 1 | G23: 38.4 | H23: Other
A24: 23 | B24: Male | C24: 34 | D24: 82 | E24: 2 | F24: 2 | G24: 44.3 | H24: Other
A25: 24 | B25: Female | C25: 65 | D25: 340 | E25: 2 | F25: 2 | G25: 36 | H25: White
A26: 25 | B26: Male | C26: 45 | D26: 74 | E26: 1 | F26: 2 | G26: 49.9 | H26: Japanese
A27: 26 | B27: Female | C27: 44 | D27: 281 | E27: 1 | F27: 1 | G27: 34.2
A28: 27 | B28: Female | C28: 33 | D28: 94 | E28: 2 | F28: 1 | G28: 41 | H28: Japanese
A29: 28 | B29: Female | C29: 66 | D29: 459 | E29: 2 | F29: 2 | G29: 34.1 | H29: Native Hawaiian/Part
A30: 29 | B30: Female | C30: 43 | D30: 340 | E30: 2 | F30: 2 | G30: 38.8 | H30: Japanese
A31: 30 | B31: Female | C31: 55 | D31: 162 | E31: 1 | F31: 1 | G31: 36.8 | H31: Other
A32: 31 | B32: Male | C32: 43 | D32: 583 | E32: 1 | F32: 1 | G32: 40.7 | H32: Japanese
A33: 32 | B33: Female | C33: 56 | D33: 583 | E33: 1 | F33: 1 | G33: 34.2 | H33: Other
A34: 33 | B34: Female | C34: 34 | D34: 399 | E34: 2 | F34: 1 | G34: 35.9 | H34: Filipino
A35: 34 | B35: Female | C35: 54 | D35: 538 | E35: 1 | F35: 1 | G35: 37.8 | H35: Other
A36: 35 | B36: Male | C36: 78 | D36: 586 | E36: 2 | F36: 1 | G36: 36 | H36: Japanese
A37: 36 | B37: Male | C37: 25 | D37: 225 | E37: 2 | F37: 1 | G37: 40.7 | H37: Japanese
A38: 37 | B38: Male | C38: 33 | D38: 997 | E38: 2 | F38: 2 | G38: 40.2 | H38: White
A39: 38 | B39: Female | C39: 22 | D39: 399 | E39: 1 | F39: 2 | G39: 45.6 | H39: White
A40: 39 | B40: Female | C40: 45 | D40: 141 | E40: 2 | F40: 2 | G40: 35.8 | H40: Native Hawaiian/Part
A41: 40 | B41: Male | C41: 33 | D41: 125 | E41: 2 | F41: 2 | G41: 36.9 | H41: Japanese
A42: 41 | B42: Female | C42: 32 | D42: 586 | E42: 1 | F42: 1 | G42: 35.4 | H42: Filipino
A43: 42 | B43: Female | C43: 54 | D43: 415 | E43: 1 | F43: 1 | G43: 34.7 | H43: Native Hawaiian/Part
A44: 43 | B44: Female | C44: 43 | D44: 586 | E44: 1 | F44: 2 | G44: 35 | H44: White
A45: 44 | B45: Female | C45: 55 | D45: 152 | E45: 2 | F45: 2 | G45: 37.4 | H45: Filipino
A46: 45 | B46: Female | C46: 77 | D46: 586 | E46: 1 | F46: 1 | G46: 40.4 | H46: Other
A47: 46 | B47: Female | C47: 45 | D47: 379 | E47: 1 | F47: 1 | G47: 42.9 | H47: Unknown
A48: 47 | B48: Female | C48: 32 | D48: 103 | E48: 2 | F48: 1 | G48: 61.8 | H48: Japanese
A49: 48 | B49: Female | C49: 23 | D49: 133 | E49: 2 | F49: 2 | G49: 36.6 | H49: Filipino
A50: 49 | B50: Female | C50: 44 | D50: 315 | E50: 2 | F50: 2 | G50: 40.4 | H50: White
A51: 50 | B51: Female | C51: 54 | D51: 65 | E51: 2 | F51: 2 | G51: 35 | H51: Other
A52: 51 | B52: Male | C52: 76 | D52: 997 | E52: 2 | F52: 1 | G52: 39.2 | H52: Japanese
A53: 52 | B53: Female | C53: 43 | D53: 459 | E53: 1 | F53: 1 | G53: 34.2 | H53: Other
A54: 53 | B54: Female | C54: 56 | D54: 517 | E54: 1 | F54: 2 | G54: 35.2 | H54: White
A55: 54 | B55: Female | C55: 77 | D55: 340 | E55: 1 | F55: 2 | G55: 34 | H55: Japanese
A56: 55 | B56: Female | C56: 44 | D56: 517 | E56: 2 | F56: 2 | G56: 37.2 | H56: White
A57: 56 | B57: Female | C57: 76 | D57: 165 | E57: 2 | F57: 1 | G57: 35.4 | H57: Other
A58: 57 | B58: Female | C58: 76 | D58: 586 | E58: 2 | F58: 1 | G58: 47.2 | H58: White
A59: 58 | B59: Female | C59: 43 | D59: 340 | E59: 2 | F59: 1 | G59: 34.3 | H59: Other
A60: 59 | B60: Female | C60: 23 | D60: 340 | E60: 2 | F60: 2 | G60: 34.8 | H60: Native Hawaiian/Part
A61: 60 | B61: Male | C61: 77 | D61: 223 | E61: 1 | F61: 2 | G61: 35.9 | H61: Other
A62: 61 | B62: Male | C62: 65 | D62: 410 | E62: 1 | F62: 2 | G62: 34.9 | H62: Native Hawaiian/Part
A63: 62 | B63: Male | C63: 43 | D63: 140 | E63: 1 | F63: 1 | G63: 35.9 | H63: Native Hawaiian/Part
A64: 63 | B64: Male | C64: 65 | D64: 586 | E64: 1 | F64: 1 | G64: 36.8 | H64: Japanese
A65: 64 | B65: Female | C65: 34 | D65: 60 | E65: 2 | F65: 1 | G65: 45.2 | H65: Japanese
A66: 65 | B66: Male | C66: 23 | D66: 886 | E66: 1 | F66: 2 | G66: 35 | H66: Native Hawaiian/Part
A67: 66 | B67: Male | C67: 54 | D67: 110 | E67: 2 | F67: 2 | G67: 35.5 | H67: Japanese
A68: 67 | B68: Female | C68: 65 | D68: 199 | E68: 1 | F68: 1 | G68: 42.1 | H68: Other
A69: 68 | B69: Male | C69: 44 | D69: 91 | E69: 2 | F69: 1 | G69: 39.1 | H69: Filipino
A70: 69 | B70: Male | C70: 76 | D70: 419 | E70: 2 | F70: 2 | G70: 62.6 | H70: Japanese
A71: 70 | B71: Male | C71: 64 | D71: 191 | E71: 2 | F71: 2 | G71: 35.4 | H71: Native Hawaiian/Part
A72: 71 | B72: Female | C72: 77 | D72: 410 | E72: 1 | F72: 1 | G72: 46.8 | H72: Filipino
A73: 72 | B73: Female | C73: 66 | D73: 152 | E73: 1 | F73: 1 | G73: 35 | H73: Other
A74: 73 | B74: Female | C74: 43 | D74: 583 | E74: 1 | F74: 1 | G74: 34.8 | H74: Other
A75: 74 | B75: Female | C75: 40 | D75: 415 | E75: 2 | F75: 2 | G75: 40.5 | H75: Other
A76: 75 | B76: Female | C76: 20 | D76: 704 | E76: 2 | F76: 2 | G76: 37.1 | H76: Other
A77: 76 | B77: Female | C77: 33 | D77: 192 | E77: 2 | F77: 2 | G77: 35.7 | H77: Native Hawaiian/Part
A78: 77 | B78: Female | C78: 42 | D78: 51 | E78: 1 | F78: 1 | G78: 35.9 | H78: Other
A79: 78 | B79: Female | C79: 66 | D79: 44 | E79: 1 | F79: 1 | G79: 37.2 | H79: Japanese
A80: 79 | B80: Female | C80: 54 | D80: 44 | E80: 1 | F80: 1 | G80: 34.8 | H80: Native Hawaiian/Part
A81: 80 | B81: Female | C81: 43 | D81: 517 | E81: 2 | F81: 2 | G81: 49.4 | H81: Native Hawaiian/Part
A82: 81 | B82: Male | C82: 55 | D82: 219 | E82: 1 | F82: 1 | G82: 39.9 | H82: Other
A83: 82 | B83: Female | C83: 32 | D83: 310 | E83: 2 | F83: 2 | G83: 43.9 | H83: White
A84: 83 | B84: Male | C84: 77 | D84: 174 | E84: 1 | F84: 1 | G84: 71.9 | H84: White
A85: 84 | B85: Female | C85: 43 | D85: 517 | E85: 1 | F85: 2 | G85: 34.3 | H85: Filipino
A86: 85 | B86: Female | C86: 24 | D86: 410 | E86: 2 | F86: 2 | G86: 35 | H86: Japanese
A87: 86 | B87: Female | C87: 34 | D87: 997 | E87: 1 | F87: 1 | G87: 37.2 | H87: White
A88: 87 | B88: Female | C88: 64 | D88: 291 | E88: 2 | F88: 1 | G88: 46.6 | H88: Native Hawaiian/Part
A89: 88 | B89: Female | C89: 43 | D89: 340 | E89: 2 | F89: 2 | G89: 46.1 | H89: Japanese
A90: 89 | B90: Male | C90: 77 | D90: 75 | E90: 2 | F90: 1 | G90: 36.2 | H90: Filipino
A91: 90 | B91: Female | C91: 34 | D91: 222 | E91: 1 | F91: 1 | G91: 36.6 | H91: Japanese
A92: 91 | B92: Male | C92: 64 | D92: 586 | E92: 1 | F92: 2 | G92: 41.6 | H92: White
A93: 92 | B93: Male | C93: 48 | D93: 419 | E93: 2 | F93: 2 | G93: 37.3 | H93: Filipino
A94: 93 | B94: Male | C94: 54 | D94: 200 | E94: 1 | F94: 1 | G94: 34.7 | H94: Other
A95: 94 | B95: Female | C95: 56 | D95: 738 | E95: 1 | F95: 1 | G95: 34.9 | H95: White
A96: 95 | B96: Female | C96: 43 | D96: 586 | E96: 1 | F96: 1 | G96: 37.1 | H96: White
A97: 96 | B97: Female | C97: 36 | D97: 310 | E97: 2 | F97: 1 | G97: 43.6 | H97: Other
A98: 97 | B98: Female | C98: 40 | D98: 291 | E98: 2 | F98: 2 | G98: 38.3 | H98: Native Hawaiian/Part
A99: 98 | B99: Female | C99: 42 | D99: 340 | E99: 1 | F99: 2 | G99: 38.1 | H99: Other
A100: 99 | B100: Male | C100: 56 | D100: 410 | E100: 2 | F100: 2 | G100: 40 | H100: Japanese
A101: 100 | B101: Female | C101: 23 | D101: 219 | E101: 1 | F101: 2 | G101: 35.2 | H101: Other

Sheet Descriptive Statistics
D2: Data - Plotting and Analysis with Excel | F2: TOC
D4: Study Types - Descriptive Statistics
D5: In descriptive statistics study you are plotting and analyzing data from your sample data but not comparing statistics to a larger population from which it was drawn. Or you may be analyzing a population where statistics are called parameters instead.
D6: A reminder: Statistics are indicated with Arabic letters and parameters with Greek letters.
D8: Excel offers at times multiple ways to perform the same test. Please load the Analysis ToolPak depending on your computer. Functions and formulas will be demonstrated prior to using the Analysis ToolPak | F8: Analysis ToolPak, PC
F9: Analysis ToolPak MAC
D10: 1. Do you have character or nominal variables?
D11: 1. A. Plot your data either by highlighting the data and hitting INSERT and Recommended Charts or use the Pivot Chart. | F11: Describe and Plot
F12: Pivot Table and Chart
D13: 2. B. Do single variable summary tables and/or cross-tabulate tables of your variables. | F13: Describe and Plot
D14: 3. C. An example of Odds Ratio and Relative Risk with Binary Variables (2 X 2 table) | F14: Odds, Rel. Risk
D16: 2. Continuous Variables - Continuous Variables will form distributions*. Plotting the values will give an indication of the type of distribution. The most common distribution is the Normal or Bell Shaped Distribution. You can plot and describe continuous values of a sample or population in Excel using the following methods. | F16: Distributions
F17: Normal Curve
D19: 2. A. Plotting data in a histogram (frequency distribution). | F19: Histogram
D20: 2. B. Calculating correlations between continuous variables using formulas/functions. | F20: Correlation
D21: 2. C. Inputting formulas/functions. | F21: One Series Formulas
F22: Two Series Formulas
D23: 2. D. Pivot Table. | F23: Pivot Table and Chart
D24: * We will also be looking at the Chi-Square distribution for count variables.

Sheet Analysis ToolPak, PC
C2: Data - Plotting and Analysis with Excel - Analysis ToolPak | E2: TOC
C4: Load the Analysis ToolPak - PC
C6: Load and activate the Analysis ToolPak
C7: 1. Click the File tab, click Options, and then click the Add-Ins category.
C8: 2. In the Manage box, select Excel Add-ins and then click Go.
C9: 3. In the Add-Ins dialog box, select the Analysis ToolPak check box, and then click OK.
C10: If Analysis ToolPak is not listed in the Add-Ins available box, click Browse to locate it.
C11: If you are prompted that the Analysis ToolPak is not currently installed on your computer, click Yes to install it.
C13: Choosing A Statistical Test - General Information
C14: Sullivan L. How to Choose the Right Statistical Test for the Occasion. BU School of Public Health. PowerPoint. June 7, 2001.
D15: http://www.bu.edu/sph/practice/practice-resources/video-archive/how-to-choose-the-right-statistical-test-for-the-occasion/
C16: Study design and choosing a statistical test. BMJ 2017.
D17: http://www.bmj.com/about-bmj/resources-readers/publications/statistics-square-one/13-study-design-and-choosing-statisti
C18: Barun KN, Hazra A. 2011. How to choose the right statistical test? Indian J Ophthalmol. 2011 Mar-Apr; 59(2): 85–86.
D19: http://www.ncbi.nlm.nih.gov/pmc/articles/PMC3116565/#CIT1
C20: du Prel JB, Röhrig B, Hommel G, Blettner M. IN: Part 12 of a Series on Evaluation of Scientific Publications. Choosing Statistical Tests. Dtsch Arztebl Int. 2010 May; 107(19): 343–348.
D21: http://www.ncbi.nlm.nih.gov/pmc/articles/PMC2881615/
C22: Statistics in Medicine, Third Edition; Elsevier Inc. 2012. ISBN: 978-0-12-384864-2.
D23: http://www.sciencedirect.com/science/book/9780123848642

Sheet Analysis ToolPak MAC
C2: Data - Plotting and Analysis with Excel - Analysis ToolPak | E2: TOC
C4: The Analysis ToolPak is included in Excel 2016. Go to Tools > Excel Add-Ins to load it.
C5: Applies To: Excel for Mac 2011
C6: https://support.office.com/en-us/article/I-can-t-find-the-Analysis-ToolPak-d678dc08-bdc2-4eda-8b94-08755fa4b55a
C7: Excel 2011 does not include the Analysis ToolPak.
C8: There are a few third-party add-ins that provide Analysis ToolPak functions.
C10: Option 1: For Excel 2011 download the XLSTAT add-on statistical software for Mac.
C12: 1. Go to the XLSTAT download page. https://www.xlstat.com/en/
C14: 2. For 30 days, you will have access to XLSTAT functions for 30 days after which you will be able to use the free version that includes the Analysis ToolPak functions or you can order one of the more complete solutions of XLSTAT.
C16: Option 2: Download StatPlus:mac LE for free from AnalystSoft, and then use StatPlus:mac LE with Excel 2011.
C17: Visit the AnalystSoft Web site, and then follow the instructions on the download page. http://www.analystsoft.com/en/
C19: Microsoft does not provide support for either product.

Sheet Describe and Plot
C2: Data - Plotting and Analysis with Excel | F2: TOC
C4: FIRST DO A DESCRIPTIVE ANALYSIS AND PLOTTING OF ALL VARIABLES BEFORE GOING TO ADVANCED STATISTICAL OPTIONS
C6: STEPS USING EXCEL FUNCTIONS AND CHART OPTIONS TO ANALYZE CHARACTER VARIABLES
C7: One Character Variable
D8: Functions to summarize data. The COUNTIF function counts the number of cells that contain FEMALE in this example. NOTE: that FINAL refers to the FINAL datafile in this workbook. Cell references have been used to point to the GENDER variable. The value of the variable to sum is in quotation marks. | E8: Values using the formulas
C9: 1
C10: TABLE OF GENDER COUNT - FUNCTIONS AND NUMBERS
C11: Count Females | D11: =COUNTIF(FINAL!B2:B101,"FEMALE") | E11: =COUNTIF(FINAL!B2:B101,"FEMALE") -> 65
C12: Count Males | D12: =COUNTIF(FINAL!B2:B101,"MALE") | E12: =COUNTIF(FINAL!B2:B101,"MALE") -> 35
C13: TOTAL | D13: =SUM(E10:E11) | E13: =SUM(E11:E12) -> 100
C15: 2 | D15: To create a Chart on this worksheet highlight the variables names (C10:C11) and the values (E10:E11) above while holding down the Ctrl key and click INSERT and Recommended Charts. It will bring up the Recommended Chart as a pie chart (bar charts are also shown) or you can click on All Charts and choose a different type. If you click on your chart it will bring up options in the ribbon under CHART TOOLS for the DESIGN and FORMAT of your chart. By clicking on the DESIGN it will bring up more options in the ribbon for axes, changing the color scheme or chart type, and many more. If you click on FORMAT under CHART TOOLS many options for formatting your chart are listed.
E19: PIE CHART
C29: Two Character Variables
C30: 1 | D30: To create a table and a chart on this worksheet of marital status and gender, use a similar procedure as above only use selecting multiple variables with the COUNTIFS function. Column E refers to the MARITAL_STATUS variable in the FINAL data worksheet.
D31: Formulas
C33: TABLE OF GENDER AND MARITAL STATUS COUNT - FORMULAS
C34: GENDER | D34: MARITAL STATUS | F34: TOTAL
D35: Count Married | E35: Count Not Married
C36: Count Females | D36: =COUNTIFS(FINAL!B2:B101,"FEMALE",FINAL!E2:E101,"1") | E36: =COUNTIFS(FINAL!B2:B101,"FEMALE",FINAL!E2:E101,"2") | F36: =SUM(D32:E32)
C37: Count Males | D37: =COUNTIFS(FINAL!B2:B101,"MALE",FINAL!E2:E101,"1") | E37: =COUNTIFS(FINAL!B2:B101,"MALE",FINAL!E2:E101,"2") | F37: =SUM(D33:E33)
C38: TOTAL | D38: =SUM(D32:D33) | E38: =SUM(E32:E33) | F38: =SUM(D34:E34)
D40: Values
C42: TABLE OF GENDER AND MARITAL STATUS COUNT - WITH NUMBERS
C43: GENDER | D43: MARITAL STATUS | F43: TOTAL
D44: Married | E44: Not Married
C45: Count Females | D45: =COUNTIFS(FINAL!B2:B101,"FEMALE",FINAL!E2:E101,"1") -> 32 | E45: =COUNTIFS(FINAL!B2:B101,"FEMALE",FINAL!E2:E101,"2") -> 33 | F45: =SUM(D45:E45) -> 65
C46: Count Males | D46: =COUNTIFS(FINAL!B2:B101,"MALE",FINAL!E2:E101,"1") -> 19 | E46: =COUNTIFS(FINAL!B2:B101,"MALE",FINAL!E2:E101,"2") -> 16 | F46: =SUM(D46:E46) -> 35
C47: TOTAL | D47: =SUM(D45:D46) -> 51 | E47: =SUM(E45:E46) -> 49 | F47: =SUM(D47:E47) -> 100
C49: 2 | D49: To create a chart using two character variables highlight the names and values (if adjacent you don't have to hold down the Ctrl tab) and under INSERT click on Recommended Charts and choose the Recommended Chart or your own under All Charts. You again have options to DESIGN and FORMAT your chart under CHART OPTIONS when you click on your chart. The variables are character so the bars should have space between them.
E59: BAR CHART
D67: Bar Chart of Marital Status By Gender

Sheet Pivot Table and Chart
M2: TOC
E4: 1 Pivot Table | F4: To create a new Pivot Table: Go To the Data Set FINAL and highlight the variable's values and click on Insert Pivot Table and click on a new worksheet. To edit this worksheet (which has a created pivot table already included) click on the Pivot Table1 to the left of this column and on the right side of the worksheet will appear Pivot Table Fields options for dragging and dropping your variables (listed on the left side of the Pivot Table Fields) into various roles such as a FILTER, COLUMN HEADER, ROWHEADERS, or a Σ VALUES option (when you drag a variable name, use only a numerical variable, to the Σ VALUES option and then click on the arrow to the right it will bring up options for statistics on the variable). If you scroll down to the Value Field Settings you can choose what statistical option you would like other than Sum. The PivotTable1 will then show a tally according to the options input in the Pivot Table Fields.
E23: To Insert Table and Chart | F23: To insert both at Pivot Table and PivotChart highlight the data and go to INSERT, PivotChart ,and choose PivotChart & PivotTable and new Worksheet for an option. Now you will have a 'template' for both a chart and a table. You again click on one and input your options.

Sheet Odds, Rel. Risk
C3: Data - Plotting and Analysis with Excel - Relative Risk Versus Odds Ratio | M3: TOC
C4: 1. Given a rare condition, the Odds Ratio approximates the Relative Risk (or Risk Ratio).
C6: 2. To calculate confidence intervals for Relative Risk or Odds Ratios go to: http://www.biostat.umn.edu/~susant/Fall10ph6414/Lesson14_complete.pdf
C7: 3. If there is no association between the two variables then the Relative Risk or Odds Ratio = 1. If there is a possible association both will either be greater than 1 or less than 1.
C8: 4. The use of odds ratio in the large population-based studies: Warning to readers. Lorenzo et al. Muscles Ligaments Tendons J. 2014 Jan-Mar; 4(1): 90–92. https://www.ncbi.nlm.nih.gov/pmc/articles/PMC4049657/ Published online 2014 May 8.
C9: In a prospective study, either a Randomized Clinical Trial or a Cohort study, use Relative Risk. | L9: In a case-control, retrospective study, use Odds Ratio.
D10: RATIO OF TWO PROBABILITIES | M10: RATIO OF TWO ODDS
C11: FORMULA | L11: FORMULA
C12: VARIABLES | E12: The Outcome | G12: Calculation | L12: VARIABLES | N12: The Outcome
E13: + | F13: - | N13: + | O13: -
C14: The Exposure | D14: + | E14: a | F14: b | G14: Risk Rate (Probability) of Developing Outcome in Exposed Group | H14: Relative Risk (Risk Ratio) | I14: Relative Risk Reduction | L14: The Exposure | M14: + | N14: a | O14: b
G15: a / (a+b) | H15: (a / (a+b)) | I15: (a/(a+b))-(c/(c+d)) | M15: - | N15: c | O15: d
H16: ______ | I16: ______ | L16: Calculation | N16: Odds of Being Exposed in Cases | O16: Odds of Being Exposed in Controls
D17: - | E17: c | F17: d | G17: Risk Rate (Probability) of Developing Outcome in NON-Exposed Group | H17: (c / (c+d)) | I17: (c/(c+d)) | N17: a/c | O17: b/d
G18: c / (c+d) | N18: Odds Ratio =
N19: (a/c) / (b/d)
C21: FICTITIOUS DATA
C22: EXAMPLE | L22: EXAMPLE
C23: VARIABLES | E23: The Outcome, CASES BREAST CANCER | G23: Risk Rate of Developing Outcome in Exposed | H23: Relative Risk (Risk Ratio) | I23: Relative Risk Reduction | L23: VARIABLES | N23: The Outcome, CASES BREAST CANCER
E24: + | F24: - | N24: + | O24: -
C25: The Exposure, SMOKING | D25: + | E25: 10 | F25: 30 | G25: =E25/(E25+F25) -> 0.25 | H25: =G25/G26 -> 2 | I25: =(G25-G26)/G26 -> 1 | L25: The Exposure, SMOKING | M25: + | N25: 10 | O25: 30
D26: - | E26: 5 | F26: 35 | G26: =E26/(E26+F26) -> 0.125 | M26: - | N26: 5 | O26: 35
L27: Calculation | N27: Odds of Being Exposed in Cases | O27: Odds of Being Exposed in Controls
N28: =N25/N26 -> 2 | O28: =O25/O26 -> 0.8571428571
N29: Odds Ratio =
N30: =N28/O28 -> 2.333333333
C34: YOUR NUMBERS | L34: YOUR NUMBERS
C35: VARIABLES | E35: Gender Female/Male | G35: Risk Rate of Developing Outcome in Exposed | H35: Relative Risk (Risk Ratio | I35: Relative Risk Reduction | L35: VARIABLES | N35: Gender Female/Male
E36: + | F36: - | N36: + | O36: -
C37: Urban/ Rural | D37: + | G37: =E37/(E37+F37) ->  | H37: =G37/G38 ->  | I37: =(G37-G38)/G38 ->  | L37: Urban/ Rural | M37: +
D38: - | G38: =E38/(E38+F38) ->  | M38: -
L39: Calculation | N39: Odds of Being Exposed in Cases | O39: Odds of Being Exposed in Controls
N40: =N37/N38 ->  | O40: =O37/O38 -> 
N41: Odds Ratio =
N42: =N40/O40 -> 

Sheet Distributions
D2: Data - Plotting and Analysis with Excel | E2: TOC
D4: KNOW YOUR OUTCOME VARIABLE TYPE AND POSSIBLE DISTRIBUTIONS
D6: By this time in your study, you know whether the data you are analyzing represent a population of all values or a sample from the population. A population with a normal curve (bell shaped) distribution is characterized by parameters; a mean (µ symbol - describes the central tendency), a standard deviation (σ sigma symbol - describes the variability in the population), and a population size signified by N. However, if the population parameters are unknown and you are analyzing a sample drawn from many possible samples drawn from a population then the sample distribution is characterized by statistics; a mean (x¯ (“x-bar”) symbol - describes the central tendency), a standard deviation (s symbol - describes the variability in the population), and a sample size signified by n.
D7: Sample statistics vary as each sample drawn varies in its attributes. If you repeatedly draw samples from the same population the sample statistics will have a distribution called the sampling distribution. Sampling distributions have a; mean (x¯ (“x-bar”) and a standard deviation. The standard deviation of a sampling distribution is called the standard error. Thus, the standard error is simply the standard deviation of a sampling distribution. For example, if a random sample of 50 adults is taken on the island of Hawaii and their average or mean BMI is calculated we would have an estimate of all adults on the island of Hawaii's BMI. However, the sample size is small and there would be a wide variation in means if repeated samples of size 50 are drawn and the mean of the BMI calculated. If we plot the distribution of sample means we have a sampling distribution with a mean x¯ and a standard deviation of the sampling means called the standard error.
D8: Another distribution is the Chi-Square (χ²) family of distributions used with character variables where the outcome is counts of values for the character variables. There is a different distribution with each different degree of freedom* for a study.
D9: *Degree(s) of freedom for a study. Once you have determined your test statistic you have a limited number of options for values for your data. For example if you throw a die twice and you know the total is 4 and the first die thrown is a 2 then you know the second die thrown has to be a 2. The degrees of freedom depend on the test statistic, variables, and alpha value set.
D11: http://www.lock5stat.com/StatKey/

Sheet Normal Curve
C2: Data - Plotting and Analysis with Excel - Normal Distributions | U2: TOC
D8: Bell Shaped
D9: Mean, Median, and the Mode are all equal
D10: Total Area is equal to 1
D11: It is Symmetric
T15: 68.3 % of values fall within ± 1 SD
T16: 98.5 % of values fall within ± 2 SD
T17: 99.7 % of values fall within ± 3 SD
I28: % of values
M29: 0.683
L30: 0.985
K31: 0.997
H33: Sampling Distributions of a Population
E35: Population One with a Mean of 15.5 and SD of 3.5 | N35: Comparing Two Sample Distributions with Different Means and Standard Deviations.

Sheet 1
A1: IDN | B1: GENDER | C1: AGE | D1: POVERTY_VALUE | E1: MARITAL_STATUS | F1: URBAN_RURAL | G1: BMI | H1: ETHNICITY | J1: TOC | L1: AGE | O1: BMI | P1: Males | Q1: Females | T1: female | U1: male
A2: 1 | B2: Female | C2: 34 | D2: 133 | E2: 2 | F2: 1 | G2: 39.1 | H2: Other | L2: Bin | M2: Frequency | O2: Bin | P2: Frequency | Q2: Frequency | T2: 39.1 | U2: 35
A3: 3 | B3: Female | C3: 73 | D3: 75 | E3: 1 | F3: 1 | G3: 34.8 | H3: Other | J3: COPY OF DATASET FINAL THIS DATASET IS SORTED BY GENDER TO CREATE A HISTOGRAM AND ANALYZE DATA BY GENDER | L3: 10 | M3: 0 | O3: 30 | P3: 0 | Q3: 0 | T3: 34.8 | U3: 34.5
A4: 5 | B4: Female | C4: 55 | D4: 192 | E4: 2 | F4: 1 | G4: 38 | H4: White | L4: 20 | M4: 1 | O4: 35 | P4: 18 | Q4: 6 | T4: 38 | U4: 40.2
A5: 6 | B5: Female | C5: 67 | D5: 399 | E5: 2 | F5: 2 | G5: 34.3 | H5: Other | L5: 30 | M5: 11 | O5: 40 | P5: 31 | Q5: 19 | T5: 34.3 | U5: 38.4 | X5: F-Test Two-Sample for Variances
A6: 10 | B6: Female | C6: 54 | D6: 997 | E6: 2 | F6: 2 | G6: 35.5 | H6: Native Hawaiian/Part | L6: 40 | M6: 17 | O6: 45 | P6: 8 | Q6: 7 | T6: 35.5 | U6: 38.8
A7: 11 | B7: Female | C7: 66 | D7: 738 | E7: 2 | F7: 1 | G7: 38.6 | H7: Japanese | L7: 50 | M7: 25 | O7: 55 | P7: 7 | Q7: 1 | T7: 38.6 | U7: 36.5 | Y7: female | Z7: male
A8: 12 | B8: Female | C8: 75 | D8: 133 | E8: 2 | F8: 1 | G8: 39.2 | H8: Native Hawaiian/Part | L8: 60 | M8: 18 | O8: 60 | P8: 0 | Q8: 0 | T8: 39.2 | U8: 36.6 | X8: Mean | Y8: 38.30461538 | Z8: 39.76
A9: 15 | B9: Female | C9: 73 | D9: 498 | E9: 1 | F9: 1 | G9: 36.8 | H9: White | L9: 70 | M9: 13 | O9: 65 | P9: 1 | Q9: 1 | T9: 36.8 | U9: 41.1 | X9: Variance | Y9: 23.93575962 | Z9: 58.38011765
A10: 18 | B10: Female | C10: 54 | D10: 202 | E10: 1 | F10: 2 | G10: 35.2 | H10: White | L10: 80 | M10: 15 | O10: 70 | P10: 0 | Q10: 0 | T10: 35.2 | U10: 34.5 | X10: Observations | Y10: 65 | Z10: 35
A11: 21 | B11: Female | C11: 55 | D11: 486 | E11: 1 | F11: 2 | G11: 36.4 | H11: Native Hawaiian/Part | L11: 90 | M11: 0 | O11: 75 | P11: 0 | Q11: 1 | T11: 36.4 | U11: 37.4 | X11: df | Y11: 64 | Z11: 34
A12: 22 | B12: Female | C12: 34 | D12: 192 | E12: 1 | F12: 1 | G12: 38.4 | H12: Other | L12: More | M12: 0 | O12: More | P12: 0 | Q12: 0 | T12: 38.4 | U12: 38 | X12: F | Y12: 0.409998482
A13: 24 | B13: Female | C13: 65 | D13: 340 | E13: 2 | F13: 2 | G13: 36 | H13: White | M13: 100 | P13: =SUM(P3:P12) -> 65 | Q13: =SUM(Q3:Q12) -> 35 | T13: 36 | U13: 44.3 | X13: P(F<=f) one-tail | Y13: 0.001049457449
A14: 26 | B14: Female | C14: 44 | D14: 281 | E14: 1 | F14: 1 | G14: 34.2 | L14: One Series Formulas | O14: Two Series Formulas | T14: 34.2 | U14: 49.9 | X14: F Critical one-tail | Y14: 0.620423147
A15: 27 | B15: Female | C15: 33 | D15: 94 | E15: 2 | F15: 1 | G15: 41 | H15: Japanese | J15: Histogram | T15: 41 | U15: 40.7
A16: 28 | B16: Female | C16: 66 | D16: 459 | E16: 2 | F16: 2 | G16: 34.1 | H16: Native Hawaiian/Part | T16: 34.1 | U16: 36 | X16: t-Test: Two-Sample Assuming Unequal Variances
A17: 29 | B17: Female | C17: 43 | D17: 340 | E17: 2 | F17: 2 | G17: 38.8 | H17: Japanese | T17: 38.8 | U17: 40.7
A18: 30 | B18: Female | C18: 55 | D18: 162 | E18: 1 | F18: 1 | G18: 36.8 | H18: Other | T18: 36.8 | U18: 40.2 | Y18: female | Z18: male
A19: 32 | B19: Female | C19: 56 | D19: 583 | E19: 1 | F19: 1 | G19: 34.2 | H19: Other | T19: 34.2 | U19: 36.9 | X19: Mean | Y19: 38.30461538 | Z19: 39.76
A20: 33 | B20: Female | C20: 34 | D20: 399 | E20: 2 | F20: 1 | G20: 35.9 | H20: Filipino | T20: 35.9 | U20: 39.2 | X20: Variance | Y20: 23.93575962 | Z20: 58.38011765
A21: 34 | B21: Female | C21: 54 | D21: 538 | E21: 1 | F21: 1 | G21: 37.8 | H21: Other | T21: 37.8 | U21: 35.9 | X21: Observations | Y21: 65 | Z21: 35
A22: 38 | B22: Female | C22: 22 | D22: 399 | E22: 1 | F22: 2 | G22: 45.6 | H22: White | T22: 45.6 | U22: 34.9 | X22: Hypothesized Mean Difference | Y22: 0
A23: 39 | B23: Female | C23: 45 | D23: 141 | E23: 2 | F23: 2 | G23: 35.8 | H23: Native Hawaiian/Part | T23: 35.8 | U23: 35.9 | X23: df | Y23: 49
A24: 41 | B24: Female | C24: 32 | D24: 586 | E24: 1 | F24: 1 | G24: 35.4 | H24: Filipino | T24: 35.4 | U24: 36.8 | X24: t Stat | Y24: -1.019911943
A25: 42 | B25: Female | C25: 54 | D25: 415 | E25: 1 | F25: 1 | G25: 34.7 | H25: Native Hawaiian/Part | T25: 34.7 | U25: 35 | X25: P(T<=t) one-tail | Y25: 0.1563898125
A26: 43 | B26: Female | C26: 43 | D26: 586 | E26: 1 | F26: 2 | G26: 35 | H26: White | T26: 35 | U26: 35.5 | X26: t Critical one-tail | Y26: 1.676550893
A27: 44 | B27: Female | C27: 55 | D27: 152 | E27: 2 | F27: 2 | G27: 37.4 | H27: Filipino | T27: 37.4 | U27: 39.1 | X27: P(T<=t) two-tail | Y27: 0.312779625
A28: 45 | B28: Female | C28: 77 | D28: 586 | E28: 1 | F28: 1 | G28: 40.4 | H28: Other | T28: 40.4 | U28: 62.6 | X28: t Critical two-tail | Y28: 2.009575237
A29: 46 | B29: Female | C29: 45 | D29: 379 | E29: 1 | F29: 1 | G29: 42.9 | H29: Unknown | T29: 42.9 | U29: 35.4
A30: 47 | B30: Female | C30: 32 | D30: 103 | E30: 2 | F30: 1 | G30: 61.8 | H30: Japanese | T30: 61.8 | U30: 39.9
A31: 48 | B31: Female | C31: 23 | D31: 133 | E31: 2 | F31: 2 | G31: 36.6 | H31: Filipino | T31: 36.6 | U31: 71.9
A32: 49 | B32: Female | C32: 44 | D32: 315 | E32: 2 | F32: 2 | G32: 40.4 | H32: White | T32: 40.4 | U32: 36.2
A33: 50 | B33: Female | C33: 54 | D33: 65 | E33: 2 | F33: 2 | G33: 35 | H33: Other | T33: 35 | U33: 41.6
A34: 52 | B34: Female | C34: 43 | D34: 459 | E34: 1 | F34: 1 | G34: 34.2 | H34: Other | T34: 34.2 | U34: 37.3
A35: 53 | B35: Female | C35: 56 | D35: 517 | E35: 1 | F35: 2 | G35: 35.2 | H35: White | T35: 35.2 | U35: 34.7
A36: 54 | B36: Female | C36: 77 | D36: 340 | E36: 1 | F36: 2 | G36: 34 | H36: Japanese | T36: 34 | U36: 40
A37: 55 | B37: Female | C37: 44 | D37: 517 | E37: 2 | F37: 2 | G37: 37.2 | H37: White | T37: 37.2
A38: 56 | B38: Female | C38: 76 | D38: 165 | E38: 2 | F38: 1 | G38: 35.4 | H38: Other | T38: 35.4
A39: 57 | B39: Female | C39: 76 | D39: 586 | E39: 2 | F39: 1 | G39: 47.2 | H39: White | T39: 47.2
A40: 58 | B40: Female | C40: 43 | D40: 340 | E40: 2 | F40: 1 | G40: 34.3 | H40: Other | T40: 34.3
A41: 59 | B41: Female | C41: 23 | D41: 340 | E41: 2 | F41: 2 | G41: 34.8 | H41: Native Hawaiian/Part | T41: 34.8
A42: 64 | B42: Female | C42: 34 | D42: 60 | E42: 2 | F42: 1 | G42: 45.2 | H42: Japanese | T42: 45.2
A43: 67 | B43: Female | C43: 65 | D43: 199 | E43: 1 | F43: 1 | G43: 42.1 | H43: Other | T43: 42.1
A44: 71 | B44: Female | C44: 77 | D44: 410 | E44: 1 | F44: 1 | G44: 46.8 | H44: Filipino | T44: 46.8
A45: 72 | B45: Female | C45: 66 | D45: 152 | E45: 1 | F45: 1 | G45: 35 | H45: Other | T45: 35
A46: 73 | B46: Female | C46: 43 | D46: 583 | E46: 1 | F46: 1 | G46: 34.8 | H46: Other | T46: 34.8
A47: 74 | B47: Female | C47: 40 | D47: 415 | E47: 2 | F47: 2 | G47: 40.5 | H47: Other | T47: 40.5
A48: 75 | B48: Female | C48: 20 | D48: 704 | E48: 2 | F48: 2 | G48: 37.1 | H48: Other | T48: 37.1
A49: 76 | B49: Female | C49: 33 | D49: 192 | E49: 2 | F49: 2 | G49: 35.7 | H49: Native Hawaiian/Part | T49: 35.7
A50: 77 | B50: Female | C50: 42 | D50: 51 | E50: 1 | F50: 1 | G50: 35.9 | H50: Other | T50: 35.9
A51: 78 | B51: Female | C51: 66 | D51: 44 | E51: 1 | F51: 1 | G51: 37.2 | H51: Japanese | T51: 37.2
A52: 79 | B52: Female | C52: 54 | D52: 44 | E52: 1 | F52: 1 | G52: 34.8 | H52: Native Hawaiian/Part | T52: 34.8
A53: 80 | B53: Female | C53: 43 | D53: 517 | E53: 2 | F53: 2 | G53: 49.4 | H53: Native Hawaiian/Part | T53: 49.4
A54: 82 | B54: Female | C54: 32 | D54: 310 | E54: 2 | F54: 2 | G54: 43.9 | H54: White | T54: 43.9
A55: 84 | B55: Female | C55: 43 | D55: 517 | E55: 1 | F55: 2 | G55: 34.3 | H55: Filipino | T55: 34.3
A56: 85 | B56: Female | C56: 24 | D56: 410 | E56: 2 | F56: 2 | G56: 35 | H56: Japanese | T56: 35
A57: 86 | B57: Female | C57: 34 | D57: 997 | E57: 1 | F57: 1 | G57: 37.2 | H57: White | T57: 37.2
A58: 87 | B58: Female | C58: 64 | D58: 291 | E58: 2 | F58: 1 | G58: 46.6 | H58: Native Hawaiian/Part | T58: 46.6
A59: 88 | B59: Female | C59: 43 | D59: 340 | E59: 2 | F59: 2 | G59: 46.1 | H59: Japanese | T59: 46.1
A60: 90 | B60: Female | C60: 34 | D60: 222 | E60: 1 | F60: 1 | G60: 36.6 | H60: Japanese | T60: 36.6
A61: 94 | B61: Female | C61: 56 | D61: 738 | E61: 1 | F61: 1 | G61: 34.9 | H61: White | T61: 34.9
A62: 95 | B62: Female | C62: 43 | D62: 586 | E62: 1 | F62: 1 | G62: 37.1 | H62: White | T62: 37.1
A63: 96 | B63: Female | C63: 36 | D63: 310 | E63: 2 | F63: 1 | G63: 43.6 | H63: Other | T63: 43.6
A64: 97 | B64: Female | C64: 40 | D64: 291 | E64: 2 | F64: 2 | G64: 38.3 | H64: Native Hawaiian/Part | T64: 38.3
A65: 98 | B65: Female | C65: 42 | D65: 340 | E65: 1 | F65: 2 | G65: 38.1 | H65: Other | T65: 38.1
A66: 100 | B66: Female | C66: 23 | D66: 219 | E66: 1 | F66: 2 | G66: 35.2 | H66: Other | T66: 35.2
A67: 2 | B67: Male | C67: 56 | D67: 486 | E67: 1 | F67: 2 | G67: 35 | H67: Japanese
A68: 4 | B68: Male | C68: 42 | D68: 738 | E68: 1 | F68: 2 | G68: 34.5 | H68: Native Hawaiian/Part
A69: 7 | B69: Male | C69: 23 | D69: 281 | E69: 2 | F69: 1 | G69: 40.2 | H69: White
A70: 8 | B70: Male | C70: 72 | D70: 340 | E70: 1 | F70: 2 | G70: 38.4 | H70: Japanese
A71: 9 | B71: Male | C71: 43 | D71: 174 | E71: 1 | F71: 1 | G71: 38.8 | H71: Other
A72: 13 | B72: Male | C72: 23 | D72: 379 | E72: 1 | F72: 1 | G72: 36.5 | H72: Japanese
A73: 14 | B73: Male | C73: 44 | D73: 738 | E73: 1 | F73: 2 | G73: 36.6 | H73: White
A74: 16 | B74: Male | C74: 23 | D74: 340 | E74: 1 | F74: 2 | G74: 41.1 | H74: Japanese
A75: 17 | B75: Male | C75: 64 | D75: 415 | E75: 2 | F75: 2 | G75: 34.5 | H75: Filipino
A76: 19 | B76: Male | C76: 23 | D76: 459 | E76: 2 | F76: 1 | G76: 37.4 | H76: Other
A77: 20 | B77: Male | C77: 45 | D77: 310 | E77: 1 | F77: 1 | G77: 38 | H77: White
A78: 23 | B78: Male | C78: 34 | D78: 82 | E78: 2 | F78: 2 | G78: 44.3 | H78: Other
A79: 25 | B79: Male | C79: 45 | D79: 74 | E79: 1 | F79: 2 | G79: 49.9 | H79: Japanese
A80: 31 | B80: Male | C80: 43 | D80: 583 | E80: 1 | F80: 1 | G80: 40.7 | H80: Japanese
A81: 35 | B81: Male | C81: 78 | D81: 586 | E81: 2 | F81: 1 | G81: 36 | H81: Japanese
A82: 36 | B82: Male | C82: 25 | D82: 225 | E82: 2 | F82: 1 | G82: 40.7 | H82: Japanese
A83: 37 | B83: Male | C83: 33 | D83: 997 | E83: 2 | F83: 2 | G83: 40.2 | H83: White
A84: 40 | B84: Male | C84: 33 | D84: 125 | E84: 2 | F84: 2 | G84: 36.9 | H84: Japanese
A85: 51 | B85: Male | C85: 76 | D85: 997 | E85: 2 | F85: 1 | G85: 39.2 | H85: Japanese
A86: 60 | B86: Male | C86: 77 | D86: 223 | E86: 1 | F86: 2 | G86: 35.9 | H86: Other
A87: 61 | B87: Male | C87: 65 | D87: 410 | E87: 1 | F87: 2 | G87: 34.9 | H87: Native Hawaiian/Part
A88: 62 | B88: Male | C88: 43 | D88: 140 | E88: 1 | F88: 1 | G88: 35.9 | H88: Native Hawaiian/Part
A89: 63 | B89: Male | C89: 65 | D89: 586 | E89: 1 | F89: 1 | G89: 36.8 | H89: Japanese
A90: 65 | B90: Male | C90: 23 | D90: 886 | E90: 1 | F90: 2 | G90: 35 | H90: Native Hawaiian/Part
A91: 66 | B91: Male | C91: 54 | D91: 110 | E91: 2 | F91: 2 | G91: 35.5 | H91: Japanese
A92: 68 | B92: Male | C92: 44 | D92: 91 | E92: 2 | F92: 1 | G92: 39.1 | H92: Filipino
A93: 69 | B93: Male | C93: 76 | D93: 419 | E93: 2 | F93: 2 | G93: 62.6 | H93: Japanese
A94: 70 | B94: Male | C94: 64 | D94: 191 | E94: 2 | F94: 2 | G94: 35.4 | H94: Native Hawaiian/Part
A95: 81 | B95: Male | C95: 55 | D95: 219 | E95: 1 | F95: 1 | G95: 39.9 | H95: Other
A96: 83 | B96: Male | C96: 77 | D96: 174 | E96: 1 | F96: 1 | G96: 71.9 | H96: White
A97: 89 | B97: Male | C97: 77 | D97: 75 | E97: 2 | F97: 1 | G97: 36.2 | H97: Filipino
A98: 91 | B98: Male | C98: 64 | D98: 586 | E98: 1 | F98: 2 | G98: 41.6 | H98: White
A99: 92 | B99: Male | C99: 48 | D99: 419 | E99: 2 | F99: 2 | G99: 37.3 | H99: Filipino
A100: 93 | B100: Male | C100: 54 | D100: 200 | E100: 1 | F100: 1 | G100: 34.7 | H100: Other
A101: 99 | B101: Male | C101: 56 | D101: 410 | E101: 2 | F101: 2 | G101: 40 | H101: Japanese

Sheet Histogram
C2: Data - Plotting and Analysis with Excel - Histogram | I2: TOC
C4: Plotting and Testing Normality of Continuous Data
C5: Table 1. is copied from worksheet "1". Worksheet 1 is a copy of the FINAL dataset used to create a histogram with bins in one column and the summary values in the second.
C6: Table 1.
C7: Bins | D7: Frequency
C8: 10 | D8: 0 | H8: Histograms
C9: 20 | D9: 1 | H9: To test normality or a bell shape distribution required of some parametric tests you visually inspect the data by creating a histogram of continuous values.
C10: 30 | D10: 11
C11: 40 | D11: 17
C12: 50 | D12: 25 | H12: For a frequency distribution of a continuous variable the data needs to be grouped into 'bins'. You can create bins by entering the lower value of the bin into cells consecutively as in L:3 through L:11 on worksheet "1". Then go to the Analysis TookPak and click on Histogram it will ask you to highlight the data (Input range) and then highlight the bins (Bin range). The values have to be contiguous (adjacent). There are other options that you can select such as new worksheet and then click OK. If you highlight the data and go to Insert and Recommended Charts a histogram or a line chart option will come up and you can create a chart of your data. You can right click on the chart to go to formatting options or click on the bars to format the bars. If you double click (pause between clicks) on the bars you can format a single bar or point. If you click on the axes or header you can modify them also.
C13: 60 | D13: 18
C14: 70 | D14: 13
C15: 80 | D15: 15
C16: 90 | D16: 0
C17: More | D17: 0

Sheet One Series Formulas
C2: Data - Plotting and Analysis with Excel - One Continuous Variable | G2: TOC
C3: Definitions - Statistical | E3: http://www.stat.berkeley.edu/~stark/SticiGui/Text/gloss.htm
C4: Parametric Variable Basic Statistics and Graph, One Continuous Variable
C5: Table 1 copied from worksheet '1'.
C6: Table 1. Data Table AGE
C7: Bin | D7: Frequency
C8: 10 | D8: 0
C9: 20 | D9: 1
C10: 30 | D10: 11
C11: 40 | D11: 17
C12: 50 | D12: 25
C13: 60 | D13: 18
C14: 70 | D14: 13
C15: 80 | D15: 15
C16: 90 | D16: 0
C18: Worksheet "1" is the source of the Data.
B19: N | C19: Statistic for Age | D19: *Formula Used in Column D | E19: Value Age* | F19: Value Age formatted
B20: 1 | C20: Sum | D20: =SUM('1'!C2:C101) | E20: =SUM('1'!C2:C101) -> 4918 | F20: =E20 -> 4918
B21: 2 | C21: Count | D21: =COUNT('1'!C2:C101) | E21: =COUNT('1'!C2:C101) -> 100 | F21: =E21 -> 100
B22: 3 | C22: Mean | D22: =AVERAGE('1'!C2:C101) | E22: =AVERAGE('1'!C2:C101) -> 49.18 | F22: =E22 -> 49.18
B23: 4 | C23: Confidence Interval for the Mean | D23: =CONFIDENCE(0.05,E25,E21) | E23: =CONFIDENCE(0.05,E25,E21) -> 3.271874103 | F23: 3.271874103
C24: X ± 95% CL | E24: 49.2 ± 3.3 | F24: 49.2 (45.9-52.5) = mean (95% confidence limits)
B25: 5 | C25: Standard deviation, sample | D25: =STDEV('1'!C2:C101) | E25: =STDEV('1'!C2:C101) -> 16.69354197 | F25: =ROUND(E25,1) -> 16.7 | G25: descriptive of sample
B26: 6 | C26: Standard error* | D26: =E25/(SQRT(E21)) | E26: =E25/(SQRT(E21)) -> 1.669354197 | F26: 1.669354197 | G26: from distribution of sample means
B27: 7 | C27: Variance | D27: =VAR('1'!C2:C101) | E27: =VAR('1'!C2:C101) -> 278.6743434 | F27: 278.6743434
B28: 8 | C28: Kurtosis | D28: =KURT('1'!C2:C101) | E28: =KURT('1'!C2:C101) -> -0.9713852958 | F28: -0.9713852958
B29: 9 | C29: Skew | D29: =SKEW('1'!C2:C101) | E29: =SKEW('1'!C2:C101) -> 0.1317257187 | F29: 0.1317257187
B30: 10 | C30: Harmonic mean | D30: =HARMEAN('1'!C2:C101) | E30: =HARMEAN('1'!C2:C101) -> 43.0416135 | F30: 43.0416135
B31: 11 | C31: Geometric mean | D31: =GEOMEAN('1'!C2:C101) | E31: =GEOMEAN('1'!C2:C101) -> 46.17882896 | F31: 46.17882896
B32: 12 | C32: Median | D32: =MEDIAN('1'!C2:C101) | E32: =MEDIAN('1'!C2:C101) -> 45 | F32: 45
B33: 13 | C33: Minimum | D33: =MIN('1'!C2:C101) | E33: =MIN('1'!C2:C101) -> 20 | F33: 20
B34: 14 | C34: Maximum | D34: =MAX('1'!C2:C101) | E34: =MAX('1'!C2:C101) -> 78 | F34: 78
B35: 15 | C35: Raised to a Power of 2 | D35: =POWER(('1'!C2:C101),2) | E35: =POWER(('1'!C2:C101),2) -> 3136 | F35: 3136
B36: 16 | C36: Square root (of variance) | D36: =SQRT(E27) | E36: =SQRT(E27) -> 16.69354197 | F36: =ROUND(E36,2) -> 16.69
B37: 17 | C37: Mode | D37: =MODE('1'!C2:C101) | E37: =MODE('1'!C2:C101) -> 43 | F37: =E37 -> 43
C38: *there is not a function for SE
C41: Geometric mean: A measure of central tendency like the mean but is the 'nth' root of the product (not the sum) of all the values. It is useful with highly variable data, skewed data, and when relative changes occur. Do you use it when there are negative or zero values in the data set.
C43: To switch between viewing the results and viewing the formulas that return the results, press CTRL+` (grave accent), or on the Tools menu, point to Formula Auditing, and then click Formula Auditing Mode.

Sheet Correlation
C2: Data - Plotting and Analysis with Excel - Correlation | F2: TOC
C4: CORRELATION NUMERIC VARIABLES
C7: How strong is the linear relationship of poverty or age and BMI?
C8: Correlation (Pearson Product Moment Correlation) is the linear association between two continuous variables and lies between -1 and +1. If the variables are highly positively associated the value lies closer to +1 (one variable's values increase while the other variable's values also increase). If the variables are highly negatively associated (one variable's values increase while the other variable's values decrease) the value of the correlation coefficient lies closer to -1.
C11: GOAL | D11: FORMULA | E11: RESULT
C12: General formula | D12: =CORREL(RANGE1, RANGE2) or PEARSON(RANGE1,RANGE2) specifically the Pearson Product Moment Correlation
C13: Age and Poverty | D13: =CORREL(FINAL!C2:C101, FINAL!D2:D101) | E13: =CORREL(FINAL!C2:C101, FINAL!D2:D101) -> 0.004848564538 | F13: very slightly positive
C14: Age and BMI | D14: =ROUND(CORREL(FINAL!C2:C101, FINAL!G2:G101),3) | E14: =ROUND(CORREL(FINAL!C2:C101, FINAL!G2:G101),3) -> 0.071 | F14: slightly positive
C15: Poverty and BMI | D15: ?
C17: Note: You can also use the Analysis TookPak for Correlation.

Sheet Inferential Statistics
D2: Data - Plotting and Analysis with Excel - Inferential Statistics | E2: TOC
D4: Inferential Statistics - Hypothesis Testing
D6: Deduce from sample evidence aspects of the population from which it is drawn.
D7: 1. First explain your hypotheses both Null (Ho) and Alternative (H1)
D8: 2. Set your level of significance (α-alpha)
D9: 3. Given your study variables determine the test statistic that will be used. Based on the hypotheses, theoretical distribution of the test statistic, degrees of freedom, and α-alpha determine the critical point(s) on the sampling distribution of the test statistic.
D10: 4. Analyze your sample data and calculate sample statistic.
D11: 5. Compare the calculated statistic to the test statistic on the theoretical distribution
D12: 6. Conclusion: If the calculated statistic falls beyond the critical test statistic (in the critical region) then it is unlikely to have occurred by chance at the α-alpha level chosen and the null hypothesis is rejected. If the test statistic falls within the area (1-critical area) then there is not enough evidence to reject the null hypothesis of no difference at the α-alpha level chosen.
D13: 7. Examples in this Workbook.
D14: Chi-Square | E14: Chi-Sq 2X1 | F14: Chi-Square 2X2
D15: Students t-test Difference between sample means | E15: Two Series Formulas | F15: Means ToolPak
D16: ANOVA Analysis of Variance | E16: ANOVA ToolPak
D17: Linear Regression | E17: Regression Plot | F17: Regression Results

Sheet Chi-Sq 2X1
C2: Data - Plotting and Analysis with Excel - Chi-Square Test of Goodness of Fit | F2: TOC
C3: Categorical Variables Test - Chi-Square Test, Goodness of Fit One Variable
C4: 1. Chi-Square tests are for tests on distributions of character variables frequency. Do the values differ from a theoretical distribution? The Chi-Square statistic is a comparison of the observed and the theoretical distribution and can be used on one independent variable that is categorical. The test determines whether the differences between the observed and theoretical proportion are too large to have occurred by chance. The Chi-Square test is a one tailed test of frequency counts.
C5: Ho: The data follow a specified distribution. Females 0.60 Males 0.40 H1: The data do not follow the specified distribution.
C6: 2. Do not use on percentages, proportions. Tables must be in frequency form, values have to be independent and random. The total N should not be less than 10 and an individual cell not less than 5.
C7: 3. The example compares gender to a theoretical distribution. Suppose that the proportion of females in theory should be 60%. We are going to test if our sample distribution is different from this theoretical distribution.
C8: Example 1. Input formulas Individually. Formulas are below.
C9: FORMULAS NEEDED
C10: STEPS | D10: OBSERVED VALUES
C11: 1 | D11: GENDER | E11: FREQUENCY | F11: Named the individual columns for gender and marital status in FORMULAS and Name Manager.
C12: Input Counts | D12: Female | E12: =COUNTIF(FINAL!B2:B101,"Female")
D13: Male | E13: =COUNTIF(FINAL!B2:B101,"Male")
D14: TOTAL | E14: =SUM(E11:E12)
C16: 2 | D16: EXPECTED VALUES
C17: Expected Values | D17: GENDER | E17: THEORETICAL
D18: Female | E18: =0.6*E13
D19: Male | E19: =0.4*E13
C21: 3 | D21: CHI-SQUARE TABLE
C22: Observed - Expected2/ Expected | D22: GENDER | E22: CALCULATION
D23: Female | E23: =(POWER(E11-E17,2))/E17
D24: Male | E24: =POWER(E12-E18,2)/E18
C26: 4 Chi-Square Value χ² | D26: Calculated Chi-Square Value | F26: =E22+E23
C27: Sum of Observed - Expected2/ Expected | D27: Degrees of Freedom | E27: = NUMBER OF CATEGORIES MINUS 1 | F27: =2-1 -> 1
C28: Degrees of Freedom DF 1 | D28: For this study we have One Degree of Freedom so use the Yates Correction Below.
C30: 5 Correction for Chi-Square | D30: Use Yates Correction for One Degree of Freedom Chi-Square
C31: When 1 DF Use This | E31: =(POWER((E11-E17-0.5),2))/E17
C32: CORRECTION | E32: =POWER((E12-E18-0.5),2)/E18
D33: Calculated Chi-Square Value | F33: =E30+F31
D34: Degrees of Freedom - how many numbers are independent for the two cells? If you know the total and one is already filled in how many choices do you have for the second cell so that the toil equals the total already set? ( = Number of Categories - one = 2-1 = 1) THIS FORMULA IS only for one variable distribution when there is more than one variable the calculation for degrees of freedom is different.
C35: 5
C36: For the Chi-Square Probability that corresponds to the calculated Chi-Square Value you need a Chi Square Table
C37: Example 1. Values as a result of the formulas. You can see the formula in each cell or hit CTRL and the ` to see all formulas at once.
C39: STEPS | D39: OBSERVED VALUES
C40: 1 | D40: GENDER | E40: FREQUENCY
D41: Female | E41: =COUNTIFS(GENDER,"Female",MARITAL_STATUS,"1") -> 32
D42: Male | E42: =COUNTIFS(GENDER,"Male",MARITAL_STATUS,"1") -> 19
D43: TOTAL | E43: =COUNTIF(FINAL!E2:E101,1) -> 51
C45: 2 | D45: EXPECTED VALUES
D46: GENDER | E46: THEORETICAL
D47: Female | E47: =0.6*51 -> 30.6
D48: Male | E48: =0.4*51 -> 20.4
D49: TOTAL | E49: =SUM(E47:E48) -> 51 | F49: The expected values total should equal the observed values total.
C51: 3 | D51: CHI-SQUARE VALUES
D52: GENDER | E52: CALCULATION
D53: Female | E53: =(POWER(E41-E47,2))/E47 -> 0.06405228758
D54: Male | E54: =POWER(E42-E48,2)/E48 -> 0.09607843137
G55: ROUND FUNCTION =ROUND(VARIABLE,# OF DECIMELS)
D56: Calculated Chi-Square Value | G56: =ROUND((E53+E54),2) -> 0.16
D57: Degrees of Freedom | E57: (rows-1)(columns-1) | F57: = (2-1)*(2-1) | G57: =(2-1)*(2-1) -> 1
C60: 4 | D60: Use Yates Correction for 1 Degree of Freedom Chi-Square
E61: =(POWER((E41-E47-0.5),2))/E47 -> 0.02647058824
E62: =POWER((E42-E48-0.5),2)/E48 -> 0.1769607843
D63: Calculated Chi-Square Value | G63: =ROUND((E61+E62),3) -> 0.203
D64: p Value
C66: Please note that a Chi-Square Test is essentially a one-sided test in that the differences between the observed and expected are squared so that the minus sign, if it occurs, disappears. At the beginning of your study you decide what level of significance (α) you are going to use, let us say α= 0.05. You then compare the calculated Chi-Square value to Chi-Square value from a table with df in the rows and α values for the columns.
C67: It may be confusing in that some tables give both sides of a Chi-Square distribution with probability increasing from left to right so that the p value is 0.95 for an (α) of 0.05.
C68: A right sided tests if the 'fit' is poor which is the test of interest. A left sided test indicates whether the fit is 'too good' which is not usually the test of interest.
C69: 5
C70: For the Chi-Square Value that corresponds to the Degrees of Freedom and Probability you need a Chi-Square Table
D71: Chi-Square Table One Degree of Freedom | E71: Taken From: | F71: https://www.medcalc.org/manual/chi-square-table.php
E72: P
D73: DF | E73: 0.1 | F73: 0.05 | G73: 0.025 | H73: 0.02
C74: Find the Row for DF | D74: 1 | E74: 2.706 | F74: 3.841 | G74: 5.024 | H74: 5.412
C75: Find the Column for the Probability of Interest | D75: 2 | E75: 4.605 | F75: 5.991 | G75: 7.378 | H75: 7.824
D76: 3 | E76: 6.251 | F76: 7.815 | G76: 9.348 | H76: 9.837
C77: Compare the Calculated Value to the Table Value | D77: 4 | E77: 7.779 | F77: 9.488 | G77: 11.143 | H77: 11.668
D78: 5 | E78: 9.236 | F78: 11.07 | G78: 12.833 | H78: 13.388
C80: 6 | D80: Compare calculated statistic (Chi-Sq = 0.203) to test statistic (3.841). The calculated statistic is not larger than the test statistic so we fail to reject the null hypothesis of no difference. The proportion of females in our study population does not differ significantly from 0.60.
C83: Example 2. Use the formula CHISQ.TEST to compute the PROBABILITY for the calculated Chi-Square Test (it does not give the Chi-Square Calculation)
D84: Chi-Square Formula gives probability of calculated statistic not the Chi-Square Value. | E84: =CHISQ.TEST(E43:F44,E50:F51)
D85: Chi-Square Probability at alpha = 0.05 | E85: =_xlfn.CHISQ.TEST(E42:E43,E48:E49) -> 0.7565874127 | F85: The probability is not less than the 0.05 and so we conclude again that the proportion of females does not differ significantly from 0.60.
D87: Please Note: The Chi-square test is not reliable when the expected values are below 5 or the total values are less than 50. Check then into Fisher's Exact Test.

Sheet Chi-Square 2X2
C2: Data - Plotting and Analysis with Excel - Chi-Square Test of Independence | F2: TOC
C3: Categorical Variables Test - Chi-Square Test, Test of Independence, Two Variables | F3: https://en.wikipedia.org/wiki/Chi-squared_distribution
C4: 1. Do the values differ from what would be expected given the total counts in the margin? The Chi-Square statistic is a comparison of the observed and expected response counts and can be used on one or more independent variables that are categorical. The test determines whether the differences between the observed and expected responses are too large to have occurred by chance. The Chi-Square test can be a one or two tailed test of frequency counts.
C5: 2. Do not use on percentages, proportions. Table must be in frequency form, values have to be independent and random. The total N should not be less than 10 and an individual cell not less than 5.
C6: 3. The example compares gender and marital status, is there a significant difference between males that are married compared to females that are married?
C7: Example 1. Method is Input formulas Individually. Formulas are below.
C8: FORMULAS NEEDED
C9: STEPS | D9: OBSERVED VALUES
C10: 1 | D10: GENDER | E10: MARITAL STATUS | G10: TOTAL | H10: Named the individual columns for gender and marital status in FORMULAS and Name Manager.
C11: Input Counts from Data | E11: Married | F11: Not Married
D12: Female | E12: =COUNTIFS(GENDER,"Female",MARITAL_STATUS,"1") | F12: =COUNTIFS(GENDER,"Female",MARITAL_STATUS,"2") | G12: =COUNTIF(FINAL!B2:B101,"Female")
D13: Male | E13: =COUNTIFS(GENDER,"Male",MARITAL_STATUS,"1") | F13: =COUNTIFS(GENDER,"Male",MARITAL_STATUS,"2") | G13: =COUNTIF(FINAL!B2:B101,"Male")
D14: TOTAL | E14: =COUNTIF(FINAL!E2:E101,1) | F14: =COUNTIF(FINAL!E2:E101,2) | G14: =SUM(E14:F14) | H14: TO EXIT A FORMULA GO TO THE END OF THE FORMULA AND HIT RETURN!
C16: 2 | D16: EXPECTED VALUES
C17: Calculated Expected Values | D17: GENDER | E17: MARITAL STATUS
E18: Married | F18: Not Married
D19: Female | E19: =(E14/G14)*(G12/G14)*G14 | F19: =(F14/G14)*(G12/G14)*G14 | G19: Color coding matches the marginal totals above.
D20: Male | E20: =(E14/G14)*(G13/G14)*G14 | F20: =(F14/G14)*(G13/G14)*G14
C22: 3 | D22: CHI-SQUARE TABLE
C23: Observed - Expected2/ Expected | D23: GENDER | E23: MARITAL STATUS
E24: Married | F24: Not Married
D25: Female | E25: =(POWER(E12-E19,2))/E19 | F25: =POWER(F12-F19,2)/F19
D26: Male | E26: =POWER(E13-E20,2)/E20 | F26: =POWER(F13-F20,2)/F20
C27: 4 Chi-Square Value
C28: Sum of Observed - Expected2/ Expected | D28: Calculated Chi-Square Value | G28: =E25+E26+F25+F26
C29: Degrees of Freedom DF 1 | D29: Degrees of Freedom - DF | E29: (rows-1)(columns-1) | F29: = (2-1)*(2-1)
C31: 5 Correction for Chi-Square
C32: When 1 DF Use This | D32: Use Yates Correction for One Degree of Freedom Chi-Square
C33: CORRECTION | E33: =(POWER((E12-E19-0.5),2))/E19 | F33: =POWER((F12-F19-0.5),2)/F19
E34: =POWER((E13-E20-0.5),2)/E20 | F34: =POWER((F13-F20-0.5),2)/F20
D35: Calculated Chi-Square Value | G35: =E33+F33+F34+E34
D36: degrees of Freedom - how many numbers are independent | E36: (rows-1)(columns-1) | G36: = (2-1)*(2-1)
C37: For the Chi-Square Probability that corresponds to the calculated Chi-Square Value you need a Chi Square Table
C39: Example 1. Values as a result of the formulas. You can see the formula in each cell or hit CTRL and the ` to see all formulas at once.
C41: STEPS | D41: OBSERVED VALUES
C42: 1 | D42: GENDER | E42: MARITAL STATUS | G42: TOTAL
E43: Married | F43: Not Married
D44: Female | E44: =COUNTIFS(GENDER,"Female",MARITAL_STATUS,"1") -> 32 | F44: =COUNTIFS(GENDER,"Female",MARITAL_STATUS,"2") -> 33 | G44: =COUNTIF(FINAL!B2:B101,"Female") -> 65
D45: Male | E45: =COUNTIFS(GENDER,"Male",MARITAL_STATUS,"1") -> 19 | F45: =COUNTIFS(GENDER,"Male",MARITAL_STATUS,"2") -> 16 | G45: =COUNTIF(FINAL!B2:B101,"Male") -> 35
D46: TOTAL | E46: =COUNTIF(FINAL!E2:E101,1) -> 51 | F46: =COUNTIF(FINAL!E2:E101,2) -> 49 | G46: =SUM(E46:F46) -> 100
C48: 2 | D48: EXPECTED VALUES
D49: GENDER | E49: MARITAL STATUS | G49: TOTAL | H49: The expected values total should equal the observed values total.
E50: Married | F50: Not Married
D51: Female | E51: =(E46/G46)*(G44/G46)*G46 -> 33.15 | F51: =(F46/G46)*(G44/G46)*G46 -> 31.85 | G51: =SUM(E51:F51) -> 65
D52: Male | E52: =(E46/G46)*(G45/G46)*G46 -> 17.85 | F52: =(F46/G46)*(G45/G46)*G46 -> 17.15 | G52: =SUM(E52:F52) -> 35
D53: TOTAL | E53: =SUM(E51:E52) -> 51 | F53: =SUM(F51:F52) -> 49 | G53: =SUM(E53:F53) -> 100
C55: 3 | D55: CHI-SQUARE TABLE
D56: GENDER | E56: MARITAL STATUS
E57: Married | F57: Not Married
D58: Female | E58: =(POWER(E44-E51,2))/E51 -> 0.03989441931 | F58: =POWER(F44-F51,2)/F51 -> 0.04152276295
D59: Male | E59: =POWER(E45-E52,2)/E52 -> 0.07408963585 | F59: =POWER(F45-F52,2)/F52 -> 0.07711370262
G60: ROUND FUNCTION =ROUND(VARIABLE,# OF DECIMELS)
C61: 4 | D61: Calculated Chi-Square Value | G61: =ROUND((E58+E59+F58+F59),2) -> 0.23
D62: Degrees of Freedom | E62: (rows-1)(columns-1) | F62: = (2-1)*(2-1) | G62: =(2-1)*(2-1) -> 1
D65: Use Yates Correction for 1 Degree of Freedom Chi-Square
E66: =(POWER((E44-E51-0.5),2))/E51 -> 0.08212669683 | F66: =POWER((F44-F51-0.5),2)/F51 -> 0.01326530612 | G66: ROUND FUNCTION =ROUND(VARIABLE,# OF DECIMELS)
E67: =POWER((E45-E52-0.5),2)/E52 -> 0.02366946779 | F67: =POWER((F45-F52-0.5),2)/F52 -> 0.1587463557
D68: Calculated Chi-Square Value | G68: =ROUND((E66+F66+F67+E67),2) -> 0.28
D69: p Value
C70: Please note that a Chi-Square Test is essentially a one-sided test in that the differences between the observed and expected are squared so that the minus sign, if it occurs, disappears. At the beginning of your study you decide what level of significance (α) you are going to use, let us say α= 0.05. You then compare the calculated Chi-Square value to Chi-Square value from a table with df in the rows and α values for the columns.
C71: It may be confusing in that some tables give both sides of a Chi-Square distribution with probability increasing from left to right so that the p value is 0.95 for an (α) of 0.05.
C72: A right sided tests if the 'fit' is poor which is the test of interest. A left sided test indicates whether the fit is 'too good' which is not usually the test of interest.
C74: For the Chi-Square Value that corresponds to the Degrees of Freedom and Probability you need a Chi-Square Table
D75: Chi-Square Table One Degree of Freedom | E75: Taken From: | F75: https://www.medcalc.org/manual/chi-square-table.php
E76: P
D77: DF | E77: 0.1 | F77: 0.05 | G77: 0.025 | H77: 0.02
C78: Find the Row for DF | D78: 1 | E78: 2.706 | F78: 3.841 | G78: 5.024 | H78: 5.412
C79: Find the Column for the Probability of Interest | D79: 2 | E79: 4.605 | F79: 5.991 | G79: 7.378 | H79: 7.824
D80: 3 | E80: 6.251 | F80: 7.815 | G80: 9.348 | H80: 9.837
C81: Compare the Calculated Value to the Table Value | D81: 4 | E81: 7.779 | F81: 9.488 | G81: 11.143 | H81: 11.668
D82: 5 | E82: 9.236 | F82: 11.07 | G82: 12.833 | H82: 13.388
D83: To be significant our calculated value has to be larger than the table value. 0.28 < 3.84 so we fail to reject our null hypothesis of no difference. It is not significant There is not a significant difference in marital status between females and males.
C87: Example 2. Use the formula CHISQ.TEST to compute the probability for the calculated Chi-Square Test (it does not give the Chi-Square Calculation)
D88: Chi-Square Formula gives probability not the Chi-Square Value. | E88: =CHISQ.TEST(E43:F44,E50:F51)
D89: Chi-Square Probability at alpha = 0.05 | E89: =_xlfn.CHISQ.TEST(E44:F45,E51:F52) -> 0.629587523
D91: Conclusion?
D93: Please Note: The Chi-square test is not reliable when the expected values are below 5 or the total values are less than 50. Check then into Fisher's Exact Test.

Sheet Two Series Formulas
C2: Data - Plotting and Analysis with Excel - Two Continuous Variables | G2: TOC
C3: Parametric Variables Basic Statistics and Graph, Two Continuous Variables
C4: Table 1 copied from worksheet "1".
C5: Table 1. Data Table | D5: Frequency
C6: BMI | D6: Males | E6: Females
C7: 30 | D7: 0 | E7: 0
C8: 35 | D8: 18 | E8: 6
C9: 40 | D9: 31 | E9: 19
C10: 45 | D10: 8 | E10: 7
C11: 55 | D11: 7 | E11: 1
C12: 60 | D12: 0 | E12: 0
C13: 65 | D13: 1 | E13: 1
C14: 70 | D14: 0 | E14: 0
C15: 75 | D15: 0 | E15: 1
C18: Worksheet "1" is the source of the Data sorted by gender.
C19: Statistic | D19: Formula Example Males(to use delete first space) | E19: Males | F19: Females | G19: Comparisons
C20: Sum | D20: =SUM('1'!G2:G66) | E20: =SUM('1'!G2:G66) -> 2489.8 | F20: =SUM('1'!G67:G101) -> 1391.6
C21: Count | D21: =COUNT('1'!G2:G66) | E21: =COUNT('1'!G2:G66) -> 65 | F21: =COUNT('1'!G67:G101) -> 35
C22: Mean | D22: =AVERAGE('1'!G2:G66) | E22: =AVERAGE('1'!G2:G66) -> 38.30461538 | F22: =AVERAGE('1'!G67:G101) -> 39.76
C23: Confidence Interval for the Mean | D23: =CONFIDENCE(0.05,E24,E21) | E23: =CONFIDENCE(0.05,E24,E21) -> 1.189364633 | F23: =CONFIDENCE(0.05,F24,F21) -> 2.531317093
C24: Standard deviation, sample | D24: =STDEV('1'!G2:G66) | E24: =STDEV('1'!G2:G66) -> 4.892418585 | F24: =STDEV('1'!G67:G101) -> 7.640688297
C25: Standard error* | D25: =D24/(SQRT(E21)) | E25: =E24/(SQRT(E21)) -> 0.6068298407 | F25: =F24/(SQRT(F21)) -> 1.291512045
C26: Variance | D26: =VAR('1'!G2:G66) | E26: =VAR('1'!G2:G66) -> 23.93575962 | F26: =VAR('1'!G67:G101) -> 58.38011765
C27: Kurtosis | D27: =KURT('1'!G2:G66) | E27: =KURT('1'!G2:G66) -> 7.391747318 | F27: =KURT('1'!G67:G101) -> 10.67718895
C28: Skew | D28: =SKEW('1'!G2:G66) | E28: =SKEW('1'!G2:G66) -> 2.301164834 | F28: =SKEW('1'!G67:G101) -> 3.145832872
C29: Median | D29: =MEDIAN('1'!G2:G66) | E29: =MEDIAN('1'!G2:G66) -> 36.8 | F29: =MEDIAN('1'!G67:G101) -> 37.4
C30: Minimum | D30: =MIN('1'!G2:G66) | E30: =MIN('1'!G2:G66) -> 34 | F30: =MIN('1'!G67:G101) -> 34.5
C31: Maximum | D31: =MAX('1'!G2:G66) | E31: =MAX('1'!G2:G66) -> 61.8 | F31: =MAX('1'!G67:G101) -> 71.9
C32: Square root (of variance) | D32: =SQRT(E26) | E32: =SQRT(E26) -> 4.892418585 | F32: =SQRT(F26) -> 7.640688297
C33: Pearson Product Moment Correlation | D33: =PEARSON('1'!D2:D101,'1'!G2:G101) | F33: Poverty and BMI | G33: =PEARSON('1'!D2:D101,'1'!G2:G101) -> -0.1299298868
C34: F TEST Comparison of Variance p Value | D34: =FTEST('1'!G2:G66,'1'!G67:G101) | G34: =FTEST('1'!G2:G66,'1'!G67:G101) -> 0.002098914898
C35: T TEST Comparison of Means p Value | D35: =TTEST('1'!G2:G66,'1'!G67:G101,2,3) | G35: =TTEST('1'!G2:G66,'1'!G67:G101,2,3) -> 0.3127402214
C36: α = 0.05
C37: *there is not a function for SE
C38: Note: The TTEST input is (first array, second array, number of tails, type of t test) There are three types: 1. Paried data, 2. Not paired with equal variance, 3. Not paired with unequal variance.
C39: Conclusion: The F test indicates a significant difference between variances and then the unequal variance t-Test indicates not a significant difference between the two means.

Sheet Means ToolPak Results
Q1: DATA | S1: IDN | T1: URBAN_RURAL SORTED | U1: BMI
C2: Data - Plotting and Analysis with Excel - Means with F and t Test with TookPak | G2: TOC | I2: Frequency plot | S2: 1 | T2: 1 | U2: 39.1 | X2: BMI | Y2: Urban | Z2: Rural | AA2: BMI | AB2: Rural | AC2: Urban
H3: 1 | S3: 3 | T3: 1 | U3: 34.8 | X3: Bin | Y3: Frequency | Z3: Frequency | AA3: Bin | AB3: Frequency | AC3: Frequency
C4: Comparing Means, BMI By Urban/ Rural | E4: http://people.duke.edu/~rnau/testing.htm | S4: 5 | T4: 1 | U4: 38 | X4: 30 | Y4: 0 | Z4: 0 | AA4: 30 | AB4: 0 | AC4: 0
C5: Using Analysis ToolPak add-in | S5: 11 | T5: 1 | U5: 38.6 | X5: 35 | Y5: 11 | Z5: 13 | AA5: 35 | AB5: 13 | AC5: 11
E6: Central Limit Theorem Sample Size - the sampling distribution of the sampling means with replacement approaches a normal distribution as the sample size gets larger (n≥30), regardless of the shape of the population distribution. | S6: 12 | T6: 1 | U6: 39.2 | X6: 40 | Y6: 27 | Z6: 23 | AA6: 40 | AB6: 23 | AC6: 27
D7: Assumptions Data - Check | S7: 15 | T7: 1 | U7: 36.8 | X7: 45 | Y7: 8 | Z7: 7 | AA7: 45 | AB7: 7 | AC7: 8
C8: Steps | D8: Random Sample | S8: 22 | T8: 1 | U8: 38.4 | X8: 55 | Y8: 4 | Z8: 4 | AA8: 55 | AB8: 4 | AC8: 4
D9: Normal Probability Distribution | S9: 26 | T9: 1 | U9: 34.2 | X9: 60 | Y9: 0 | Z9: 0 | AA9: 60 | AB9: 0 | AC9: 0
S10: 27 | T10: 1 | U10: 41 | X10: 65 | Y10: 1 | Z10: 1 | AA10: 65 | AB10: 1 | AC10: 1
C11: 1 | D11: Copy data from worksheet '1'. Sort data by Urban/ Rural. Look to the right to see the data and bins used for the frequency plot. | S11: 30 | T11: 1 | U11: 36.8 | X11: 70 | Y11: 0 | Z11: 0 | AA11: 70 | AB11: 0 | AC11: 0
C12: 2 | D12: Graph the relationship and generate descriptive statistics. | S12: 32 | T12: 1 | U12: 34.2 | X12: 75 | Y12: 1 | Z12: 0 | AA12: 75 | AB12: 0 | AC12: 1
C13: 3 | D13: Use the F Test Equality of Variances in Analysis TookPak to see if males and females have equal variances. | H13: 2 | I13: F-Test Two-Sample for Variances | M13: F-Test Two-Sample for Variances | S13: 33 | T13: 1 | U13: 35.9 | X13: More | Y13: 0 | Z13: 0 | AA13: More | AB13: 0 | AC13: 0
C14: 4 | D14: Determine if t Test for a sample or Z test for population should be used. Here data are a sample of all possible values so use a t Test. | M14: Variables Reversed | S14: 34 | T14: 1 | U14: 37.8
C15: 5 | D15: Determine type of t Test, depends on results of the F Test on equality of Variance. | J15: Urban | K15: Rural | N15: Rural | O15: Urban | S15: 41 | T15: 1 | U15: 35.4
C16: 6 | D16: Run the t Test in this case with equal variance In Analysis TookPak Add-In. | I16: Mean | J16: 39.24807692 | K16: 38.34375 | M16: Mean | N16: 38.34375 | O16: 39.24807692 | S16: 42 | T16: 1 | U16: 34.7
C17: 7 | D17: Compare the p Value to alpha = 0.05. It is generally best to have a two tailed hypothesis. | I17: Variance | J17: 43.37430995 | K17: 28.35102394 | M17: Variance | N17: 28.35102394 | O17: 43.37430995 | S17: 45 | T17: 1 | U17: 40.4
I18: Observations | J18: 52 | K18: 48 | M18: Observations | N18: 48 | O18: 52 | S18: 46 | T18: 1 | U18: 42.9
I19: df | J19: 51 | K19: 47 | M19: df | N19: 47 | O19: 51 | S19: 47 | T19: 1 | U19: 61.8
I20: F | J20: 1.529902767 | M20: F | N20: 0.6536363107 | S20: 52 | T20: 1 | U20: 34.2
C21: Results of Using Descriptive Statistics in the Analysis ToolPak, Each One Performed Separately | I21: P(F<=f) one-tail | J21: 0.07134827707 | M21: P(F<=f) one-tail | N21: 0.07134827707 | S21: 56 | T21: 1 | U21: 35.4
I22: F Critical one-tail | J22: 1.612235305 | M22: F Critical one-tail | N22: 0.6202568552 | S22: 57 | T22: 1 | U22: 47.2
C23: URBAN | E23: RURAL | S23: 58 | T23: 1 | U23: 34.3
I24: The tool calculates the value f of an F-statistic (or F-ratio). A value of f close to 1 provides evidence that the underlying population variances are equal. In the output table, if f < 1 "P(F <= f) one-tail" gives the probability of observing a value of the F-statistic less than f when population variances are equal, and "F Critical one-tail" gives the critical value less than 1 for the chosen significance level Alpha. If f > 1, "P(F <= f) one-tail" gives the probability of observing a value of the F-statistic greater than f when population variances are equal, and "F Critical one-tail" gives the critical value greater than 1 for Alpha. The 0.07 probability shows there is a difference in variance but it is not statistically significant. | S24: 64 | T24: 1 | U24: 45.2
C25: Mean | D25: 39.24807692 | E25: Mean | F25: 38.34375 | S25: 67 | T25: 1 | U25: 42.1
C26: Standard Error | D26: 0.9133024391 | E26: Standard Error | F26: 0.7685351859 | S26: 71 | T26: 1 | U26: 46.8
C27: Median | D27: 37.3 | E27: Median | F27: 36.5 | S27: 72 | T27: 1 | U27: 35
C28: Mode | D28: 34.8 | E28: Mode | F28: 35 | S28: 73 | T28: 1 | U28: 34.8
C29: Standard Deviation | D29: 6.585917548 | E29: Standard Deviation | F29: 5.324567958 | S29: 77 | T29: 1 | U29: 35.9
C30: Sample Variance | D30: 43.37430995 | E30: Sample Variance | F30: 28.35102394 | H30: 5 | I30: t-Test: Two-Sample Assuming Equal Variances | S30: 78 | T30: 1 | U30: 37.2
C31: Kurtosis | D31: 13.39235122 | E31: Kurtosis | F31: 8.560315791 | S31: 79 | T31: 1 | U31: 34.8
C32: Skewness | D32: 3.316588368 | E32: Skewness | F32: 2.581589036 | J32: Urban | K32: Rural | S32: 86 | T32: 1 | U32: 37.2
C33: Range | D33: 37.7 | E33: Range | F33: 28.6 | I33: Mean | J33: 39.24807692 | K33: 38.34375 | S33: 87 | T33: 1 | U33: 46.6
C34: Minimum | D34: 34.2 | E34: Minimum | F34: 34 | I34: Variance | J34: 43.37430995 | K34: 28.35102394 | S34: 90 | T34: 1 | U34: 36.6
C35: Maximum | D35: 71.9 | E35: Maximum | F35: 62.6 | I35: Observations | J35: 52 | K35: 48 | S35: 94 | T35: 1 | U35: 34.9
C36: Sum | D36: 2040.9 | E36: Sum | F36: 1840.5 | I36: Pooled Variance | J36: 36.16926462 | S36: 95 | T36: 1 | U36: 37.1
C37: Count | D37: 52 | E37: Count | F37: 48 | I37: Hypothesized Mean Difference | J37: 0 | S37: 96 | T37: 1 | U37: 43.6
C38: Confidence Level(95.0%) | D38: 1.833531154 | E38: Confidence Level(95.0%) | F38: 1.54609337 | I38: df | J38: 98 | S38: 7 | T38: 1 | U38: 40.2
I39: t Stat | J39: 0.7512386293 | S39: 9 | T39: 1 | U39: 38.8
I40: P(T<=t) one-tail | J40: 0.2271546425 | S40: 13 | T40: 1 | U40: 36.5
I41: t Critical one-tail | J41: 1.660551217 | S41: 19 | T41: 1 | U41: 37.4
I42: P(T<=t) two-tail | J42: 0.4543092851 | S42: 20 | T42: 1 | U42: 38
I43: t Critical two-tail | J43: 1.984467455 | S43: 31 | T43: 1 | U43: 40.7
S44: 35 | T44: 1 | U44: 36
I45: Fail to reject the null hypothesis of no difference of BMI between Urban and Rural. p value two tail is 0.454. Use 2 tail in that we don't know to begin with which is smaller. | S45: 36 | T45: 1 | U45: 40.7
S46: 51 | T46: 1 | U46: 39.2
S47: 62 | T47: 1 | U47: 35.9
S48: 63 | T48: 1 | U48: 36.8
S49: 68 | T49: 1 | U49: 39.1
S50: 81 | T50: 1 | U50: 39.9
S51: 83 | T51: 1 | U51: 71.9
S52: 89 | T52: 1 | U52: 36.2
S53: 93 | T53: 1 | U53: 34.7
S54: 6 | T54: 2 | U54: 34.3
S55: 10 | T55: 2 | U55: 35.5
S56: 18 | T56: 2 | U56: 35.2
S57: 21 | T57: 2 | U57: 36.4
S58: 24 | T58: 2 | U58: 36
S59: 28 | T59: 2 | U59: 34.1
S60: 29 | T60: 2 | U60: 38.8
S61: 38 | T61: 2 | U61: 45.6
S62: 39 | T62: 2 | U62: 35.8
S63: 43 | T63: 2 | U63: 35
S64: 44 | T64: 2 | U64: 37.4
S65: 48 | T65: 2 | U65: 36.6
S66: 49 | T66: 2 | U66: 40.4
S67: 50 | T67: 2 | U67: 35
S68: 53 | T68: 2 | U68: 35.2
S69: 54 | T69: 2 | U69: 34
S70: 55 | T70: 2 | U70: 37.2
S71: 59 | T71: 2 | U71: 34.8
S72: 74 | T72: 2 | U72: 40.5
S73: 75 | T73: 2 | U73: 37.1
S74: 76 | T74: 2 | U74: 35.7
S75: 80 | T75: 2 | U75: 49.4
S76: 82 | T76: 2 | U76: 43.9
S77: 84 | T77: 2 | U77: 34.3
S78: 85 | T78: 2 | U78: 35
S79: 88 | T79: 2 | U79: 46.1
S80: 97 | T80: 2 | U80: 38.3
S81: 98 | T81: 2 | U81: 38.1
S82: 100 | T82: 2 | U82: 35.2
S83: 2 | T83: 2 | U83: 35
S84: 4 | T84: 2 | U84: 34.5
S85: 8 | T85: 2 | U85: 38.4
S86: 14 | T86: 2 | U86: 36.6
S87: 16 | T87: 2 | U87: 41.1
S88: 17 | T88: 2 | U88: 34.5
S89: 23 | T89: 2 | U89: 44.3
S90: 25 | T90: 2 | U90: 49.9
S91: 37 | T91: 2 | U91: 40.2
S92: 40 | T92: 2 | U92: 36.9
S93: 60 | T93: 2 | U93: 35.9
S94: 61 | T94: 2 | U94: 34.9
S95: 65 | T95: 2 | U95: 35
S96: 66 | T96: 2 | U96: 35.5
S97: 69 | T97: 2 | U97: 62.6
S98: 70 | T98: 2 | U98: 35.4
S99: 91 | T99: 2 | U99: 41.6
S100: 92 | T100: 2 | U100: 37.3
S101: 99 | T101: 2 | U101: 40

Sheet ANOVA ToolPak Results
C2: Data - Plotting and Analysis with Excel - ANOVA ToolPak | L2: TOC
C3: BMI | D3: Fictitious Data | G3: Check the data, is there an error?
C4: ISLAND 1 | D4: ISLAND 2 | E4: ISLAND 3 | G4: Definitions - Statistical | H4: http://www.stat.berkeley.edu/~stark/SticiGui/Text/gloss.htm
C5: 31 | D5: 23 | E5: 40 | G5: Analysis of Variance using ToolPak Results
C6: 40 | D6: 40 | E6: 31 | G6: 1. Be sure and check statistical assumptions for your data before running an ANOVA on sets of data.
C7: 24 | D7: 26 | E7: 17 | G7: 2. Go to TookPak and click on ANOVA in this case single factor (BMI) and highlight your data including the headers and click on whether data is grouped by columns or row, the including headers option, input the alpha value, and where you want the output placed. The test compares an F calcuated to an F critical from a theoretical F distribution with known degress of freedom (numerator between, denominator within). The F calculated measures between groups versus within groups variation.
C8: 36 | D8: 39 | E8: 22
C9: 35 | D9: 21 | E9: 36
C10: 24 | D10: 26 | E10: 19
C11: 35 | D11: 26 | E11: 16
C12: 42 | D12: 35 | E12: 36 | G12: 4. How were degrees of freedom calculated?
C13: 28 | D13: 34 | E13: 35 | G13: 5. Conclusion?
C14: 35 | D14: 35 | E14: 42
C15: 20 | D15: 19 | E15: 19
C16: 35 | D16: 39 | E16: 18 | G16: Analysis of Variance using ToolPak Results
C17: 23 | D17: 22 | E17: 33 | G17: Anova: Single Factor
C18: 19 | D18: 22 | E18: 41
C19: 36 | D19: 24 | E19: 25 | G19: SUMMARY
C20: 27 | D20: 37 | E20: 25 | G20: Groups | H20: Count | I20: Sum | J20: Average | K20: Variance
C21: 28 | D21: 27 | E21: 26 | G21: ISLAND 1 | H21: 100 | I21: 2985 | J21: 29.85 | K21: 51.64393939
C22: 33 | D22: 25 | E22: 27 | G22: ISLAND 2 | H22: 100 | I22: 3063 | J22: 30.63 | K22: 53.8920202
C23: 26 | D23: 20 | E23: 40 | G23: ISLAND 3 | H23: 100 | I23: 2853 | J23: 28.53 | K23: 63.36272727
C24: 21 | D24: 30 | E24: 17
C25: 28 | D25: 22 | E25: 21
C26: 29 | D26: 31 | E26: 21 | G26: ANOVA
C27: 35 | D27: 24 | E27: 23 | G27: Source of Variation | H27: SS | I27: df | J27: MS | K27: F | L27: P-value | M27: F crit
C28: 20 | D28: 27 | E28: 40 | G28: Between Groups | H28: 225.36 | I28: 2 | J28: 112.68 | K28: 2.00143652 | L28: 0.1369596221 | M28: 3.026153369
C29: 32 | D29: 41 | E29: 32 | G29: Within Groups | H29: 16720.97 | I29: 297 | J29: 56.29956229
C30: 27 | D30: 42 | E30: 37
C31: 30 | D31: 39 | E31: 34 | G31: Total | H31: 16946.33 | I31: 299
C32: 36 | D32: 21 | E32: 18
C33: 32 | D33: 26 | E33: 24
C34: 40 | D34: 39 | E34: 27
C35: 21 | D35: 35 | E35: 38
C36: 39 | D36: 39 | E36: 41
C37: 35 | D37: 33 | E37: 28
C38: 38 | D38: 26 | E38: 41
C39: 34 | D39: 34 | E39: 21
C40: 22 | D40: 19 | E40: 37
C41: 22 | D41: 30 | E41: 23
C42: 31 | D42: 41 | E42: 28
C43: 24 | D43: 34 | E43: 39
C44: 39 | D44: 21 | E44: 41
C45: 37 | D45: 43 | E45: 33
C46: 41 | D46: 27 | E46: 27
C47: 28 | D47: 34 | E47: 31
C48: 36 | D48: 35 | E48: 36
C49: 42 | D49: 39 | E49: 36
C50: 21 | D50: 35 | E50: 15
C51: 19 | D51: 36 | E51: 16
C52: 24 | D52: 23 | E52: 20
C53: 23 | D53: 35 | E53: 23
C54: 25 | D54: 29 | E54: 34
C55: 38 | D55: 21 | E55: 21
C56: 27 | D56: 31 | E56: 21
C57: 30 | D57: 26 | E57: 38
C58: 25 | D58: 22 | E58: 18
C59: 37 | D59: 30 | E59: 37
C60: 23 | D60: 23 | E60: 19
C61: 23 | D61: 41 | E61: 38
C62: 39 | D62: 40 | E62: 32
C63: 41 | D63: 35 | E63: 31
C64: 24 | D64: 24 | E64: 31
C65: 22 | D65: 38 | E65: 30
C66: 22 | D66: 42 | E66: 15
C67: 40 | D67: 27 | E67: 41
C68: 20 | D68: 18 | E68: 29
C69: 23 | D69: 34 | E69: 39
C70: 27 | D70: 34 | E70: 21
C71: 30 | D71: 33 | E71: 28
C72: 25 | D72: 25 | E72: 38
C73: 37 | D73: 34 | E73: 39
C74: 37 | D74: 21 | E74: 22
C75: 21 | D75: 33 | E75: 32
C76: 23 | D76: 35 | E76: 26
C77: 34 | D77: 22 | E77: 19
C78: 33 | D78: 27 | E78: 35
C79: 23 | D79: 30 | E79: 28
C80: 20 | D80: 23 | E80: 32
C81: 33 | D81: 29 | E81: 16
C82: 36 | D82: 39 | E82: 31
C83: 32 | D83: 40 | E83: 19
C84: 20 | D84: 21 | E84: 27
C85: 42 | D85: 34 | E85: 27
C86: 29 | D86: 43 | E86: 16
C87: 21 | D87: 19 | E87: 25
C88: 29 | D88: 30 | E88: 36
C89: 37 | D89: 39 | E89: 19
C90: 24 | D90: 37 | E90: 29
C91: 25 | D91: 36 | E91: 22
C92: 42 | D92: 18 | E92: 22
C93: 32 | D93: 43 | E93: 40
C94: 30 | D94: 36 | E94: 30
C95: 23 | D95: 30 | E95: 38
C96: 38 | D96: 22 | E96: 17
C97: 38 | D97: 18 | E97: 30
C98: 20 | D98: 24 | E98: 33
C99: 41 | D99: 41 | E99: 36
C100: 21 | D100: 39 | E100: 20
C101: 20 | D101: 32 | E101: 33
C102: 21 | D102: 37 | E102: 22
C103: 39 | D103: 35 | E103: 26
C104: 40 | D104: 22 | E104: 29

Sheet Regression Plot
C2: Data - Plotting and Analysis with Excel - Regression Plot | G2: TOC | H2: Regression Equation from formatting Trendline, Compare to Regression Results on Next Page
C4: Parametric Variables Basic Statistics and Graph, Two Continuous Variables
D5: http://cameron.econ.ucdavis.edu/excel/ex61multipleregression.html
C6: Regression | D6: http://www.excel-easy.com/examples/regression.html
C7: Assumptions Data - Check
C8: a | D8: Relationship between the two variables is linear.
C9: b | D9: Residuals have a normal distribution.
C10: c | D10: Constant variance of the Errors.
C11: Steps
C12: 1 | D12: Graph the relationship.
C13: 2 | D13: Use Regression In Analysis TookPak Add-In.
C14: 3 | D14: Input Independent Variable as X (POVERTY) and Dependent Variable as Y (BMI).
C15: 4 | D15: Check Residuals and Plots. For a 'rough' check of normality check normal probability plots.
D16: Results are on next Worksheet Regression Results

Sheet Regression Results
AC1: DATA | AE1: IDN | AF1: POVERTY_VALUE | AG1: BMI
C2: Data - Plotting and Analysis with Excel - Regression Results and Plot ToolPak | J2: TOC | AE2: 1 | AF2: 133 | AG2: 39.1
AE3: 2 | AF3: 486 | AG3: 35
C4: Regression of BMI on Poverty; | AE4: 3 | AF4: 75 | AG4: 34.8
C5: SUMMARY OUTPUT | F5: Conclusion: very slight decrease (non-significant) for BMI by Poverty | AE5: 4 | AF5: 738 | AG5: 34.5
AE6: 5 | AF6: 192 | AG6: 38
C7: Regression Statistics | F7: Highlight data and use Analysis ToolPak. | AE7: 6 | AF7: 399 | AG7: 34.3
C8: Multiple R | D8: 0.1299298868 | AE8: 7 | AF8: 281 | AG8: 40.2
C9: R Square | D9: 0.01688177547 | E9: an indication of how much change in the BMI variable can be explained by the Percent Poverty. | AE9: 8 | AF9: 340 | AG9: 38.4
C10: Adjusted R Square | D10: 0.006849956857 | F10: Definitions - Statistical | G10: http://www.stat.berkeley.edu/~stark/SticiGui/Text/gloss.htm | AE10: 9 | AF10: 174 | AG10: 38.8
C11: Standard Error | D11: 5.980253957 | AE11: 10 | AF11: 997 | AG11: 35.5
C12: Observations | D12: 100 | AE12: 11 | AF12: 738 | AG12: 38.6
AE13: 12 | AF13: 133 | AG13: 39.2
C14: ANOVA | AE14: 13 | AF14: 379 | AG14: 36.5
D15: df | E15: SS | F15: MS | G15: F | H15: Significance F | AE15: 14 | AF15: 738 | AG15: 36.6
C16: Regression | D16: 1 | E16: 60.18353632 | F16: 60.18353632 | G16: 1.682823037 | H16: 0.1975953771 | AE16: 15 | AF16: 498 | AG16: 36.8
C17: Residual | D17: 98 | E17: 3504.816864 | F17: 35.76343738 | AE17: 16 | AF17: 340 | AG17: 41.1
C18: Total | D18: 99 | E18: 3565.0004 | AE18: 17 | AF18: 415 | AG18: 34.5
AE19: 18 | AF19: 202 | AG19: 35.2
D20: Coefficients | E20: Standard Error | F20: t Stat | G20: P-value | H20: Lower 95% | I20: Upper 95% | J20: Lower 95.0% | K20: Upper 95.0% | AE20: 19 | AF20: 459 | AG20: 37.4
C21: Intercept | D21: 40.0522543 | E21: 1.126395247 | F21: 35.55790421 | G21: 8.143253952e-58 | H21: 37.81695959 | I21: 42.28754901 | J21: 37.81695959 | K21: 42.28754901 | AE21: 20 | AF21: 310 | AG21: 38
C22: POVERTY_VALUE | D22: -0.003367108911 | E22: 0.002595601042 | F22: -1.297236693 | G22: 0.1975953771 | H22: -0.008517994703 | I22: 0.001783776881 | J22: -0.008517994703 | K22: 0.001783776881 | AE22: 21 | AF22: 486 | AG22: 36.4
AE23: 22 | AF23: 192 | AG23: 38.4
AE24: 23 | AF24: 82 | AG24: 44.3
AE25: 24 | AF25: 340 | AG25: 36
C26: RESIDUAL OUTPUT | H26: PROBABILITY OUTPUT | M26: A NORMAL DISTRIBUTION WOULD BE LINEAR SO THE DISTRIBUTION SHOWS DEVIATION FROM NORMAL | AE26: 25 | AF26: 74 | AG26: 49.9
AE27: 26 | AF27: 281 | AG27: 34.2
C28: Observation | D28: Predicted BMI | E28: Residuals | F28: Standard Residuals | H28: Percentile | I28: BMI | AE28: 27 | AF28: 94 | AG28: 41
C29: 1 | D29: 39.60442882 | E29: -0.5044288169 | F29: -0.08477832294 | H29: 0.5 | I29: 34 | AE29: 28 | AF29: 459 | AG29: 34.1
C30: 2 | D30: 38.41583937 | E30: -3.415839371 | F30: -0.5740931598 | H30: 1.5 | I30: 34.1 | AE30: 29 | AF30: 340 | AG30: 38.8
C31: 3 | D31: 39.79972113 | E31: -4.999721134 | F31: -0.8402929387 | H31: 2.5 | I31: 34.2 | AE31: 30 | AF31: 162 | AG31: 36.8
C32: 4 | D32: 37.56732793 | E32: -3.067327926 | F32: -0.5155195516 | H32: 3.5 | I32: 34.2 | AE32: 31 | AF32: 583 | AG32: 40.7
C33: 5 | D33: 39.40576939 | E33: -1.405769391 | F33: -0.2362647958 | H33: 4.5 | I33: 34.2 | AE33: 32 | AF33: 583 | AG33: 34.2
C34: 6 | D34: 38.70877785 | E34: -4.408777847 | F34: -0.7409743051 | H34: 5.5 | I34: 34.3 | AE34: 33 | AF34: 399 | AG34: 35.9
C35: 7 | D35: 39.1060967 | E35: 1.093903302 | F35: 0.183850098 | H35: 6.5 | I35: 34.3 | AE35: 34 | AF35: 538 | AG35: 37.8
C36: 8 | D36: 38.90743727 | E36: -0.5074372723 | F36: -0.08528394791 | H36: 7.5 | I36: 34.3 | AE36: 35 | AF36: 586 | AG36: 36
C37: 9 | D37: 39.46637735 | E37: -0.6663773515 | F37: -0.111996683 | H37: 8.5 | I37: 34.5 | AE37: 36 | AF37: 225 | AG37: 40.7
C38: 10 | D38: 36.69524672 | E38: -1.195246718 | F38: -0.2008826793 | H38: 9.5 | I38: 34.5 | AE38: 37 | AF38: 997 | AG38: 40.2
C39: 11 | D39: 37.56732793 | E39: 1.032672074 | F39: 0.1735590904 | H39: 10.5 | I39: 34.7 | AE39: 38 | AF39: 399 | AG39: 45.6
C40: 12 | D40: 39.60442882 | E40: -0.4044288169 | F40: -0.0679715268 | H40: 11.5 | I40: 34.7 | AE40: 39 | AF40: 141 | AG40: 35.8
C41: 13 | D41: 38.77612002 | E41: -2.276120025 | F41: -0.3825428526 | H41: 12.5 | I41: 34.8 | AE41: 40 | AF41: 125 | AG41: 36.9
C42: 14 | D42: 37.56732793 | E42: -0.9673279257 | F42: -0.1625768325 | H42: 13.5 | I42: 34.8 | AE42: 41 | AF42: 586 | AG42: 35.4
C43: 15 | D43: 38.37543406 | E43: -1.575434064 | F43: -0.2647799916 | H43: 14.5 | I43: 34.8 | AE43: 42 | AF43: 415 | AG43: 34.7
C44: 16 | D44: 38.90743727 | E44: 2.192562728 | F44: 0.368499548 | H44: 15.5 | I44: 34.8 | AE44: 43 | AF44: 586 | AG44: 35
C45: 17 | D45: 38.6549041 | E45: -4.154904104 | F45: -0.6983062627 | H45: 16.5 | I45: 34.9 | AE45: 44 | AF45: 152 | AG45: 37.4
C46: 18 | D46: 39.3720983 | E46: -4.172098302 | F46: -0.7011960566 | H46: 17.5 | I46: 34.9 | AE46: 45 | AF46: 586 | AG46: 40.4
C47: 19 | D47: 38.50675131 | E47: -1.106751312 | F47: -0.1860094368 | H47: 18.5 | I47: 35 | AE47: 46 | AF47: 379 | AG47: 42.9
C48: 20 | D48: 39.00845054 | E48: -1.00845054 | F48: -0.1694882264 | H48: 19.5 | I48: 35 | AE48: 47 | AF48: 103 | AG48: 61.8
C49: 21 | D49: 38.41583937 | E49: -2.015839371 | F49: -0.3387980137 | H49: 20.5 | I49: 35 | AE49: 48 | AF49: 133 | AG49: 36.6
C50: 22 | D50: 39.40576939 | E50: -1.005769391 | F50: -0.1690376112 | H50: 21.5 | I50: 35 | AE50: 49 | AF50: 315 | AG50: 40.4
C51: 23 | D51: 39.77615137 | E51: 4.523848629 | F51: 0.7603140169 | H51: 22.5 | I51: 35 | AE51: 50 | AF51: 65 | AG51: 35
C52: 24 | D52: 38.90743727 | E52: -2.907437272 | F52: -0.4886470554 | H52: 23.5 | I52: 35 | AE52: 51 | AF52: 997 | AG52: 39.2
C53: 25 | D53: 39.80308824 | E53: 10.09691176 | F53: 1.696967376 | H53: 24.5 | I53: 35.2 | AE53: 52 | AF53: 459 | AG53: 34.2
C54: 26 | D54: 39.1060967 | E54: -4.906096698 | F54: -0.8245576707 | H54: 25.5 | I54: 35.2 | AE54: 53 | AF54: 517 | AG54: 35.2
C55: 27 | D55: 39.73574606 | E55: 1.264253936 | F55: 0.2124805817 | H55: 26.5 | I55: 35.2 | AE55: 54 | AF55: 340 | AG55: 34
C56: 28 | D56: 38.50675131 | E56: -4.406751312 | F56: -0.7406337096 | H56: 27.5 | I56: 35.4 | AE56: 55 | AF56: 517 | AG56: 37.2
C57: 29 | D57: 38.90743727 | E57: -0.1074372723 | F57: -0.01805676334 | H57: 28.5 | I57: 35.4 | AE57: 56 | AF57: 165 | AG57: 35.4
C58: 30 | D58: 39.50678266 | E58: -2.706782658 | F58: -0.4549234435 | H58: 29.5 | I58: 35.4 | AE58: 57 | AF58: 586 | AG58: 47.2
C59: 31 | D59: 38.08922981 | E59: 2.610770193 | F59: 0.4387868242 | H59: 30.5 | I59: 35.5 | AE59: 58 | AF59: 340 | AG59: 34.3
C60: 32 | D60: 38.08922981 | E60: -3.889229807 | F60: -0.6536549252 | H60: 31.5 | I60: 35.5 | AE60: 59 | AF60: 340 | AG60: 34.8
C61: 33 | D61: 38.70877785 | E61: -2.808777847 | F61: -0.4720655668 | H61: 32.5 | I61: 35.7 | AE61: 60 | AF61: 223 | AG61: 35.9
C62: 34 | D62: 38.24074971 | E62: -0.4407497079 | F62: -0.07407590491 | H62: 33.5 | I62: 35.8 | AE62: 61 | AF62: 410 | AG62: 34.9
C63: 35 | D63: 38.07912848 | E63: -2.07912848 | F63: -0.3494348852 | H63: 34.5 | I63: 35.9 | AE63: 62 | AF63: 140 | AG63: 35.9
C64: 36 | D64: 39.2946548 | E64: 1.405345203 | F64: 0.2361935034 | H64: 35.5 | I64: 35.9 | AE64: 63 | AF64: 586 | AG64: 36.8
C65: 37 | D65: 36.69524672 | E65: 3.504753282 | F65: 0.5890367395 | H65: 36.5 | I65: 35.9 | AE65: 64 | AF65: 60 | AG65: 45.2
C66: 38 | D66: 38.70877785 | E66: 6.891222153 | F66: 1.158193659 | H66: 37.5 | I66: 35.9 | AE66: 65 | AF66: 886 | AG66: 35
C67: 39 | D67: 39.57749195 | E67: -3.777491946 | F67: -0.6348753707 | H67: 38.5 | I67: 36 | AE67: 66 | AF67: 110 | AG67: 35.5
C68: 40 | D68: 39.63136569 | E68: -2.731365688 | F68: -0.4590550632 | H68: 39.5 | I68: 36 | AE68: 67 | AF68: 199 | AG68: 42.1
C69: 41 | D69: 38.07912848 | E69: -2.67912848 | F69: -0.4502756621 | H69: 40.5 | I69: 36.2 | AE69: 68 | AF69: 91 | AG69: 39.1
C70: 42 | D70: 38.6549041 | E70: -3.954904104 | F70: -0.6646926705 | H70: 41.5 | I70: 36.4 | AE70: 69 | AF70: 419 | AG70: 62.6
C71: 43 | D71: 38.07912848 | E71: -3.07912848 | F71: -0.5175028467 | H71: 42.5 | I71: 36.5 | AE71: 70 | AF71: 191 | AG71: 35.4
C72: 44 | D72: 39.54045375 | E72: -2.140453748 | F72: -0.3597416979 | H72: 43.5 | I72: 36.6 | AE72: 71 | AF72: 410 | AG72: 46.8
C73: 45 | D73: 38.07912848 | E73: 2.32087152 | F73: 0.3900641451 | H73: 44.5 | I73: 36.6 | AE73: 72 | AF73: 152 | AG73: 35
C74: 46 | D74: 38.77612002 | E74: 4.123879975 | F74: 0.6930921007 | H74: 45.5 | I74: 36.6 | AE74: 73 | AF74: 583 | AG74: 34.8
C75: 47 | D75: 39.70544208 | E75: 22.09455792 | F75: 3.713387308 | H75: 46.5 | I75: 36.8 | AE75: 74 | AF75: 415 | AG75: 40.5
C76: 48 | D76: 39.60442882 | E76: -3.004428817 | F76: -0.5049482266 | H76: 47.5 | I76: 36.8 | AE76: 75 | AF76: 704 | AG76: 37.1
C77: 49 | D77: 38.991615 | E77: 1.408385005 | F77: 0.2367043967 | H77: 48.5 | I77: 36.8 | AE77: 76 | AF77: 192 | AG77: 35.7
C78: 50 | D78: 39.83339222 | E78: -4.833392223 | F78: -0.8123383777 | H78: 49.5 | I78: 36.9 | AE78: 77 | AF78: 51 | AG78: 35.9
C79: 51 | D79: 36.69524672 | E79: 2.504753282 | F79: 0.4209687781 | H79: 50.5 | I79: 37.1 | AE79: 78 | AF79: 44 | AG79: 37.2
C80: 52 | D80: 38.50675131 | E80: -4.306751312 | F80: -0.7238269134 | H80: 51.5 | I80: 37.1 | AE80: 79 | AF80: 44 | AG80: 34.8
C81: 53 | D81: 38.311459 | E81: -3.111458995 | F81: -0.5229365704 | H81: 52.5 | I81: 37.2 | AE81: 80 | AF81: 517 | AG81: 49.4
C82: 54 | D82: 38.90743727 | E82: -4.907437272 | F82: -0.8247829783 | H82: 53.5 | I82: 37.2 | AE82: 81 | AF82: 219 | AG82: 39.9
C83: 55 | D83: 38.311459 | E83: -1.111458995 | F83: -0.1868006475 | H83: 54.5 | I83: 37.2 | AE83: 82 | AF83: 310 | AG83: 43.9
C84: 56 | D84: 39.49668133 | E84: -4.096681332 | F84: -0.6885208801 | H84: 55.5 | I84: 37.3 | AE84: 83 | AF84: 174 | AG84: 71.9
C85: 57 | D85: 38.07912848 | E85: 9.12087152 | F85: 1.532926283 | H85: 56.5 | I85: 37.4 | AE85: 84 | AF85: 517 | AG85: 34.3
C86: 58 | D86: 38.90743727 | E86: -4.607437272 | F86: -0.7743625898 | H86: 57.5 | I86: 37.4 | AE86: 85 | AF86: 410 | AG86: 35
C87: 59 | D87: 38.90743727 | E87: -4.107437272 | F87: -0.6903286091 | H87: 58.5 | I87: 37.8 | AE87: 86 | AF87: 997 | AG87: 37.2
C88: 60 | D88: 39.30138901 | E88: -3.401389015 | F88: -0.5716645178 | H88: 59.5 | I88: 38 | AE88: 87 | AF88: 291 | AG88: 46.6
C89: 61 | D89: 38.67173965 | E89: -3.771739649 | F89: -0.6339085938 | H89: 60.5 | I89: 38 | AE89: 88 | AF89: 340 | AG89: 46.1
C90: 62 | D90: 39.58085905 | E90: -3.680859054 | F90: -0.6186344776 | H90: 61.5 | I90: 38.1 | AE90: 89 | AF90: 75 | AG90: 36.2
C91: 63 | D91: 38.07912848 | E91: -1.27912848 | F91: -0.2149805161 | H91: 62.5 | I91: 38.3 | AE91: 90 | AF91: 222 | AG91: 36.6
C92: 64 | D92: 39.85022777 | E92: 5.349772233 | F92: 0.8991253133 | H92: 63.5 | I92: 38.4 | AE92: 91 | AF92: 586 | AG92: 41.6
C93: 65 | D93: 37.06899581 | E93: -2.068995807 | F93: -0.3477319075 | H93: 64.5 | I93: 38.4 | AE93: 92 | AF93: 419 | AG93: 37.3
C94: 66 | D94: 39.68187232 | E94: -4.181872322 | F94: -0.7028387561 | H94: 65.5 | I94: 38.6 | AE94: 93 | AF94: 200 | AG94: 34.7
C95: 67 | D95: 39.38219963 | E95: 2.717800371 | F95: 0.456775168 | H95: 66.5 | I95: 38.8 | AE95: 94 | AF95: 738 | AG95: 34.9
C96: 68 | D96: 39.74584739 | E96: -0.6458473911 | F96: -0.1085462544 | H96: 67.5 | I96: 38.8 | AE96: 95 | AF96: 586 | AG96: 37.1
C97: 69 | D97: 38.64143567 | E97: 23.95856433 | F97: 4.026667066 | H97: 68.5 | I97: 39.1 | AE97: 96 | AF97: 310 | AG97: 43.6
C98: 70 | D98: 39.4091365 | E98: -4.0091365 | F98: -0.6738073987 | H98: 69.5 | I98: 39.1 | AE98: 97 | AF98: 291 | AG98: 38.3
C99: 71 | D99: 38.67173965 | E99: 8.128260351 | F99: 1.366100147 | H99: 70.5 | I99: 39.2 | AE99: 98 | AF99: 340 | AG99: 38.1
C100: 72 | D100: 39.54045375 | E100: -4.540453748 | F100: -0.7631048054 | H100: 71.5 | I100: 39.2 | AE100: 99 | AF100: 410 | AG100: 40
C101: 73 | D101: 38.08922981 | E101: -3.289229807 | F101: -0.5528141484 | H101: 72.5 | I101: 39.9 | AE101: 100 | AF101: 219 | AG101: 35.2
C102: 74 | D102: 38.6549041 | E102: 1.845095896 | F102: 0.3101015059 | H102: 73.5 | I102: 40
C103: 75 | D103: 37.68180963 | E103: -0.5818096287 | F103: -0.09778355824 | H103: 74.5 | I103: 40.2
C104: 76 | D104: 39.40576939 | E104: -3.705769391 | F104: -0.6228211071 | H104: 75.5 | I104: 40.2
C105: 77 | D105: 39.88053175 | E105: -3.980531748 | F105: -0.6689998563 | H105: 76.5 | I105: 40.4
C106: 78 | D106: 39.90410151 | E106: -2.70410151 | F106: -0.4544728283 | H106: 77.5 | I106: 40.4
C107: 79 | D107: 39.90410151 | E107: -5.10410151 | F107: -0.8578359358 | H107: 78.5 | I107: 40.5
C108: 80 | D108: 38.311459 | E108: 11.088541 | F108: 1.863628482 | H108: 79.5 | I108: 40.7
C109: 81 | D109: 39.31485745 | E109: 0.5851425495 | F109: 0.09834371545 | H109: 80.5 | I109: 40.7
C110: 82 | D110: 39.00845054 | E110: 4.89154946 | F110: 0.8221127461 | H110: 81.5 | I110: 41
C111: 83 | D111: 39.46637735 | E111: 32.43362265 | F111: 5.451052841 | H111: 82.5 | I111: 41.1
C112: 84 | D112: 38.311459 | E112: -4.011458995 | F112: -0.6741977357 | H112: 83.5 | I112: 41.6
C113: 85 | D113: 38.67173965 | E113: -3.671739649 | F113: -0.6171017977 | H113: 84.5 | I113: 42.1
C114: 86 | D114: 36.69524672 | E114: 0.5047532822 | F114: 0.08483285518 | H114: 85.5 | I114: 42.9
C115: 87 | D115: 39.07242561 | E115: 7.527574391 | F115: 1.265144083 | H115: 86.5 | I115: 43.6
C116: 88 | D116: 38.90743727 | E116: 7.192562728 | F116: 1.208839355 | H116: 87.5 | I116: 43.9
C117: 89 | D117: 39.79972113 | E117: -3.599721134 | F117: -0.6049977927 | H117: 88.5 | I117: 44.3
C118: 90 | D118: 39.30475612 | E118: -2.704756124 | F118: -0.4545828479 | H118: 89.5 | I118: 45.2
C119: 91 | D119: 38.07912848 | E119: 3.52087152 | F119: 0.5917456988 | H119: 90.5 | I119: 45.6
C120: 92 | D120: 38.64143567 | E120: -1.341435668 | F120: -0.2254523582 | H120: 91.5 | I120: 46.1
C121: 93 | D121: 39.37883252 | E121: -4.67883252 | F121: -0.7863618435 | H121: 92.5 | I121: 46.6
C122: 94 | D122: 37.56732793 | E122: -2.667327926 | F122: -0.448292367 | H122: 93.5 | I122: 46.8
C123: 95 | D123: 38.07912848 | E123: -0.9791284802 | F123: -0.1645601277 | H123: 94.5 | I123: 47.2
C124: 96 | D124: 39.00845054 | E124: 4.59154946 | F124: 0.7716923577 | H124: 95.5 | I124: 49.4
C125: 97 | D125: 39.07242561 | E125: -0.7724256089 | F125: -0.1298199975 | H125: 96.5 | I125: 49.9
C126: 98 | D126: 38.90743727 | E126: -0.8074372723 | F126: -0.1357043363 | H126: 97.5 | I126: 61.8
C127: 99 | D127: 38.67173965 | E127: 1.328260351 | F127: 0.2232380095 | H127: 98.5 | I127: 62.6
C128: 100 | D128: 39.31485745 | E128: -4.114857451 | F128: -0.6915757033 | H128: 99.5 | I128: 71.9

Sheet Definitions
C2: Definitions Select | F2: TOC
C3: Definitions - Statistical | D3: http://www.stat.berkeley.edu/~stark/SticiGui/Text/gloss.htm
C4: Statistical Definitions
C5: Sum | D5: addition of values
C6: Count | D6: number of values
C7: Mean | D7: arithmetic average
C8: Confidence Interval for the Mean | D8: usually 95% Cl; 95% confidence that if sampled over and over 95% would include true mean
C9: Standard deviation, sample | D9: average deviation from the mean of the sample values
C10: Standard error | D10: average deviation from the overall mean of the sample of means
C11: Variance | D11: measure of variation around the mean
C12: Kurtosis | D12: measure of flatness or peakedness of a distribution
C13: Skew | D13: measure of drawn out tails of a distribution; not a normal distribution if skewed
C14: Median | D14: the value where half of the values are above and half below
C15: Minimum | D15: the lowest value of a variable
C16: Maximum | D16: the highest value of a variable

Sheet Resources
C2: Resources | E2: TOC
C4: Help For Editing Files And Statistical Analysis
C5: Subject | D5: Location
C6: Definitions - Statistical | D6: http://www.stat.berkeley.edu/~stark/SticiGui/Text/gloss.htm
C7: Editing Excel Files Using Visual Basic | D7: http://www.exceltrick.com/excel-vba-basics/what-is-excel-vba/
C8: Microsoft Office Support for Excel 2007, 2010, 2013, 365 | D8: https://support.office.com/en-us/article/Office-training-and-tutorials-b8f02f81-ec85-4493-a39b-4c48e6bc4bfb
C9: Database in Excel, Tutorial | D9: http://spreadsheets.about.com/od/datamanagementinexcel/ss/excel_database.htm
C10: Relational Databases in Excel | D10: http://www.pcworld.com/article/2462281/how-to-create-relational-databases-in-excel-2013.html
C11: Excel Tutorial - Free Trial | D11: http://www.lynda.com/search?q=Excel
C12: Excel Tutorial | D12: http://www.excel-easy.com/
C13: Excel Shortcuts for Mac and Word | D13: https://exceljet.net/keyboard-shortcuts

Sheet ESRI_MAPINFO_SHEET (hidden)
A1: {"extentsLinked":false,"version":2}
